Body Name,Body,Date,Department,Beneficiary,Summary of Purpose (SerCOP),Amount,Merchant Code,Transaction Number,Supplier ID
Sandwell Metropolitan Borough Council,http://www.sandwell.gov.uk/info/200202/performance_and_spending/1079/payments_over_500,01-Jul-21,Adults Social Care Capital,DLM BUILDING & MAINTENANCE LTD,Adults Social Care Capital,3865.11,CIP - Infrastructure,2122P04_CR00001,137596
Sandwell Metropolitan Borough Council,http://www.sandwell.gov.uk/info/200202/performance_and_spending/1079/payments_over_500,01-Jul-21,Adults Social Care Capital,RIDGE & PARTNERS LLP,Adults Social Care Capital,1500,"CIP - New Construction,Conversion, Enhancement & Reno",2122P04_CR00002,134994
Sandwell Metropolitan Borough Council,http://www.sandwell.gov.uk/info/200202/performance_and_spending/1079/payments_over_500,01-Jul-21,Adults Social Care Capital,LIFT & ENGINEERING SERVICES LTD,Adults Social Care Capital,4039.51,"CIP - New Construction,Conversion, Enhancement & Reno",2122P04_CR00003,77003962
Sandwell Metropolitan Borough Council,http://www.sandwell.gov.uk/info/200202/performance_and_spending/1079/payments_over_500,09-Jul-21,Adults Social Care Capital,LIFT & ENGINEERING SERVICES LTD,Adults Social Care Capital,5739.79,"CIP - New Construction,Conversion, Enhancement & Reno",2122P04_CR00004,77003962
Sandwell Metropolitan Borough Council,http://www.sandwell.gov.uk/info/200202/performance_and_spending/1079/payments_over_500,08-Jul-21,Adults Social Care Capital,WILLMOTT DIXON CONSTRUCTION LIMITED,Adults Social Care Capital,557107.13,"CIP - New Construction,Conversion, Enhancement & Reno",2122P04_CR00005,34081
Sandwell Metropolitan Borough Council,http://www.sandwell.gov.uk/info/200202/performance_and_spending/1079/payments_over_500,01-Jul-21,Adults Social Care Capital,PR PROPERTY MAINTENANCE,Adults Social Care Capital,4198.13,Deferred Charges/Grant Payments,2122P04_CR00006,33836
Sandwell Metropolitan Borough Council,http://www.sandwell.gov.uk/info/200202/performance_and_spending/1079/payments_over_500,01-Jul-21,Adults Social Care Capital,PR PROPERTY MAINTENANCE,Adults Social Care Capital,8094.45,Deferred Charges/Grant Payments,2122P04_CR00007,33836
Sandwell Metropolitan Borough Council,http://www.sandwell.gov.uk/info/200202/performance_and_spending/1079/payments_over_500,09-Jul-21,Adults Social Care Capital,PR PROPERTY MAINTENANCE,Adults Social Care Capital,8618.68,Deferred Charges/Grant Payments,2122P04_CR00008,33836
Sandwell Metropolitan Borough Council,http://www.sandwell.gov.uk/info/200202/performance_and_spending/1079/payments_over_500,01-Jul-21,Adults Social Care Capital,DOLPHIN LIFTS MIDLANDS LTD,Adults Social Care Capital,1275,Deferred Charges/Grant Payments,2122P04_CR00009,123852
Sandwell Metropolitan Borough Council,http://www.sandwell.gov.uk/info/200202/performance_and_spending/1079/payments_over_500,01-Jul-21,Adults Social Care Capital,DOLPHIN LIFTS MIDLANDS LTD,Adults Social Care Capital,1200,Deferred Charges/Grant Payments,2122P04_CR00010,123852
Sandwell Metropolitan Borough Council,http://www.sandwell.gov.uk/info/200202/performance_and_spending/1079/payments_over_500,01-Jul-21,Adults Social Care Capital,T.A. SMITH (BUILDERS) LIMITED,Adults Social Care Capital,1279.93,Deferred Charges/Grant Payments,2122P04_CR00011,89846
Sandwell Metropolitan Borough Council,http://www.sandwell.gov.uk/info/200202/performance_and_spending/1079/payments_over_500,01-Jul-21,Adults Social Care Capital,TERRY GROUP LIMITED,Adults Social Care Capital,23878,Deferred Charges/Grant Payments,2122P04_CR00012,77002029
Sandwell Metropolitan Borough Council,http://www.sandwell.gov.uk/info/200202/performance_and_spending/1079/payments_over_500,01-Jul-21,Adults Social Care Capital,VALUATION OFFICE AGENCY,Adults Social Care Capital,3250,Externally Purchased Professional Services ,2122P04_CR00013,1506754
Sandwell Metropolitan Borough Council,http://www.sandwell.gov.uk/info/200202/performance_and_spending/1079/payments_over_500,06-Jul-21,Adults Social Care Capital,BALWINDER SINGH T/A SSA CLAIM,Adults Social Care Capital,2667,Grant Payments,2122P04_CR00014,147596
Sandwell Metropolitan Borough Council,http://www.sandwell.gov.uk/info/200202/performance_and_spending/1079/payments_over_500,06-Jul-21,Adults Social Care Capital,"CHRIS DRYDEN, TRACY DRYDEN T-A IDEAL HOMECARE",Adults Social Care Capital,2667,Grant Payments,2122P04_CR00015,144618
Sandwell Metropolitan Borough Council,http://www.sandwell.gov.uk/info/200202/performance_and_spending/1079/payments_over_500,05-Jul-21,Adults Social Care Capital,CROSSPOINT HUB & CHURCH,Adults Social Care Capital,8000,Grant Payments,2122P04_CR00016,152809
Sandwell Metropolitan Borough Council,http://www.sandwell.gov.uk/info/200202/performance_and_spending/1079/payments_over_500,22-Jul-21,Adults Social Care Capital,D & C BYRNE T/A DESIGNZ HAIR STUDIO,Adults Social Care Capital,8000,Grant Payments,2122P04_CR00017,52799
Sandwell Metropolitan Borough Council,http://www.sandwell.gov.uk/info/200202/performance_and_spending/1079/payments_over_500,05-Jul-21,Adults Social Care Capital,"H UR RAHMAN, M CHOUDHARY T/A INDULGENCE",Adults Social Care Capital,8000,Grant Payments,2122P04_CR00018,142162
Sandwell Metropolitan Borough Council,http://www.sandwell.gov.uk/info/200202/performance_and_spending/1079/payments_over_500,06-Jul-21,Adults Social Care Capital,INFAMOUS COMMUNITY ARTS,Adults Social Care Capital,8000,Grant Payments,2122P04_CR00019,102940
Sandwell Metropolitan Borough Council,http://www.sandwell.gov.uk/info/200202/performance_and_spending/1079/payments_over_500,08-Jul-21,Adults Social Care Capital,MISS CARINA DARBY T/A THE TAYPOT,Adults Social Care Capital,8000,Grant Payments,2122P04_CR00020,145343
Sandwell Metropolitan Borough Council,http://www.sandwell.gov.uk/info/200202/performance_and_spending/1079/payments_over_500,08-Jul-21,Adults Social Care Capital,MR MUJEEB KHAN T/A RIANNA TRAVEL,Adults Social Care Capital,2667,Grant Payments,2122P04_CR00021,147173
Sandwell Metropolitan Borough Council,http://www.sandwell.gov.uk/info/200202/performance_and_spending/1079/payments_over_500,06-Jul-21,Adults Social Care Capital,MRS TAMAR BANKS T/A THE PORKHOUSE,Adults Social Care Capital,8000,Grant Payments,2122P04_CR00022,145729
Sandwell Metropolitan Borough Council,http://www.sandwell.gov.uk/info/200202/performance_and_spending/1079/payments_over_500,06-Jul-21,Adults Social Care Capital,MURRAY HALL COMMUNITY TRUST,Adults Social Care Capital,2667,Grant Payments,2122P04_CR00023,1627284
Sandwell Metropolitan Borough Council,http://www.sandwell.gov.uk/info/200202/performance_and_spending/1079/payments_over_500,05-Jul-21,Adults Social Care Capital,MURRAY HALL COMMUNITY TRUST,Adults Social Care Capital,8000,Grant Payments,2122P04_CR00024,1627284
Sandwell Metropolitan Borough Council,http://www.sandwell.gov.uk/info/200202/performance_and_spending/1079/payments_over_500,05-Jul-21,Adults Social Care Capital,MURRAY HALL COMMUNITY TRUST,Adults Social Care Capital,12000,Grant Payments,2122P04_CR00025,1627284
Sandwell Metropolitan Borough Council,http://www.sandwell.gov.uk/info/200202/performance_and_spending/1079/payments_over_500,20-Jul-21,Adults Social Care Capital,OLD TALBOT,Adults Social Care Capital,8000,Grant Payments,2122P04_CR00026,16602
Sandwell Metropolitan Borough Council,http://www.sandwell.gov.uk/info/200202/performance_and_spending/1079/payments_over_500,05-Jul-21,Adults Social Care Capital,"TRACEY RICHARDS, LEE ARMSTRONG T/A CRADLEY IRONING SERVICES",Adults Social Care Capital,2667,Grant Payments,2122P04_CR00027,143433
Sandwell Metropolitan Borough Council,http://www.sandwell.gov.uk/info/200202/performance_and_spending/1079/payments_over_500,06-Jul-21,Adults Social Care Capital,REDACTED PERSONAL DATA,Adults Social Care Capital,2667,Grant Payments,2122P04_CR00028,REDACTED PERSONAL DATA
Sandwell Metropolitan Borough Council,http://www.sandwell.gov.uk/info/200202/performance_and_spending/1079/payments_over_500,19-Jul-21,Adults Social Care Capital,REDACTED PERSONAL DATA,Adults Social Care Capital,2667,Grant Payments,2122P04_CR00029,REDACTED PERSONAL DATA
Sandwell Metropolitan Borough Council,http://www.sandwell.gov.uk/info/200202/performance_and_spending/1079/payments_over_500,05-Jul-21,Adults Social Care Capital,REDACTED PERSONAL DATA,Adults Social Care Capital,2667,Grant Payments,2122P04_CR00030,REDACTED PERSONAL DATA
Sandwell Metropolitan Borough Council,http://www.sandwell.gov.uk/info/200202/performance_and_spending/1079/payments_over_500,05-Jul-21,Adults Social Care Capital,REDACTED PERSONAL DATA,Adults Social Care Capital,8000,Grant Payments,2122P04_CR00031,REDACTED PERSONAL DATA
Sandwell Metropolitan Borough Council,http://www.sandwell.gov.uk/info/200202/performance_and_spending/1079/payments_over_500,06-Jul-21,Adults Social Care Capital,REDACTED PERSONAL DATA,Adults Social Care Capital,8000,Grant Payments,2122P04_CR00032,REDACTED PERSONAL DATA
Sandwell Metropolitan Borough Council,http://www.sandwell.gov.uk/info/200202/performance_and_spending/1079/payments_over_500,05-Jul-21,Adults Social Care Capital,REDACTED PERSONAL DATA,Adults Social Care Capital,4000,Grant Payments,2122P04_CR00033,REDACTED PERSONAL DATA
Sandwell Metropolitan Borough Council,http://www.sandwell.gov.uk/info/200202/performance_and_spending/1079/payments_over_500,06-Jul-21,Adults Social Care Capital,AJS WINDOW INSTALLATIONS LTD,Adults Social Care Capital,4000,Grant Payments,2122P04_CR00034,144753
Sandwell Metropolitan Borough Council,http://www.sandwell.gov.uk/info/200202/performance_and_spending/1079/payments_over_500,06-Jul-21,Adults Social Care Capital,BCH PROPERTY LIMITED,Adults Social Care Capital,12000,Grant Payments,2122P04_CR00035,1011861
Sandwell Metropolitan Borough Council,http://www.sandwell.gov.uk/info/200202/performance_and_spending/1079/payments_over_500,05-Jul-21,Adults Social Care Capital,BENSONSFORBEDSRETAIL LTD,Adults Social Care Capital,6000,Grant Payments,2122P04_CR00036,152859
Sandwell Metropolitan Borough Council,http://www.sandwell.gov.uk/info/200202/performance_and_spending/1079/payments_over_500,06-Jul-21,Adults Social Care Capital,CAPE CCTV 101 LTD,Adults Social Care Capital,2667,Grant Payments,2122P04_CR00037,147500
Sandwell Metropolitan Borough Council,http://www.sandwell.gov.uk/info/200202/performance_and_spending/1079/payments_over_500,06-Jul-21,Adults Social Care Capital,ELECTROBASE LTD,Adults Social Care Capital,2667,Grant Payments,2122P04_CR00038,150795
Sandwell Metropolitan Borough Council,http://www.sandwell.gov.uk/info/200202/performance_and_spending/1079/payments_over_500,22-Jul-21,Adults Social Care Capital,FOAM CAR WASH LTD,Adults Social Care Capital,2667,Grant Payments,2122P04_CR00039,146882
Sandwell Metropolitan Borough Council,http://www.sandwell.gov.uk/info/200202/performance_and_spending/1079/payments_over_500,06-Jul-21,Adults Social Care Capital,HAMARAN 9JA LTD,Adults Social Care Capital,8000,Grant Payments,2122P04_CR00040,145793
Sandwell Metropolitan Borough Council,http://www.sandwell.gov.uk/info/200202/performance_and_spending/1079/payments_over_500,06-Jul-21,Adults Social Care Capital,O2 TALK TALK MOBILE PHONES LTD,Adults Social Care Capital,4000,Grant Payments,2122P04_CR00041,142243
Sandwell Metropolitan Borough Council,http://www.sandwell.gov.uk/info/200202/performance_and_spending/1079/payments_over_500,05-Jul-21,Adults Social Care Capital,OAK FURNITURELAND GROUP LIMITED,Adults Social Care Capital,6000,Grant Payments,2122P04_CR00042,150980
Sandwell Metropolitan Borough Council,http://www.sandwell.gov.uk/info/200202/performance_and_spending/1079/payments_over_500,11-Jul-21,Adults Social Care Capital,"SHELTER, THE NATIONAL CAMPAIGN FOR HOMELESS PEOPLE LIMITED",Adults Social Care Capital,6000,Grant Payments,2122P04_CR00043,153245
Sandwell Metropolitan Borough Council,http://www.sandwell.gov.uk/info/200202/performance_and_spending/1079/payments_over_500,05-Jul-21,Adults Social Care Capital,SOFA SOLUTIONS (UK) LTD,Adults Social Care Capital,2667,Grant Payments,2122P04_CR00044,145296
Sandwell Metropolitan Borough Council,http://www.sandwell.gov.uk/info/200202/performance_and_spending/1079/payments_over_500,20-Jul-21,Adults Social Care Capital,SUPAFIT BODYWORK LTD,Adults Social Care Capital,2667,Grant Payments,2122P04_CR00045,150467
Sandwell Metropolitan Borough Council,http://www.sandwell.gov.uk/info/200202/performance_and_spending/1079/payments_over_500,05-Jul-21,Adults Social Care Capital,TFS STORES LTD,Adults Social Care Capital,2667,Grant Payments,2122P04_CR00046,144621
Sandwell Metropolitan Borough Council,http://www.sandwell.gov.uk/info/200202/performance_and_spending/1079/payments_over_500,08-Jul-21,Adults Social Care Capital,TUI UK LTD,Adults Social Care Capital,4000,Grant Payments,2122P04_CR00047,77404
Sandwell Metropolitan Borough Council,http://www.sandwell.gov.uk/info/200202/performance_and_spending/1079/payments_over_500,23-Jul-21,Adults Social Care Capital,UK PIZZA & KEBAB HOUSE LTD,Adults Social Care Capital,8000,Grant Payments,2122P04_CR00048,144349
Sandwell Metropolitan Borough Council,http://www.sandwell.gov.uk/info/200202/performance_and_spending/1079/payments_over_500,22-Jul-21,Adults Social Care Capital,UR DAILY NEEDS LTD,Adults Social Care Capital,4000,Grant Payments,2122P04_CR00049,150788
Sandwell Metropolitan Borough Council,http://www.sandwell.gov.uk/info/200202/performance_and_spending/1079/payments_over_500,07-Jul-21,Adults Social Care Capital,REDACTED PERSONAL DATA,Adults Social Care Capital,6100,Deferred Charges/Grant Payments,2122P04_CR00050,REDACTED PERSONAL DATA
Sandwell Metropolitan Borough Council,http://www.sandwell.gov.uk/info/200202/performance_and_spending/1079/payments_over_500,01-Jul-21,Adults Social Care Capital,REDACTED PERSONAL DATA,Adults Social Care Capital,6800,Deferred Charges/Grant Payments,2122P04_CR00051,REDACTED PERSONAL DATA
Sandwell Metropolitan Borough Council,http://www.sandwell.gov.uk/info/200202/performance_and_spending/1079/payments_over_500,01-Jul-21,Adults Social Care Capital,ECLIPSE ACCESS SOLUTIONS LTD,Adults Social Care Capital,2840,Deferred Charges/Grant Payments,2122P04_CR00052,131248
Sandwell Metropolitan Borough Council,http://www.sandwell.gov.uk/info/200202/performance_and_spending/1079/payments_over_500,01-Jul-21,Adults Social Care Capital,TDF DESIGN LIMITED,Adults Social Care Capital,23500.83,Deferred Charges/Grant Payments,2122P04_CR00053,10320
Sandwell Metropolitan Borough Council,http://www.sandwell.gov.uk/info/200202/performance_and_spending/1079/payments_over_500,01-Jul-21,Adults Social Care Capital,TDF DESIGN LIMITED,Adults Social Care Capital,4811.33,Deferred Charges/Grant Payments,2122P04_CR00054,10320
Sandwell Metropolitan Borough Council,http://www.sandwell.gov.uk/info/200202/performance_and_spending/1079/payments_over_500,16-Jul-21,Adults Social Care Capital,TDF DESIGN LIMITED,Adults Social Care Capital,18000,Deferred Charges/Grant Payments,2122P04_CR00055,10320
Sandwell Metropolitan Borough Council,http://www.sandwell.gov.uk/info/200202/performance_and_spending/1079/payments_over_500,12-Jul-21,Childrens Services,HEARTLANDS BUSINESS GIFTS LTD,Childrens Services,2357.5,Advertising & Publicity,2122P04_CR00056,11316
Sandwell Metropolitan Borough Council,http://www.sandwell.gov.uk/info/200202/performance_and_spending/1079/payments_over_500,19-Jul-21,Childrens Services,NEWAVE LTD,Childrens Services,9993.75,Agency Staff,2122P04_CR00057,101666
Sandwell Metropolitan Borough Council,http://www.sandwell.gov.uk/info/200202/performance_and_spending/1079/payments_over_500,19-Jul-21,Childrens Services,NEWAVE LTD,Childrens Services,9638,Agency Staff,2122P04_CR00058,101666
Sandwell Metropolitan Borough Council,http://www.sandwell.gov.uk/info/200202/performance_and_spending/1079/payments_over_500,19-Jul-21,Childrens Services,NEWAVE LTD,Childrens Services,9718,Agency Staff,2122P04_CR00059,101666
Sandwell Metropolitan Borough Council,http://www.sandwell.gov.uk/info/200202/performance_and_spending/1079/payments_over_500,19-Jul-21,Childrens Services,NEWAVE LTD,Childrens Services,955,Agency Staff,2122P04_CR00060,101666
Sandwell Metropolitan Borough Council,http://www.sandwell.gov.uk/info/200202/performance_and_spending/1079/payments_over_500,01-Jul-21,Childrens Services,SANDWELL DEAF COMMUNITY ASSOCIATION,Childrens Services,716.25,Bi-Lingual Translation Services,2122P04_CR00061,3138
Sandwell Metropolitan Borough Council,http://www.sandwell.gov.uk/info/200202/performance_and_spending/1079/payments_over_500,01-Jul-21,Childrens Services,THOMAS CHARLES FACILITIES & MAINTENANCE LTD,Childrens Services,690,Building Maintenance & Improvements,2122P04_CR00062,114170
Sandwell Metropolitan Borough Council,http://www.sandwell.gov.uk/info/200202/performance_and_spending/1079/payments_over_500,01-Jul-21,Childrens Services,BLAKEMORE FOOD SERVICE LTD,Childrens Services,1176.52,Catering Provisions,2122P04_CR00063,2518
Sandwell Metropolitan Borough Council,http://www.sandwell.gov.uk/info/200202/performance_and_spending/1079/payments_over_500,01-Jul-21,Childrens Services,BLAKEMORE FOOD SERVICE LTD,Childrens Services,657.35,Catering Provisions,2122P04_CR00064,2518
Sandwell Metropolitan Borough Council,http://www.sandwell.gov.uk/info/200202/performance_and_spending/1079/payments_over_500,01-Jul-21,Childrens Services,HAWK INCENTIVES LTD,Childrens Services,15000,Catering Provisions,2122P04_CR00065,148982
Sandwell Metropolitan Borough Council,http://www.sandwell.gov.uk/info/200202/performance_and_spending/1079/payments_over_500,01-Jul-21,Childrens Services,CENTRAL ENGLAND LAW CENTRE LIMITED,Childrens Services,51076.27,Compensation Payments,2122P04_CR00066,153640
Sandwell Metropolitan Borough Council,http://www.sandwell.gov.uk/info/200202/performance_and_spending/1079/payments_over_500,01-Jul-21,Childrens Services,CENTRAL ENGLAND LAW CENTRE LIMITED,Childrens Services,15923.73,Compensation Payments,2122P04_CR00067,153640
Sandwell Metropolitan Borough Council,http://www.sandwell.gov.uk/info/200202/performance_and_spending/1079/payments_over_500,06-Jul-21,Childrens Services,CHRISTIAN EDUCATION & RE TODAY SERVICES,Childrens Services,985,Consultancy,2122P04_CR00068,15016
Sandwell Metropolitan Borough Council,http://www.sandwell.gov.uk/info/200202/performance_and_spending/1079/payments_over_500,14-Jul-21,Childrens Services,LYNG PRIMARY SCHOOL                                              01,Childrens Services,600,Consultancy,2122P04_CR00069,21030682
Sandwell Metropolitan Borough Council,http://www.sandwell.gov.uk/info/200202/performance_and_spending/1079/payments_over_500,01-Jul-21,Childrens Services,THOMAS CHARLES FACILITIES & MAINTENANCE LTD,Childrens Services,1950,Contract Cleaning,2122P04_CR00070,114170
Sandwell Metropolitan Borough Council,http://www.sandwell.gov.uk/info/200202/performance_and_spending/1079/payments_over_500,01-Jul-21,Childrens Services,THOMAS CHARLES FACILITIES & MAINTENANCE LTD,Childrens Services,1950,Contract Cleaning,2122P04_CR00071,114170
Sandwell Metropolitan Borough Council,http://www.sandwell.gov.uk/info/200202/performance_and_spending/1079/payments_over_500,01-Jul-21,Childrens Services,THOMAS CHARLES FACILITIES & MAINTENANCE LTD,Childrens Services,1950,Contract Cleaning,2122P04_CR00072,114170
Sandwell Metropolitan Borough Council,http://www.sandwell.gov.uk/info/200202/performance_and_spending/1079/payments_over_500,01-Jul-21,Childrens Services,THOMAS CHARLES FACILITIES & MAINTENANCE LTD,Childrens Services,2925,Contract Cleaning,2122P04_CR00073,114170
Sandwell Metropolitan Borough Council,http://www.sandwell.gov.uk/info/200202/performance_and_spending/1079/payments_over_500,01-Jul-21,Childrens Services,THOMAS CHARLES FACILITIES & MAINTENANCE LTD,Childrens Services,742.5,Contract Cleaning,2122P04_CR00074,114170
Sandwell Metropolitan Borough Council,http://www.sandwell.gov.uk/info/200202/performance_and_spending/1079/payments_over_500,01-Jul-21,Childrens Services,ACTION FOR CHILDREN SERVICES LIMITED,Childrens Services,238815.08,Contract Payments,2122P04_CR00075,111189
Sandwell Metropolitan Borough Council,http://www.sandwell.gov.uk/info/200202/performance_and_spending/1079/payments_over_500,01-Jul-21,Childrens Services,ACTION FOR CHILDREN SERVICES LIMITED,Childrens Services,317769.84,Contract Payments,2122P04_CR00076,111189
Sandwell Metropolitan Borough Council,http://www.sandwell.gov.uk/info/200202/performance_and_spending/1079/payments_over_500,10-Jul-21,Childrens Services,TOTAL GAS AND POWER LIMITED,Childrens Services,1028.46,Electricity,2122P04_CR00077,107605
Sandwell Metropolitan Borough Council,http://www.sandwell.gov.uk/info/200202/performance_and_spending/1079/payments_over_500,10-Jul-21,Childrens Services,TOTAL GAS AND POWER LIMITED,Childrens Services,725.89,Electricity,2122P04_CR00078,107605
Sandwell Metropolitan Borough Council,http://www.sandwell.gov.uk/info/200202/performance_and_spending/1079/payments_over_500,01-Jul-21,Childrens Services,AMP BIOMASS FUEL LTD T/A AMP CLEAN ENERGY,Childrens Services,1935.64,Energy Costs-Bio Energy Cost,2122P04_CR00079,128761
Sandwell Metropolitan Borough Council,http://www.sandwell.gov.uk/info/200202/performance_and_spending/1079/payments_over_500,27-Jul-21,Childrens Services,TEAMSPORT INDOOR KARTING,Childrens Services,547.33,Equipment & Furniture ,2122P04_CR00080,123836
Sandwell Metropolitan Borough Council,http://www.sandwell.gov.uk/info/200202/performance_and_spending/1079/payments_over_500,01-Jul-21,Childrens Services,XLR8 SPORTS LTD T/A LEISURE LAKES LTD,Childrens Services,1160,Equipment & Furniture ,2122P04_CR00081,92105
Sandwell Metropolitan Borough Council,http://www.sandwell.gov.uk/info/200202/performance_and_spending/1079/payments_over_500,01-Jul-21,Childrens Services,DUDLEY MBC,Childrens Services,6249.6,External Contract Hire,2122P04_CR00082,1349846
Sandwell Metropolitan Borough Council,http://www.sandwell.gov.uk/info/200202/performance_and_spending/1079/payments_over_500,13-Jul-21,Childrens Services,DUDLEY MBC,Childrens Services,4594.2,External Contract Hire,2122P04_CR00083,1349846
Sandwell Metropolitan Borough Council,http://www.sandwell.gov.uk/info/200202/performance_and_spending/1079/payments_over_500,01-Jul-21,Childrens Services,REDACTED PERSONAL DATA,Childrens Services,1578.78,External Contract Hire,2122P04_CR00084,REDACTED PERSONAL DATA
Sandwell Metropolitan Borough Council,http://www.sandwell.gov.uk/info/200202/performance_and_spending/1079/payments_over_500,14-Jul-21,Childrens Services,REDACTED PERSONAL DATA,Childrens Services,706.32,External Contract Hire,2122P04_CR00085,REDACTED PERSONAL DATA
Sandwell Metropolitan Borough Council,http://www.sandwell.gov.uk/info/200202/performance_and_spending/1079/payments_over_500,01-Jul-21,Childrens Services,WOLVERHAMPTON CITY COUNCIL,Childrens Services,1965.6,External Contract Hire,2122P04_CR00086,1374555
Sandwell Metropolitan Borough Council,http://www.sandwell.gov.uk/info/200202/performance_and_spending/1079/payments_over_500,01-Jul-21,Childrens Services,DIRECTION TRAINING & MANAGEMENT,Childrens Services,500,Externally Purchased Professional Services ,2122P04_CR00087,1727395
Sandwell Metropolitan Borough Council,http://www.sandwell.gov.uk/info/200202/performance_and_spending/1079/payments_over_500,01-Jul-21,Childrens Services,DIRECTION TRAINING & MANAGEMENT,Childrens Services,500,Externally Purchased Professional Services ,2122P04_CR00088,1727395
Sandwell Metropolitan Borough Council,http://www.sandwell.gov.uk/info/200202/performance_and_spending/1079/payments_over_500,09-Jul-21,Childrens Services,DIRECTION TRAINING & MANAGEMENT,Childrens Services,1000,Externally Purchased Professional Services ,2122P04_CR00089,1727395
Sandwell Metropolitan Borough Council,http://www.sandwell.gov.uk/info/200202/performance_and_spending/1079/payments_over_500,12-Jul-21,Childrens Services,DIRECTION TRAINING & MANAGEMENT,Childrens Services,500,Externally Purchased Professional Services ,2122P04_CR00090,1727395
Sandwell Metropolitan Borough Council,http://www.sandwell.gov.uk/info/200202/performance_and_spending/1079/payments_over_500,01-Jul-21,Childrens Services,GATEWAY QUALIFICATIONS,Childrens Services,750,Externally Purchased Professional Services ,2122P04_CR00091,151038
Sandwell Metropolitan Borough Council,http://www.sandwell.gov.uk/info/200202/performance_and_spending/1079/payments_over_500,13-Jul-21,Childrens Services,FIRST RESPONSE (FIRST AID) LTD,Childrens Services,680,Externally Purchased Professional Services ,2122P04_CR00092,57372
Sandwell Metropolitan Borough Council,http://www.sandwell.gov.uk/info/200202/performance_and_spending/1079/payments_over_500,01-Jul-21,Childrens Services,LEARNING INTO EMPLOYMENT ACADEMY LTD,Childrens Services,1217.58,Externally Purchased Professional Services ,2122P04_CR00093,147427
Sandwell Metropolitan Borough Council,http://www.sandwell.gov.uk/info/200202/performance_and_spending/1079/payments_over_500,01-Jul-21,Childrens Services,LEARNING INTO EMPLOYMENT ACADEMY LTD,Childrens Services,830.25,Externally Purchased Professional Services ,2122P04_CR00094,147427
Sandwell Metropolitan Borough Council,http://www.sandwell.gov.uk/info/200202/performance_and_spending/1079/payments_over_500,01-Jul-21,Childrens Services,LEARNING INTO EMPLOYMENT ACADEMY LTD,Childrens Services,1217.58,Externally Purchased Professional Services ,2122P04_CR00095,147427
Sandwell Metropolitan Borough Council,http://www.sandwell.gov.uk/info/200202/performance_and_spending/1079/payments_over_500,01-Jul-21,Childrens Services,LEARNING INTO EMPLOYMENT ACADEMY LTD,Childrens Services,730.55,Externally Purchased Professional Services ,2122P04_CR00096,147427
Sandwell Metropolitan Borough Council,http://www.sandwell.gov.uk/info/200202/performance_and_spending/1079/payments_over_500,01-Jul-21,Childrens Services,LEARNING INTO EMPLOYMENT ACADEMY LTD,Childrens Services,1217.58,Externally Purchased Professional Services ,2122P04_CR00097,147427
Sandwell Metropolitan Borough Council,http://www.sandwell.gov.uk/info/200202/performance_and_spending/1079/payments_over_500,01-Jul-21,Childrens Services,LEARNPLAY FOUNDATION LTD,Childrens Services,800,Externally Purchased Professional Services ,2122P04_CR00098,86525
Sandwell Metropolitan Borough Council,http://www.sandwell.gov.uk/info/200202/performance_and_spending/1079/payments_over_500,01-Jul-21,Childrens Services,OPUS EMPLOYER ENGAGEMENT SERVICES LIMITED,Childrens Services,670,Externally Purchased Professional Services ,2122P04_CR00099,126506
Sandwell Metropolitan Borough Council,http://www.sandwell.gov.uk/info/200202/performance_and_spending/1079/payments_over_500,01-Jul-21,Childrens Services,OPUS EMPLOYER ENGAGEMENT SERVICES LIMITED,Childrens Services,670,Externally Purchased Professional Services ,2122P04_CR00100,126506
Sandwell Metropolitan Borough Council,http://www.sandwell.gov.uk/info/200202/performance_and_spending/1079/payments_over_500,01-Jul-21,Childrens Services,OPUS EMPLOYER ENGAGEMENT SERVICES LIMITED,Childrens Services,670,Externally Purchased Professional Services ,2122P04_CR00101,126506
Sandwell Metropolitan Borough Council,http://www.sandwell.gov.uk/info/200202/performance_and_spending/1079/payments_over_500,01-Jul-21,Childrens Services,OPUS EMPLOYER ENGAGEMENT SERVICES LIMITED,Childrens Services,670,Externally Purchased Professional Services ,2122P04_CR00102,126506
Sandwell Metropolitan Borough Council,http://www.sandwell.gov.uk/info/200202/performance_and_spending/1079/payments_over_500,01-Jul-21,Childrens Services,WYRE FOREST DISTRICT COUNCIL,Childrens Services,3129.78,Externally Purchased Professional Services ,2122P04_CR00103,5163
Sandwell Metropolitan Borough Council,http://www.sandwell.gov.uk/info/200202/performance_and_spending/1079/payments_over_500,08-Jul-21,Childrens Services,4 COMMUNITY TRUST CIC,Childrens Services,30789,Grant Payments,2122P04_CR00104,137880
Sandwell Metropolitan Borough Council,http://www.sandwell.gov.uk/info/200202/performance_and_spending/1079/payments_over_500,01-Jul-21,Childrens Services,COMMUNITY ACTION PROJECT,Childrens Services,3322,Grant Payments,2122P04_CR00105,1702622
Sandwell Metropolitan Borough Council,http://www.sandwell.gov.uk/info/200202/performance_and_spending/1079/payments_over_500,12-Jul-21,Childrens Services,COMMUNITY ACTION PROJECT,Childrens Services,8532,Grant Payments,2122P04_CR00106,1702622
Sandwell Metropolitan Borough Council,http://www.sandwell.gov.uk/info/200202/performance_and_spending/1079/payments_over_500,26-Jul-21,Childrens Services,COMMUNITY ACTION PROJECT,Childrens Services,1728,Grant Payments,2122P04_CR00107,1702622
Sandwell Metropolitan Borough Council,http://www.sandwell.gov.uk/info/200202/performance_and_spending/1079/payments_over_500,12-Jul-21,Childrens Services,EARLS GYMNASTICS CLUB,Childrens Services,5760,Grant Payments,2122P04_CR00108,96950
Sandwell Metropolitan Borough Council,http://www.sandwell.gov.uk/info/200202/performance_and_spending/1079/payments_over_500,15-Jul-21,Childrens Services,HEART OF ENGLAND COMMUNITY FOUNDATION,Childrens Services,3000,Grant Payments,2122P04_CR00109,133427
Sandwell Metropolitan Borough Council,http://www.sandwell.gov.uk/info/200202/performance_and_spending/1079/payments_over_500,09-Jul-21,Childrens Services,HELPING HANDS,Childrens Services,7778,Grant Payments,2122P04_CR00110,89364
Sandwell Metropolitan Borough Council,http://www.sandwell.gov.uk/info/200202/performance_and_spending/1079/payments_over_500,01-Jul-21,Childrens Services,LOCAL EDUCATION AND DEVELOPMENT,Childrens Services,598,Grant Payments,2122P04_CR00111,148259
Sandwell Metropolitan Borough Council,http://www.sandwell.gov.uk/info/200202/performance_and_spending/1079/payments_over_500,01-Jul-21,Childrens Services,LOCAL EDUCATION AND DEVELOPMENT,Childrens Services,598,Grant Payments,2122P04_CR00112,148259
Sandwell Metropolitan Borough Council,http://www.sandwell.gov.uk/info/200202/performance_and_spending/1079/payments_over_500,01-Jul-21,Childrens Services,LOCAL EDUCATION AND DEVELOPMENT,Childrens Services,672.75,Grant Payments,2122P04_CR00113,148259
Sandwell Metropolitan Borough Council,http://www.sandwell.gov.uk/info/200202/performance_and_spending/1079/payments_over_500,09-Jul-21,Childrens Services,LOCAL EDUCATION AND DEVELOPMENT,Childrens Services,598,Grant Payments,2122P04_CR00114,148259
Sandwell Metropolitan Borough Council,http://www.sandwell.gov.uk/info/200202/performance_and_spending/1079/payments_over_500,15-Jul-21,Childrens Services,LOCAL EDUCATION AND DEVELOPMENT,Childrens Services,1794,Grant Payments,2122P04_CR00115,148259
Sandwell Metropolitan Borough Council,http://www.sandwell.gov.uk/info/200202/performance_and_spending/1079/payments_over_500,01-Jul-21,Childrens Services,SANDWELL PARENTS FOR DISABLED CHILDREN,Childrens Services,6000,Grant Payments,2122P04_CR00116,70991
Sandwell Metropolitan Borough Council,http://www.sandwell.gov.uk/info/200202/performance_and_spending/1079/payments_over_500,09-Jul-21,Childrens Services,REDACTED PERSONAL DATA,Childrens Services,5751,Grant Payments,2122P04_CR00117,REDACTED PERSONAL DATA
Sandwell Metropolitan Borough Council,http://www.sandwell.gov.uk/info/200202/performance_and_spending/1079/payments_over_500,01-Jul-21,Childrens Services,LEARNING INTO EMPLOYMENT ACADEMY LTD,Childrens Services,525,Grant Payments,2122P04_CR00118,147427
Sandwell Metropolitan Borough Council,http://www.sandwell.gov.uk/info/200202/performance_and_spending/1079/payments_over_500,15-Jul-21,Childrens Services,LEARNING INTO EMPLOYMENT ACADEMY LTD,Childrens Services,2250,Grant Payments,2122P04_CR00119,147427
Sandwell Metropolitan Borough Council,http://www.sandwell.gov.uk/info/200202/performance_and_spending/1079/payments_over_500,16-Jul-21,Childrens Services,LEARNING INTO EMPLOYMENT ACADEMY LTD,Childrens Services,1125,Grant Payments,2122P04_CR00120,147427
Sandwell Metropolitan Borough Council,http://www.sandwell.gov.uk/info/200202/performance_and_spending/1079/payments_over_500,05-Jul-21,Childrens Services,PROSPECTS SERVICES LIMITED,Childrens Services,4089.92,Grant Payments,2122P04_CR00121,1721288
Sandwell Metropolitan Borough Council,http://www.sandwell.gov.uk/info/200202/performance_and_spending/1079/payments_over_500,09-Jul-21,Childrens Services,RB SPORTS ACTIVITIES LTD,Childrens Services,4000,Grant Payments,2122P04_CR00122,126163
Sandwell Metropolitan Borough Council,http://www.sandwell.gov.uk/info/200202/performance_and_spending/1079/payments_over_500,09-Jul-21,Childrens Services,TEMPLE MEADOW KIDS CLUB LTD,Childrens Services,4775,Grant Payments,2122P04_CR00123,106301
Sandwell Metropolitan Borough Council,http://www.sandwell.gov.uk/info/200202/performance_and_spending/1079/payments_over_500,01-Jul-21,Childrens Services,SANDWELL CITIZENS ADVICE BUREAUX,Childrens Services,560,Grants,2122P04_CR00124,1760899
Sandwell Metropolitan Borough Council,http://www.sandwell.gov.uk/info/200202/performance_and_spending/1079/payments_over_500,01-Jul-21,Childrens Services,SANDWELL CITIZENS ADVICE BUREAUX,Childrens Services,560,Grants,2122P04_CR00125,1760899
Sandwell Metropolitan Borough Council,http://www.sandwell.gov.uk/info/200202/performance_and_spending/1079/payments_over_500,20-Jul-21,Childrens Services,BANGLADESHI WOMEN'S ASSOCIATION LIMITED,Childrens Services,560,Grants,2122P04_CR00126,69648
Sandwell Metropolitan Borough Council,http://www.sandwell.gov.uk/info/200202/performance_and_spending/1079/payments_over_500,01-Jul-21,Childrens Services,CARLYLE LTD,Childrens Services,560,Grants,2122P04_CR00127,1507965
Sandwell Metropolitan Borough Council,http://www.sandwell.gov.uk/info/200202/performance_and_spending/1079/payments_over_500,01-Jul-21,Childrens Services,CARLYLE LTD,Childrens Services,560,Grants,2122P04_CR00128,1507965
Sandwell Metropolitan Borough Council,http://www.sandwell.gov.uk/info/200202/performance_and_spending/1079/payments_over_500,01-Jul-21,Childrens Services,CARLYLE LTD,Childrens Services,560,Grants,2122P04_CR00129,1507965
Sandwell Metropolitan Borough Council,http://www.sandwell.gov.uk/info/200202/performance_and_spending/1079/payments_over_500,07-Jul-21,Childrens Services,CARLYLE LTD,Childrens Services,941.16,Grants,2122P04_CR00130,1507965
Sandwell Metropolitan Borough Council,http://www.sandwell.gov.uk/info/200202/performance_and_spending/1079/payments_over_500,07-Jul-21,Childrens Services,CARLYLE LTD,Childrens Services,716.39,Grants,2122P04_CR00131,1507965
Sandwell Metropolitan Borough Council,http://www.sandwell.gov.uk/info/200202/performance_and_spending/1079/payments_over_500,07-Jul-21,Childrens Services,CARLYLE LTD,Childrens Services,716.39,Grants,2122P04_CR00132,1507965
Sandwell Metropolitan Borough Council,http://www.sandwell.gov.uk/info/200202/performance_and_spending/1079/payments_over_500,19-Jul-21,Childrens Services,CONFEDERATION OF BANGLADESHI ORGANISATIONS (CBO) LIMITED,Childrens Services,560,Grants,2122P04_CR00133,10034
Sandwell Metropolitan Borough Council,http://www.sandwell.gov.uk/info/200202/performance_and_spending/1079/payments_over_500,01-Jul-21,Childrens Services,CONWAY PACKING SERVICES LTD,Childrens Services,941.16,Grants,2122P04_CR00134,151356
Sandwell Metropolitan Borough Council,http://www.sandwell.gov.uk/info/200202/performance_and_spending/1079/payments_over_500,14-Jul-21,Childrens Services,CRYSTAL HR & PAYROLL LTD,Childrens Services,560,Grants,2122P04_CR00135,124658
Sandwell Metropolitan Borough Council,http://www.sandwell.gov.uk/info/200202/performance_and_spending/1079/payments_over_500,14-Jul-21,Childrens Services,DRYWALL STEEL SECTIONS LTD,Childrens Services,1010.75,Grants,2122P04_CR00136,132994
Sandwell Metropolitan Borough Council,http://www.sandwell.gov.uk/info/200202/performance_and_spending/1079/payments_over_500,20-Jul-21,Childrens Services,GREAT BRIDGE PRIMARY SCHOOL                                  01,Childrens Services,1000,Grants,2122P04_CR00137,32676
Sandwell Metropolitan Borough Council,http://www.sandwell.gov.uk/info/200202/performance_and_spending/1079/payments_over_500,20-Jul-21,Childrens Services,GREAT BRIDGE PRIMARY SCHOOL                                  01,Childrens Services,750,Grants,2122P04_CR00138,32676
Sandwell Metropolitan Borough Council,http://www.sandwell.gov.uk/info/200202/performance_and_spending/1079/payments_over_500,13-Jul-21,Childrens Services,HARGATE PRIMARY SCHOOL,Childrens Services,1000,Grants,2122P04_CR00139,4010481
Sandwell Metropolitan Borough Council,http://www.sandwell.gov.uk/info/200202/performance_and_spending/1079/payments_over_500,13-Jul-21,Childrens Services,HARGATE PRIMARY SCHOOL,Childrens Services,1000,Grants,2122P04_CR00140,4010481
Sandwell Metropolitan Borough Council,http://www.sandwell.gov.uk/info/200202/performance_and_spending/1079/payments_over_500,14-Jul-21,Childrens Services,JMB GLOBAL LTD,Childrens Services,560,Grants,2122P04_CR00141,152360
Sandwell Metropolitan Borough Council,http://www.sandwell.gov.uk/info/200202/performance_and_spending/1079/payments_over_500,06-Jul-21,Childrens Services,MIDLAND FORESTRY LIMITED,Childrens Services,1430,Grounds Maintenance & Improvements,2122P04_CR00142,45812
Sandwell Metropolitan Borough Council,http://www.sandwell.gov.uk/info/200202/performance_and_spending/1079/payments_over_500,01-Jul-21,Childrens Services,YORKSHIRE PURCHASING ORGANISATION,Childrens Services,511.24,Materials & Consumables,2122P04_CR00143,1098
Sandwell Metropolitan Borough Council,http://www.sandwell.gov.uk/info/200202/performance_and_spending/1079/payments_over_500,01-Jul-21,Childrens Services,CREATIVE ACADEMIES LTD,Childrens Services,3250,Materials & Consumables,2122P04_CR00144,116825
Sandwell Metropolitan Borough Council,http://www.sandwell.gov.uk/info/200202/performance_and_spending/1079/payments_over_500,01-Jul-21,Childrens Services,SANDWELL CHILDREN'S TRUST,Childrens Services,705568.1,Other Establishments,2122P04_CR00145,133302
Sandwell Metropolitan Borough Council,http://www.sandwell.gov.uk/info/200202/performance_and_spending/1079/payments_over_500,08-Jul-21,Childrens Services,SANDWELL CHILDREN'S TRUST,Childrens Services,5232939.38,Other Establishments,2122P04_CR00146,133302
Sandwell Metropolitan Borough Council,http://www.sandwell.gov.uk/info/200202/performance_and_spending/1079/payments_over_500,16-Jul-21,Childrens Services,BAKER ROSS LIMITED,Childrens Services,832.84,"Printing, Stationery & General Office Expenses",2122P04_CR00147,1269861
Sandwell Metropolitan Borough Council,http://www.sandwell.gov.uk/info/200202/performance_and_spending/1079/payments_over_500,01-Jul-21,Childrens Services,121 CARZ,Childrens Services,1243.63,Public Transport,2122P04_CR00148,116848
Sandwell Metropolitan Borough Council,http://www.sandwell.gov.uk/info/200202/performance_and_spending/1079/payments_over_500,01-Jul-21,Childrens Services,121 CARZ,Childrens Services,918,Public Transport,2122P04_CR00149,116848
Sandwell Metropolitan Borough Council,http://www.sandwell.gov.uk/info/200202/performance_and_spending/1079/payments_over_500,07-Jul-21,Childrens Services,BAINS TRAVEL,Childrens Services,819,Public Transport,2122P04_CR00150,6002298
Sandwell Metropolitan Borough Council,http://www.sandwell.gov.uk/info/200202/performance_and_spending/1079/payments_over_500,16-Jul-21,Childrens Services,BAINS TRAVEL,Childrens Services,819,Public Transport,2122P04_CR00151,6002298
Sandwell Metropolitan Borough Council,http://www.sandwell.gov.uk/info/200202/performance_and_spending/1079/payments_over_500,16-Jul-21,Childrens Services,BUTT TAXI,Childrens Services,4119.37,Public Transport,2122P04_CR00152,109306
Sandwell Metropolitan Borough Council,http://www.sandwell.gov.uk/info/200202/performance_and_spending/1079/payments_over_500,07-Jul-21,Childrens Services,BUTT TAXI,Childrens Services,4119.37,Public Transport,2122P04_CR00153,109306
Sandwell Metropolitan Borough Council,http://www.sandwell.gov.uk/info/200202/performance_and_spending/1079/payments_over_500,02-Jul-21,Childrens Services,CLASSIC CARS 1997,Childrens Services,53304.24,Public Transport,2122P04_CR00154,6005093
Sandwell Metropolitan Borough Council,http://www.sandwell.gov.uk/info/200202/performance_and_spending/1079/payments_over_500,07-Jul-21,Childrens Services,D J TRAVEL,Childrens Services,2869.38,Public Transport,2122P04_CR00155,96415
Sandwell Metropolitan Borough Council,http://www.sandwell.gov.uk/info/200202/performance_and_spending/1079/payments_over_500,07-Jul-21,Childrens Services,JPC TRAVEL SOLUTION,Childrens Services,45643,Public Transport,2122P04_CR00156,138533
Sandwell Metropolitan Borough Council,http://www.sandwell.gov.uk/info/200202/performance_and_spending/1079/payments_over_500,07-Jul-21,Childrens Services,TOH TAXIS,Childrens Services,1936.2,Public Transport,2122P04_CR00157,12250
Sandwell Metropolitan Borough Council,http://www.sandwell.gov.uk/info/200202/performance_and_spending/1079/payments_over_500,07-Jul-21,Childrens Services,TOH TAXIS,Childrens Services,1523.1,Public Transport,2122P04_CR00158,12250
Sandwell Metropolitan Borough Council,http://www.sandwell.gov.uk/info/200202/performance_and_spending/1079/payments_over_500,07-Jul-21,Childrens Services,TOH TAXIS,Childrens Services,1036.01,Public Transport,2122P04_CR00159,12250
Sandwell Metropolitan Borough Council,http://www.sandwell.gov.uk/info/200202/performance_and_spending/1079/payments_over_500,01-Jul-21,Childrens Services,UNITY TRAVEL,Childrens Services,2899,Public Transport,2122P04_CR00160,64986
Sandwell Metropolitan Borough Council,http://www.sandwell.gov.uk/info/200202/performance_and_spending/1079/payments_over_500,16-Jul-21,Childrens Services,UNITY TRAVEL,Childrens Services,2899,Public Transport,2122P04_CR00161,64986
Sandwell Metropolitan Borough Council,http://www.sandwell.gov.uk/info/200202/performance_and_spending/1079/payments_over_500,01-Jul-21,Childrens Services,UNITY TRAVEL,Childrens Services,814,Public Transport,2122P04_CR00162,64986
Sandwell Metropolitan Borough Council,http://www.sandwell.gov.uk/info/200202/performance_and_spending/1079/payments_over_500,07-Jul-21,Childrens Services,YELLOW CARS,Childrens Services,18619.82,Public Transport,2122P04_CR00163,116819
Sandwell Metropolitan Borough Council,http://www.sandwell.gov.uk/info/200202/performance_and_spending/1079/payments_over_500,01-Jul-21,Childrens Services,REDACTED PERSONAL DATA,Childrens Services,31826.64,Public Transport,2122P04_CR00164,REDACTED PERSONAL DATA
Sandwell Metropolitan Borough Council,http://www.sandwell.gov.uk/info/200202/performance_and_spending/1079/payments_over_500,07-Jul-21,Childrens Services,COUNTY CARS (2003) LIMITED,Childrens Services,34702.27,Public Transport,2122P04_CR00165,6002387
Sandwell Metropolitan Borough Council,http://www.sandwell.gov.uk/info/200202/performance_and_spending/1079/payments_over_500,07-Jul-21,Childrens Services,COUNTY CARS (2003) LIMITED,Childrens Services,81262.3,Public Transport,2122P04_CR00166,6002387
Sandwell Metropolitan Borough Council,http://www.sandwell.gov.uk/info/200202/performance_and_spending/1079/payments_over_500,07-Jul-21,Childrens Services,DROACH TRAVEL LTD,Childrens Services,18809.86,Public Transport,2122P04_CR00167,6002707
Sandwell Metropolitan Borough Council,http://www.sandwell.gov.uk/info/200202/performance_and_spending/1079/payments_over_500,01-Jul-21,Childrens Services,DROACH TRAVEL LTD,Childrens Services,18809.86,Public Transport,2122P04_CR00168,6002707
Sandwell Metropolitan Borough Council,http://www.sandwell.gov.uk/info/200202/performance_and_spending/1079/payments_over_500,07-Jul-21,Childrens Services,FIVE STAR TAXIS (DUDLEY) LTD,Childrens Services,73713.77,Public Transport,2122P04_CR00169,133542
Sandwell Metropolitan Borough Council,http://www.sandwell.gov.uk/info/200202/performance_and_spending/1079/payments_over_500,16-Jul-21,Childrens Services,GREEN DESTINATIONS LTD,Childrens Services,94043.41,Public Transport,2122P04_CR00170,109275
Sandwell Metropolitan Borough Council,http://www.sandwell.gov.uk/info/200202/performance_and_spending/1079/payments_over_500,01-Jul-21,Childrens Services,GREEN DESTINATIONS LTD,Childrens Services,1900.41,Public Transport,2122P04_CR00171,109275
Sandwell Metropolitan Borough Council,http://www.sandwell.gov.uk/info/200202/performance_and_spending/1079/payments_over_500,07-Jul-21,Childrens Services,LR'S TAXIS LIMITED,Childrens Services,12302.21,Public Transport,2122P04_CR00172,59047
Sandwell Metropolitan Borough Council,http://www.sandwell.gov.uk/info/200202/performance_and_spending/1079/payments_over_500,07-Jul-21,Childrens Services,ONE 4 YOU SERVICES LTD,Childrens Services,54194.12,Public Transport,2122P04_CR00173,81204
Sandwell Metropolitan Borough Council,http://www.sandwell.gov.uk/info/200202/performance_and_spending/1079/payments_over_500,01-Jul-21,Childrens Services,ONE 4 YOU SERVICES LTD,Childrens Services,1440,Public Transport,2122P04_CR00174,81204
Sandwell Metropolitan Borough Council,http://www.sandwell.gov.uk/info/200202/performance_and_spending/1079/payments_over_500,01-Jul-21,Childrens Services,WEST MIDLANDS ACCESSIBLE TRANSPORT LTD,Childrens Services,3501.77,Public Transport,2122P04_CR00175,1694764
Sandwell Metropolitan Borough Council,http://www.sandwell.gov.uk/info/200202/performance_and_spending/1079/payments_over_500,01-Jul-21,Childrens Services,WEST MIDLANDS ACCESSIBLE TRANSPORT LTD,Childrens Services,1305.48,Public Transport,2122P04_CR00176,1694764
Sandwell Metropolitan Borough Council,http://www.sandwell.gov.uk/info/200202/performance_and_spending/1079/payments_over_500,01-Jul-21,Childrens Services,WEST MIDLANDS TRAVEL LIMITED,Childrens Services,15984,Public Transport,2122P04_CR00177,1736688
Sandwell Metropolitan Borough Council,http://www.sandwell.gov.uk/info/200202/performance_and_spending/1079/payments_over_500,01-Jul-21,Childrens Services,WEST MIDLANDS TRAVEL LIMITED,Childrens Services,2097.9,Public Transport,2122P04_CR00178,1736688
Sandwell Metropolitan Borough Council,http://www.sandwell.gov.uk/info/200202/performance_and_spending/1079/payments_over_500,01-Jul-21,Childrens Services,WEST MIDLANDS TRAVEL LIMITED,Childrens Services,699.3,Public Transport,2122P04_CR00179,1736688
Sandwell Metropolitan Borough Council,http://www.sandwell.gov.uk/info/200202/performance_and_spending/1079/payments_over_500,26-Jul-21,Childrens Services,SANDWELL CHILDREN'S TRUST,Childrens Services,994.08,Rents,2122P04_CR00180,133302
Sandwell Metropolitan Borough Council,http://www.sandwell.gov.uk/info/200202/performance_and_spending/1079/payments_over_500,11-Jul-21,Childrens Services,CHUBB FIRE & SECURITY LIMITED t/a CHUBB ELECTRONIC SECURITY,Childrens Services,623.84,Security,2122P04_CR00181,81343
Sandwell Metropolitan Borough Council,http://www.sandwell.gov.uk/info/200202/performance_and_spending/1079/payments_over_500,01-Jul-21,Childrens Services,SITEWATCH FIRE AND SURVEILLANCE LIMITED,Childrens Services,652.56,Security,2122P04_CR00182,55288
Sandwell Metropolitan Borough Council,http://www.sandwell.gov.uk/info/200202/performance_and_spending/1079/payments_over_500,01-Jul-21,Childrens Services,SITEWATCH FIRE AND SURVEILLANCE LIMITED,Childrens Services,741.32,Security,2122P04_CR00183,55288
Sandwell Metropolitan Borough Council,http://www.sandwell.gov.uk/info/200202/performance_and_spending/1079/payments_over_500,01-Jul-21,Childrens Services,SITEWATCH FIRE AND SURVEILLANCE LIMITED,Childrens Services,553.09,Security,2122P04_CR00184,55288
Sandwell Metropolitan Borough Council,http://www.sandwell.gov.uk/info/200202/performance_and_spending/1079/payments_over_500,01-Jul-21,Childrens Services,THOMAS CHARLES FACILITIES & MAINTENANCE LTD,Childrens Services,1200,Security,2122P04_CR00185,114170
Sandwell Metropolitan Borough Council,http://www.sandwell.gov.uk/info/200202/performance_and_spending/1079/payments_over_500,01-Jul-21,Childrens Services,WATER PLUS SELECT LIMITED,Childrens Services,3726.86,Water Services,2122P04_CR00186,129644
Sandwell Metropolitan Borough Council,http://www.sandwell.gov.uk/info/200202/performance_and_spending/1079/payments_over_500,13-Jul-21,Childrens Services,BRISTNALL HALL ACADEMY,Childrens Services,16574,Grant Payments,2122P04_CR00187,107471
Sandwell Metropolitan Borough Council,http://www.sandwell.gov.uk/info/200202/performance_and_spending/1079/payments_over_500,13-Jul-21,Childrens Services,CENTRAL RSA ACADEMIES TRUST,Childrens Services,24220,Grant Payments,2122P04_CR00188,60952
Sandwell Metropolitan Borough Council,http://www.sandwell.gov.uk/info/200202/performance_and_spending/1079/payments_over_500,13-Jul-21,Childrens Services,CORNGREAVES ACADEMY,Childrens Services,4060,Grant Payments,2122P04_CR00189,112862
Sandwell Metropolitan Borough Council,http://www.sandwell.gov.uk/info/200202/performance_and_spending/1079/payments_over_500,13-Jul-21,Childrens Services,DEVONSHIRE INFANTS ACADEMY,Childrens Services,3378,Grant Payments,2122P04_CR00190,118366
Sandwell Metropolitan Borough Council,http://www.sandwell.gov.uk/info/200202/performance_and_spending/1079/payments_over_500,13-Jul-21,Childrens Services,DEVONSHIRE JUNIOR ACADEMY,Childrens Services,4918,Grant Payments,2122P04_CR00191,118367
Sandwell Metropolitan Borough Council,http://www.sandwell.gov.uk/info/200202/performance_and_spending/1079/payments_over_500,13-Jul-21,Childrens Services,GEORGE BETTS PRIMARY ACADEMY,Childrens Services,9596,Grant Payments,2122P04_CR00192,113420
Sandwell Metropolitan Borough Council,http://www.sandwell.gov.uk/info/200202/performance_and_spending/1079/payments_over_500,13-Jul-21,Childrens Services,GEORGE SALTER COLLEGIATE ACADEMY ORMISTON ACADEMIES TRUST,Childrens Services,24466,Grant Payments,2122P04_CR00193,1217798
Sandwell Metropolitan Borough Council,http://www.sandwell.gov.uk/info/200202/performance_and_spending/1079/payments_over_500,13-Jul-21,Childrens Services,HATELEY HEATH PRIMARY ACADEMY                                02,Childrens Services,8680,Grant Payments,2122P04_CR00194,61000
Sandwell Metropolitan Borough Council,http://www.sandwell.gov.uk/info/200202/performance_and_spending/1079/payments_over_500,13-Jul-21,Childrens Services,HOLYHEAD PRIMARY ACADEMY           02,Childrens Services,5952,Grant Payments,2122P04_CR00195,61005
Sandwell Metropolitan Borough Council,http://www.sandwell.gov.uk/info/200202/performance_and_spending/1079/payments_over_500,13-Jul-21,Childrens Services,JUBILEE PARK ACADEMY TRUST,Childrens Services,6178,Grant Payments,2122P04_CR00196,113377
Sandwell Metropolitan Borough Council,http://www.sandwell.gov.uk/info/200202/performance_and_spending/1079/payments_over_500,13-Jul-21,Childrens Services,LIGHTWOODS PRIMARY ACADEMY .,Childrens Services,2556,Grant Payments,2122P04_CR00197,61012
Sandwell Metropolitan Borough Council,http://www.sandwell.gov.uk/info/200202/performance_and_spending/1079/payments_over_500,13-Jul-21,Childrens Services,MESTY CROFT ACADEMY,Childrens Services,7474,Grant Payments,2122P04_CR00198,106208
Sandwell Metropolitan Borough Council,http://www.sandwell.gov.uk/info/200202/performance_and_spending/1079/payments_over_500,13-Jul-21,Childrens Services,NEWTOWN PRIMARY ACADEMY                                             02,Childrens Services,6564,Grant Payments,2122P04_CR00199,61034
Sandwell Metropolitan Borough Council,http://www.sandwell.gov.uk/info/200202/performance_and_spending/1079/payments_over_500,13-Jul-21,Childrens Services,OCKER HILL ACADEMY,Childrens Services,4516,Grant Payments,2122P04_CR00200,113691
Sandwell Metropolitan Borough Council,http://www.sandwell.gov.uk/info/200202/performance_and_spending/1079/payments_over_500,13-Jul-21,Childrens Services,OLDBURY ACADEMY,Childrens Services,36332,Grant Payments,2122P04_CR00201,69241
Sandwell Metropolitan Borough Council,http://www.sandwell.gov.uk/info/200202/performance_and_spending/1079/payments_over_500,13-Jul-21,Childrens Services,ORMISTON FORGE ACADEMY,Childrens Services,32566,Grant Payments,2122P04_CR00202,60941
Sandwell Metropolitan Borough Council,http://www.sandwell.gov.uk/info/200202/performance_and_spending/1079/payments_over_500,13-Jul-21,Childrens Services,ORMISTON SANDWELL COMMUNITY ACADEMY                                           01,Childrens Services,20564,Grant Payments,2122P04_CR00203,60950
Sandwell Metropolitan Borough Council,http://www.sandwell.gov.uk/info/200202/performance_and_spending/1079/payments_over_500,13-Jul-21,Childrens Services,Q3 ACADEMY LANGLEY,Childrens Services,17028,Grant Payments,2122P04_CR00204,128009
Sandwell Metropolitan Borough Council,http://www.sandwell.gov.uk/info/200202/performance_and_spending/1079/payments_over_500,13-Jul-21,Childrens Services,Q3 ACADEMY TIPTON,Childrens Services,34530,Grant Payments,2122P04_CR00205,112047
Sandwell Metropolitan Borough Council,http://www.sandwell.gov.uk/info/200202/performance_and_spending/1079/payments_over_500,13-Jul-21,Childrens Services,QUAERERE ACADEMY TRUST                                                                 02,Childrens Services,11272,Grant Payments,2122P04_CR00206,60939
Sandwell Metropolitan Borough Council,http://www.sandwell.gov.uk/info/200202/performance_and_spending/1079/payments_over_500,13-Jul-21,Childrens Services,SHIRELAND COLLEGIATE ACADEMY                                           03,Childrens Services,32638,Grant Payments,2122P04_CR00207,60947
Sandwell Metropolitan Borough Council,http://www.sandwell.gov.uk/info/200202/performance_and_spending/1079/payments_over_500,13-Jul-21,Childrens Services,SHIRELAND COLLEGIATE ACADEMY TRUST T/A TAMESIDE,Childrens Services,18320,Grant Payments,2122P04_CR00208,61064
Sandwell Metropolitan Borough Council,http://www.sandwell.gov.uk/info/200202/performance_and_spending/1079/payments_over_500,13-Jul-21,Childrens Services,SHIRELAND HALL PRIMARY ACADEMY,Childrens Services,13300,Grant Payments,2122P04_CR00209,15209
Sandwell Metropolitan Borough Council,http://www.sandwell.gov.uk/info/200202/performance_and_spending/1079/payments_over_500,13-Jul-21,Childrens Services,SILVERTREES ACADEMY TRUST,Childrens Services,5792,Grant Payments,2122P04_CR00210,113719
Sandwell Metropolitan Borough Council,http://www.sandwell.gov.uk/info/200202/performance_and_spending/1079/payments_over_500,13-Jul-21,Childrens Services,ST CATHERINE OF SIENA MULTI ACADEMY COMPANY                       02,Childrens Services,2450,Grant Payments,2122P04_CR00211,61052
Sandwell Metropolitan Borough Council,http://www.sandwell.gov.uk/info/200202/performance_and_spending/1079/payments_over_500,13-Jul-21,Childrens Services,ST FRANCIS XAVIER CATHOLIC PRIMARY,Childrens Services,2608,Grant Payments,2122P04_CR00212,61051
Sandwell Metropolitan Borough Council,http://www.sandwell.gov.uk/info/200202/performance_and_spending/1079/payments_over_500,13-Jul-21,Childrens Services,ST JOHNS C OF E PRIMARY ACADEMY,Childrens Services,5250,Grant Payments,2122P04_CR00213,61056
Sandwell Metropolitan Borough Council,http://www.sandwell.gov.uk/info/200202/performance_and_spending/1079/payments_over_500,13-Jul-21,Childrens Services,ST PAULS C OF E ACADEMY,Childrens Services,3290,Grant Payments,2122P04_CR00214,118126
Sandwell Metropolitan Borough Council,http://www.sandwell.gov.uk/info/200202/performance_and_spending/1079/payments_over_500,13-Jul-21,Childrens Services,ST PHILIPS CATHOLIC PRIMARY                           02,Childrens Services,4918,Grant Payments,2122P04_CR00215,61063
Sandwell Metropolitan Borough Council,http://www.sandwell.gov.uk/info/200202/performance_and_spending/1079/payments_over_500,13-Jul-21,Childrens Services,THE RIVERS MULTI ACADEMY TRUST,Childrens Services,22998,Grant Payments,2122P04_CR00216,61014
Sandwell Metropolitan Borough Council,http://www.sandwell.gov.uk/info/200202/performance_and_spending/1079/payments_over_500,13-Jul-21,Childrens Services,VICTORIA PARK PRIMARY ACADEMY,Childrens Services,15226,Grant Payments,2122P04_CR00217,106209
Sandwell Metropolitan Borough Council,http://www.sandwell.gov.uk/info/200202/performance_and_spending/1079/payments_over_500,13-Jul-21,Childrens Services,WEDNESBURY OAK ACADEMY,Childrens Services,10538,Grant Payments,2122P04_CR00218,116882
Sandwell Metropolitan Borough Council,http://www.sandwell.gov.uk/info/200202/performance_and_spending/1079/payments_over_500,13-Jul-21,Childrens Services,WEST BROMWICH COLLEGIATE ACADEMY,Childrens Services,7560,Grant Payments,2122P04_CR00219,137780
Sandwell Metropolitan Borough Council,http://www.sandwell.gov.uk/info/200202/performance_and_spending/1079/payments_over_500,13-Jul-21,Childrens Services,WODENSBOROUGH ORMISTON ACADEMY,Childrens Services,32670,Grant Payments,2122P04_CR00220,115040
Sandwell Metropolitan Borough Council,http://www.sandwell.gov.uk/info/200202/performance_and_spending/1079/payments_over_500,13-Jul-21,Childrens Services,WOOD GREEN ACADEMY                                    01,Childrens Services,23224,Grant Payments,2122P04_CR00221,100125
Sandwell Metropolitan Borough Council,http://www.sandwell.gov.uk/info/200202/performance_and_spending/1079/payments_over_500,13-Jul-21,Childrens Services,HEALTH FUTURES UTC LIMITED,Childrens Services,3378,Grant Payments,2122P04_CR00222,128174
Sandwell Metropolitan Borough Council,http://www.sandwell.gov.uk/info/200202/performance_and_spending/1079/payments_over_500,13-Jul-21,Childrens Services,OUR LADY AND ST HUBERTS CATHOLIC PRIMARY SCHOOL                                      02,Childrens Services,4200,Grant Payments,2122P04_CR00223,61053
Sandwell Metropolitan Borough Council,http://www.sandwell.gov.uk/info/200202/performance_and_spending/1079/payments_over_500,13-Jul-21,Childrens Services,PERRYFIELDS HIGH SCHOOL                                             02,Childrens Services,13510,Grant Payments,2122P04_CR00224,60946
Sandwell Metropolitan Borough Council,http://www.sandwell.gov.uk/info/200202/performance_and_spending/1079/payments_over_500,13-Jul-21,Childrens Services,SANDWELL ACADEMY TRUST LTD.,Childrens Services,16888,Grant Payments,2122P04_CR00225,126137
Sandwell Metropolitan Borough Council,http://www.sandwell.gov.uk/info/200202/performance_and_spending/1079/payments_over_500,13-Jul-21,Childrens Services,SHENSTONE LODGE SCHOOL                                             01,Childrens Services,3658,Grant Payments,2122P04_CR00226,22995
Sandwell Metropolitan Borough Council,http://www.sandwell.gov.uk/info/200202/performance_and_spending/1079/payments_over_500,13-Jul-21,Childrens Services,SHIRELAND TECHNOLOGY PRIMARY SCHOOL,Childrens Services,2450,Grant Payments,2122P04_CR00227,148598
Sandwell Metropolitan Borough Council,http://www.sandwell.gov.uk/info/200202/performance_and_spending/1079/payments_over_500,13-Jul-21,Childrens Services,ST MARYS RC PRIMARY SCHOOL                                    02,Childrens Services,2748,Grant Payments,2122P04_CR00228,61060
Sandwell Metropolitan Borough Council,http://www.sandwell.gov.uk/info/200202/performance_and_spending/1079/payments_over_500,13-Jul-21,Childrens Services,STUART BATHURST CATHOLIC HIGH SCHOOL                  02,Childrens Services,16924,Grant Payments,2122P04_CR00229,60949
Sandwell Metropolitan Borough Council,http://www.sandwell.gov.uk/info/200202/performance_and_spending/1079/payments_over_500,13-Jul-21,Childrens Services,TIMBERTREE (ACADEMY) PRIMARY SCHOOL,Childrens Services,5022,Grant Payments,2122P04_CR00230,112804
Sandwell Metropolitan Borough Council,http://www.sandwell.gov.uk/info/200202/performance_and_spending/1079/payments_over_500,13-Jul-21,Childrens Services,CHRIST CHURCH CE PRIMARY                                    02,Childrens Services,7456,Schools Support Services,2122P04_CR00231,60978
Sandwell Metropolitan Borough Council,http://www.sandwell.gov.uk/info/200202/performance_and_spending/1079/payments_over_500,13-Jul-21,Childrens Services,HOLY NAME CATHOLIC PRIMARY,Childrens Services,2380,Schools Support Services,2122P04_CR00232,92683
Sandwell Metropolitan Borough Council,http://www.sandwell.gov.uk/info/200202/performance_and_spending/1079/payments_over_500,13-Jul-21,Childrens Services,HOLY TRINITY CE PRIMARY                                    02,Childrens Services,9280,Schools Support Services,2122P04_CR00233,61004
Sandwell Metropolitan Borough Council,http://www.sandwell.gov.uk/info/200202/performance_and_spending/1079/payments_over_500,13-Jul-21,Childrens Services,PENNYHILL PRIMARY,Childrens Services,17414,Schools Support Services,2122P04_CR00234,73125
Sandwell Metropolitan Borough Council,http://www.sandwell.gov.uk/info/200202/performance_and_spending/1079/payments_over_500,13-Jul-21,Childrens Services,PHOENIX COLLEGIATE COLLEGE,Childrens Services,40645,Schools Support Services,2122P04_CR00235,95444
Sandwell Metropolitan Borough Council,http://www.sandwell.gov.uk/info/200202/performance_and_spending/1079/payments_over_500,13-Jul-21,Childrens Services,THE PRIORY PRIMARY                       02,Childrens Services,11444,Schools Support Services,2122P04_CR00236,61066
Sandwell Metropolitan Borough Council,http://www.sandwell.gov.uk/info/200202/performance_and_spending/1079/payments_over_500,13-Jul-21,Childrens Services,TIVIDALE COMMUNITY PRIMARY                              02,Childrens Services,5040,Schools Support Services,2122P04_CR00237,61069
Sandwell Metropolitan Borough Council,http://www.sandwell.gov.uk/info/200202/performance_and_spending/1079/payments_over_500,13-Jul-21,Childrens Services,UPLANDS MANOR PRIMARY               02,Childrens Services,22330,Schools Support Services,2122P04_CR00238,61071
Sandwell Metropolitan Borough Council,http://www.sandwell.gov.uk/info/200202/performance_and_spending/1079/payments_over_500,13-Jul-21,Childrens Services,REDACTED PERSONAL DATA,Childrens Services,7000,Schools Support Services,2122P04_CR00239,REDACTED PERSONAL DATA
Sandwell Metropolitan Borough Council,http://www.sandwell.gov.uk/info/200202/performance_and_spending/1079/payments_over_500,13-Jul-21,Childrens Services,ABBEY INFANT SCHOOL                                             02,Childrens Services,3640,Schools Support Services,2122P04_CR00240,60959
Sandwell Metropolitan Borough Council,http://www.sandwell.gov.uk/info/200202/performance_and_spending/1079/payments_over_500,13-Jul-21,Childrens Services,ABBEY JUNIOR SCHOOL                                  02,Childrens Services,5076,Schools Support Services,2122P04_CR00241,60961
Sandwell Metropolitan Borough Council,http://www.sandwell.gov.uk/info/200202/performance_and_spending/1079/payments_over_500,13-Jul-21,Childrens Services,ALBERT PRITCHARD INFANT SCHOOL                                02,Childrens Services,4830,Schools Support Services,2122P04_CR00242,60962
Sandwell Metropolitan Borough Council,http://www.sandwell.gov.uk/info/200202/performance_and_spending/1079/payments_over_500,13-Jul-21,Childrens Services,ALL SAINTS CE PRIMARY SCHOOL                                         02,Childrens Services,5446,Schools Support Services,2122P04_CR00243,60964
Sandwell Metropolitan Borough Council,http://www.sandwell.gov.uk/info/200202/performance_and_spending/1079/payments_over_500,13-Jul-21,Childrens Services,ANNIE LENNARD INFANT SCHOOL,Childrens Services,3694,Schools Support Services,2122P04_CR00244,60966
Sandwell Metropolitan Borough Council,http://www.sandwell.gov.uk/info/200202/performance_and_spending/1079/payments_over_500,13-Jul-21,Childrens Services,BEARWOOD PRIMARY SCHOOL                                   02,Childrens Services,8452,Schools Support Services,2122P04_CR00245,60967
Sandwell Metropolitan Borough Council,http://www.sandwell.gov.uk/info/200202/performance_and_spending/1079/payments_over_500,13-Jul-21,Childrens Services,BLACKHEATH PRIMARY SCHOOL                            02,Childrens Services,11376,Schools Support Services,2122P04_CR00246,60968
Sandwell Metropolitan Borough Council,http://www.sandwell.gov.uk/info/200202/performance_and_spending/1079/payments_over_500,13-Jul-21,Childrens Services,BLEAKHOUSE JUNIOR SCHOOL                                02,Childrens Services,7630,Schools Support Services,2122P04_CR00247,60969
Sandwell Metropolitan Borough Council,http://www.sandwell.gov.uk/info/200202/performance_and_spending/1079/payments_over_500,13-Jul-21,Childrens Services,BRANDHALL PRIMARY SCHOOL                                          02,Childrens Services,11412,Schools Support Services,2122P04_CR00248,60971
Sandwell Metropolitan Borough Council,http://www.sandwell.gov.uk/info/200202/performance_and_spending/1079/payments_over_500,13-Jul-21,Childrens Services,BRICKHOUSE PRIMARY SCHOOL                                             02,Childrens Services,5250,Schools Support Services,2122P04_CR00249,60973
Sandwell Metropolitan Borough Council,http://www.sandwell.gov.uk/info/200202/performance_and_spending/1079/payments_over_500,13-Jul-21,Childrens Services,BURNT TREE PRIMARY SCHOOL                                             01,Childrens Services,9590,Schools Support Services,2122P04_CR00250,60974
Sandwell Metropolitan Borough Council,http://www.sandwell.gov.uk/info/200202/performance_and_spending/1079/payments_over_500,13-Jul-21,Childrens Services,CAPE PRIMARY SCHOOL,Childrens Services,13650,Schools Support Services,2122P04_CR00251,1672537
Sandwell Metropolitan Borough Council,http://www.sandwell.gov.uk/info/200202/performance_and_spending/1079/payments_over_500,13-Jul-21,Childrens Services,CAUSEWAY GREEN PRIMARY SCHOOL                           02,Childrens Services,8996,Schools Support Services,2122P04_CR00252,60976
Sandwell Metropolitan Borough Council,http://www.sandwell.gov.uk/info/200202/performance_and_spending/1079/payments_over_500,13-Jul-21,Childrens Services,CROCKETTS LANE COMMUNITY PRIMARY SCHOOL                           02,Childrens Services,7682,Schools Support Services,2122P04_CR00253,60980
Sandwell Metropolitan Borough Council,http://www.sandwell.gov.uk/info/200202/performance_and_spending/1079/payments_over_500,13-Jul-21,Childrens Services,EATON VALLEY PRIMARY SCHOOL,Childrens Services,7325,Schools Support Services,2122P04_CR00254,60981
Sandwell Metropolitan Borough Council,http://www.sandwell.gov.uk/info/200202/performance_and_spending/1079/payments_over_500,13-Jul-21,Childrens Services,FERNDALE PRIMARY SCHOOL                                02,Childrens Services,8540,Schools Support Services,2122P04_CR00255,60987
Sandwell Metropolitan Borough Council,http://www.sandwell.gov.uk/info/200202/performance_and_spending/1079/payments_over_500,13-Jul-21,Childrens Services,GALTON VALLEY PRIMARY SCHOOL                                             02,Childrens Services,9592,Schools Support Services,2122P04_CR00256,73124
Sandwell Metropolitan Borough Council,http://www.sandwell.gov.uk/info/200202/performance_and_spending/1079/payments_over_500,13-Jul-21,Childrens Services,GLEBEFIELDS PRIMARY SCHOOL                             02,Childrens Services,14230,Schools Support Services,2122P04_CR00257,60989
Sandwell Metropolitan Borough Council,http://www.sandwell.gov.uk/info/200202/performance_and_spending/1079/payments_over_500,13-Jul-21,Childrens Services,GRACE MARY PRIMARY SCHOOL                                         02,Childrens Services,5232,Schools Support Services,2122P04_CR00258,60991
Sandwell Metropolitan Borough Council,http://www.sandwell.gov.uk/info/200202/performance_and_spending/1079/payments_over_500,13-Jul-21,Childrens Services,GREAT BRIDGE PRIMARY SCHOOL                          02,Childrens Services,8680,Schools Support Services,2122P04_CR00259,42484
Sandwell Metropolitan Borough Council,http://www.sandwell.gov.uk/info/200202/performance_and_spending/1079/payments_over_500,13-Jul-21,Childrens Services,GROVE VALE PRIMARY SCHOOL,Childrens Services,2940,Schools Support Services,2122P04_CR00260,60993
Sandwell Metropolitan Borough Council,http://www.sandwell.gov.uk/info/200202/performance_and_spending/1079/payments_over_500,13-Jul-21,Childrens Services,HALL GREEN PRIMARY SCHOOL                                             02,Childrens Services,11550,Schools Support Services,2122P04_CR00261,60996
Sandwell Metropolitan Borough Council,http://www.sandwell.gov.uk/info/200202/performance_and_spending/1079/payments_over_500,13-Jul-21,Childrens Services,HAMSTEAD INFANT SCHOOL                                  02,Childrens Services,3168,Schools Support Services,2122P04_CR00262,60997
Sandwell Metropolitan Borough Council,http://www.sandwell.gov.uk/info/200202/performance_and_spending/1079/payments_over_500,13-Jul-21,Childrens Services,HAMSTEAD JUNIOR SCHOOL                                   02,Childrens Services,5076,Schools Support Services,2122P04_CR00263,60998
Sandwell Metropolitan Borough Council,http://www.sandwell.gov.uk/info/200202/performance_and_spending/1079/payments_over_500,13-Jul-21,Childrens Services,HANBURY PRIMARY SCHOOL                                                             01,Childrens Services,8892,Schools Support Services,2122P04_CR00264,60995
Sandwell Metropolitan Borough Council,http://www.sandwell.gov.uk/info/200202/performance_and_spending/1079/payments_over_500,13-Jul-21,Childrens Services,HARGATE PRIMARY SCHOOL                                   02,Childrens Services,8890,Schools Support Services,2122P04_CR00265,60999
Sandwell Metropolitan Borough Council,http://www.sandwell.gov.uk/info/200202/performance_and_spending/1079/payments_over_500,13-Jul-21,Childrens Services,HARVILLS HAWTHORN PRIMARY SCHOOL                             01,Childrens Services,8750,Schools Support Services,2122P04_CR00266,1782074
Sandwell Metropolitan Borough Council,http://www.sandwell.gov.uk/info/200202/performance_and_spending/1079/payments_over_500,13-Jul-21,Childrens Services,HIGHFIELDS PRIMARY SCHOOL                                01,Childrens Services,6492,Schools Support Services,2122P04_CR00267,1782118
Sandwell Metropolitan Borough Council,http://www.sandwell.gov.uk/info/200202/performance_and_spending/1079/payments_over_500,13-Jul-21,Childrens Services,HOLLY LODGE FOUNDATION HIGH SCHOOL,Childrens Services,31604,Schools Support Services,2122P04_CR00268,60942
Sandwell Metropolitan Borough Council,http://www.sandwell.gov.uk/info/200202/performance_and_spending/1079/payments_over_500,13-Jul-21,Childrens Services,JOSEPH TURNER PRIMARY SCHOOL                               02,Childrens Services,11882,Schools Support Services,2122P04_CR00269,61006
Sandwell Metropolitan Borough Council,http://www.sandwell.gov.uk/info/200202/performance_and_spending/1079/payments_over_500,13-Jul-21,Childrens Services,KING GEORGE V PRIMARY SCHOOL                                             02,Childrens Services,5916,Schools Support Services,2122P04_CR00270,61009
Sandwell Metropolitan Borough Council,http://www.sandwell.gov.uk/info/200202/performance_and_spending/1079/payments_over_500,13-Jul-21,Childrens Services,LANGLEY PRIMARY SCHOOL                                 02,Childrens Services,10780,Schools Support Services,2122P04_CR00271,61011
Sandwell Metropolitan Borough Council,http://www.sandwell.gov.uk/info/200202/performance_and_spending/1079/payments_over_500,13-Jul-21,Childrens Services,LODGE PRIMARY SCHOOL                                     02,Childrens Services,9012,Schools Support Services,2122P04_CR00272,61015
Sandwell Metropolitan Borough Council,http://www.sandwell.gov.uk/info/200202/performance_and_spending/1079/payments_over_500,13-Jul-21,Childrens Services,LYNG PRIMARY SCHOOL                                        02,Childrens Services,8732,Schools Support Services,2122P04_CR00273,61026
Sandwell Metropolitan Borough Council,http://www.sandwell.gov.uk/info/200202/performance_and_spending/1079/payments_over_500,13-Jul-21,Childrens Services,MOAT FARM INFANTS SCHOOL                                     02,Childrens Services,6948,Schools Support Services,2122P04_CR00274,61031
Sandwell Metropolitan Borough Council,http://www.sandwell.gov.uk/info/200202/performance_and_spending/1079/payments_over_500,13-Jul-21,Childrens Services,MOAT FARM JUNIOR SCHOOL                                    02,Childrens Services,9154,Schools Support Services,2122P04_CR00275,61032
Sandwell Metropolitan Borough Council,http://www.sandwell.gov.uk/info/200202/performance_and_spending/1079/payments_over_500,13-Jul-21,Childrens Services,MOORLANDS PRIMARY SCHOOL                                 01,Childrens Services,4884,Schools Support Services,2122P04_CR00276,4036544
Sandwell Metropolitan Borough Council,http://www.sandwell.gov.uk/info/200202/performance_and_spending/1079/payments_over_500,13-Jul-21,Childrens Services,OAKHAM PRIMARY SCHOOL                                         02,Childrens Services,5198,Schools Support Services,2122P04_CR00277,61035
Sandwell Metropolitan Borough Council,http://www.sandwell.gov.uk/info/200202/performance_and_spending/1079/payments_over_500,13-Jul-21,Childrens Services,OCKER HILL INFANT SCHOOL                                    02,Childrens Services,3044,Schools Support Services,2122P04_CR00278,61036
Sandwell Metropolitan Borough Council,http://www.sandwell.gov.uk/info/200202/performance_and_spending/1079/payments_over_500,13-Jul-21,Childrens Services,OLD HILL PRIMARY SCHOOL                                  02,Childrens Services,4970,Schools Support Services,2122P04_CR00279,61038
Sandwell Metropolitan Borough Council,http://www.sandwell.gov.uk/info/200202/performance_and_spending/1079/payments_over_500,13-Jul-21,Childrens Services,OLD PARK PRIMARY SCHOOL                                           02,Childrens Services,7573,Schools Support Services,2122P04_CR00280,61039
Sandwell Metropolitan Borough Council,http://www.sandwell.gov.uk/info/200202/performance_and_spending/1079/payments_over_500,13-Jul-21,Childrens Services,ORCHARD SCHOOL                                                          02,Childrens Services,3938,Schools Support Services,2122P04_CR00281,60956
Sandwell Metropolitan Borough Council,http://www.sandwell.gov.uk/info/200202/performance_and_spending/1079/payments_over_500,13-Jul-21,Childrens Services,PARK HILL PRIMARY SCHOOL                                             02,Childrens Services,3710,Schools Support Services,2122P04_CR00282,61040
Sandwell Metropolitan Borough Council,http://www.sandwell.gov.uk/info/200202/performance_and_spending/1079/payments_over_500,13-Jul-21,Childrens Services,PERRYFIELDS PRIMARY SCHOOL                                       02,Childrens Services,5128,Schools Support Services,2122P04_CR00283,61042
Sandwell Metropolitan Borough Council,http://www.sandwell.gov.uk/info/200202/performance_and_spending/1079/payments_over_500,13-Jul-21,Childrens Services,REDDAL HILL PRIMARY SCHOOL             02,Childrens Services,10360,Schools Support Services,2122P04_CR00284,61043
Sandwell Metropolitan Borough Council,http://www.sandwell.gov.uk/info/200202/performance_and_spending/1079/payments_over_500,13-Jul-21,Childrens Services,ROOD END PRIMARY SCHOOL                                         02,Childrens Services,12654,Schools Support Services,2122P04_CR00285,61044
Sandwell Metropolitan Borough Council,http://www.sandwell.gov.uk/info/200202/performance_and_spending/1079/payments_over_500,13-Jul-21,Childrens Services,ROUNDS GREEN PRIMARY SCHOOL                                         02,Childrens Services,10233,Schools Support Services,2122P04_CR00286,61045
Sandwell Metropolitan Borough Council,http://www.sandwell.gov.uk/info/200202/performance_and_spending/1079/payments_over_500,13-Jul-21,Childrens Services,ROWLEY HALL PRIMARY SCHOOL                             02,Childrens Services,14508,Schools Support Services,2122P04_CR00287,61046
Sandwell Metropolitan Borough Council,http://www.sandwell.gov.uk/info/200202/performance_and_spending/1079/payments_over_500,13-Jul-21,Childrens Services,RYDERS GREEN PRIMARY SCHOOL                                           02,Childrens Services,7578,Schools Support Services,2122P04_CR00288,61047
Sandwell Metropolitan Borough Council,http://www.sandwell.gov.uk/info/200202/performance_and_spending/1079/payments_over_500,13-Jul-21,Childrens Services,SACRED HEART PRIMARY SCHOOL                                             01,Childrens Services,10073,Schools Support Services,2122P04_CR00289,61048
Sandwell Metropolitan Borough Council,http://www.sandwell.gov.uk/info/200202/performance_and_spending/1079/payments_over_500,13-Jul-21,Childrens Services,SPRINGFIELD PRIMARY SCHOOL                                       02,Childrens Services,9694,Schools Support Services,2122P04_CR00290,61050
Sandwell Metropolitan Borough Council,http://www.sandwell.gov.uk/info/200202/performance_and_spending/1079/payments_over_500,13-Jul-21,Childrens Services,ST JAMES C OF E PRIMARY SCHOOL,Childrens Services,13458,Schools Support Services,2122P04_CR00291,61054
Sandwell Metropolitan Borough Council,http://www.sandwell.gov.uk/info/200202/performance_and_spending/1079/payments_over_500,13-Jul-21,Childrens Services,ST JOHN BOSCO RC PRIMARY SCHOOL                             02,Childrens Services,2940,Schools Support Services,2122P04_CR00292,61055
Sandwell Metropolitan Borough Council,http://www.sandwell.gov.uk/info/200202/performance_and_spending/1079/payments_over_500,13-Jul-21,Childrens Services,ST MARGARETS C OF E PRIMARY SCHOOL,Childrens Services,1400,Schools Support Services,2122P04_CR00293,61057
Sandwell Metropolitan Borough Council,http://www.sandwell.gov.uk/info/200202/performance_and_spending/1079/payments_over_500,13-Jul-21,Childrens Services,ST MARTINS CE PRIMARY SCHOOL,Childrens Services,2520,Schools Support Services,2122P04_CR00294,61058
Sandwell Metropolitan Borough Council,http://www.sandwell.gov.uk/info/200202/performance_and_spending/1079/payments_over_500,13-Jul-21,Childrens Services,ST MARY MAGDALENE CE PRIMARY SCHOOL                                    01,Childrens Services,2608,Schools Support Services,2122P04_CR00295,61059
Sandwell Metropolitan Borough Council,http://www.sandwell.gov.uk/info/200202/performance_and_spending/1079/payments_over_500,13-Jul-21,Childrens Services,ST MATTHEWS CE PRIMARY SCHOOL                                             02,Childrens Services,8838,Schools Support Services,2122P04_CR00296,61061
Sandwell Metropolitan Borough Council,http://www.sandwell.gov.uk/info/200202/performance_and_spending/1079/payments_over_500,13-Jul-21,Childrens Services,ST MICHAELS CE HIGH SCHOOL,Childrens Services,24344,Schools Support Services,2122P04_CR00297,60948
Sandwell Metropolitan Borough Council,http://www.sandwell.gov.uk/info/200202/performance_and_spending/1079/payments_over_500,13-Jul-21,Childrens Services,TEMPLE MEADOW PRIMARY SCHOOL                                 02,Childrens Services,9730,Schools Support Services,2122P04_CR00298,61065
Sandwell Metropolitan Borough Council,http://www.sandwell.gov.uk/info/200202/performance_and_spending/1079/payments_over_500,13-Jul-21,Childrens Services,TIPTON GREEN JUNIOR SCHOOL,Childrens Services,8908,Schools Support Services,2122P04_CR00299,61068
Sandwell Metropolitan Borough Council,http://www.sandwell.gov.uk/info/200202/performance_and_spending/1079/payments_over_500,13-Jul-21,Childrens Services,TIVIDALE HALL PRIMARY SCHOOL                                     02,Childrens Services,6600,Schools Support Services,2122P04_CR00300,61070
Sandwell Metropolitan Borough Council,http://www.sandwell.gov.uk/info/200202/performance_and_spending/1079/payments_over_500,13-Jul-21,Childrens Services,WESTMINSTER SCHOOL                              02,Childrens Services,6790,Schools Support Services,2122P04_CR00301,60957
Sandwell Metropolitan Borough Council,http://www.sandwell.gov.uk/info/200202/performance_and_spending/1079/payments_over_500,13-Jul-21,Childrens Services,WHITECREST PRIMARY SCHOOL                                   02,Childrens Services,1470,Schools Support Services,2122P04_CR00302,61075
Sandwell Metropolitan Borough Council,http://www.sandwell.gov.uk/info/200202/performance_and_spending/1079/payments_over_500,13-Jul-21,Childrens Services,WOOD GREEN JUNIOR SCHOOL                                       02,Childrens Services,7176,Schools Support Services,2122P04_CR00303,61076
Sandwell Metropolitan Borough Council,http://www.sandwell.gov.uk/info/200202/performance_and_spending/1079/payments_over_500,13-Jul-21,Childrens Services,YEW TREE PRIMARY SCHOOL                         02,Childrens Services,14946,Schools Support Services,2122P04_CR00304,61078
Sandwell Metropolitan Borough Council,http://www.sandwell.gov.uk/info/200202/performance_and_spending/1079/payments_over_500,15-Jul-21,Childrens Services,REDACTED PERSONAL DATA,Childrens Services,545.45,External Contract Hire,2122P04_CR00305,REDACTED PERSONAL DATA
Sandwell Metropolitan Borough Council,http://www.sandwell.gov.uk/info/200202/performance_and_spending/1079/payments_over_500,15-Jul-21,Childrens Services,REDACTED PERSONAL DATA,Childrens Services,545.45,External Contract Hire,2122P04_CR00306,REDACTED PERSONAL DATA
Sandwell Metropolitan Borough Council,http://www.sandwell.gov.uk/info/200202/performance_and_spending/1079/payments_over_500,15-Jul-21,Childrens Services,REDACTED PERSONAL DATA,Childrens Services,727.28,External Contract Hire,2122P04_CR00307,REDACTED PERSONAL DATA
Sandwell Metropolitan Borough Council,http://www.sandwell.gov.uk/info/200202/performance_and_spending/1079/payments_over_500,15-Jul-21,Childrens Services,REDACTED PERSONAL DATA,Childrens Services,545.45,External Contract Hire,2122P04_CR00308,REDACTED PERSONAL DATA
Sandwell Metropolitan Borough Council,http://www.sandwell.gov.uk/info/200202/performance_and_spending/1079/payments_over_500,15-Jul-21,Childrens Services,REDACTED PERSONAL DATA,Childrens Services,727.27,External Contract Hire,2122P04_CR00309,REDACTED PERSONAL DATA
Sandwell Metropolitan Borough Council,http://www.sandwell.gov.uk/info/200202/performance_and_spending/1079/payments_over_500,15-Jul-21,Childrens Services,REDACTED PERSONAL DATA,Childrens Services,727.28,External Contract Hire,2122P04_CR00310,REDACTED PERSONAL DATA
Sandwell Metropolitan Borough Council,http://www.sandwell.gov.uk/info/200202/performance_and_spending/1079/payments_over_500,15-Jul-21,Childrens Services,REDACTED PERSONAL DATA,Childrens Services,545.45,External Contract Hire,2122P04_CR00311,REDACTED PERSONAL DATA
Sandwell Metropolitan Borough Council,http://www.sandwell.gov.uk/info/200202/performance_and_spending/1079/payments_over_500,15-Jul-21,Childrens Services,REDACTED PERSONAL DATA,Childrens Services,887.45,External Contract Hire,2122P04_CR00312,REDACTED PERSONAL DATA
Sandwell Metropolitan Borough Council,http://www.sandwell.gov.uk/info/200202/performance_and_spending/1079/payments_over_500,15-Jul-21,Childrens Services,REDACTED PERSONAL DATA,Childrens Services,545.45,External Contract Hire,2122P04_CR00313,REDACTED PERSONAL DATA
Sandwell Metropolitan Borough Council,http://www.sandwell.gov.uk/info/200202/performance_and_spending/1079/payments_over_500,15-Jul-21,Childrens Services,REDACTED PERSONAL DATA,Childrens Services,545.45,External Contract Hire,2122P04_CR00314,REDACTED PERSONAL DATA
Sandwell Metropolitan Borough Council,http://www.sandwell.gov.uk/info/200202/performance_and_spending/1079/payments_over_500,15-Jul-21,Childrens Services,REDACTED PERSONAL DATA,Childrens Services,545.45,External Contract Hire,2122P04_CR00315,REDACTED PERSONAL DATA
Sandwell Metropolitan Borough Council,http://www.sandwell.gov.uk/info/200202/performance_and_spending/1079/payments_over_500,15-Jul-21,Childrens Services,REDACTED PERSONAL DATA,Childrens Services,545.45,External Contract Hire,2122P04_CR00316,REDACTED PERSONAL DATA
Sandwell Metropolitan Borough Council,http://www.sandwell.gov.uk/info/200202/performance_and_spending/1079/payments_over_500,15-Jul-21,Childrens Services,REDACTED PERSONAL DATA,Childrens Services,545.45,External Contract Hire,2122P04_CR00317,REDACTED PERSONAL DATA
Sandwell Metropolitan Borough Council,http://www.sandwell.gov.uk/info/200202/performance_and_spending/1079/payments_over_500,15-Jul-21,Childrens Services,REDACTED PERSONAL DATA,Childrens Services,1090.9,External Contract Hire,2122P04_CR00318,REDACTED PERSONAL DATA
Sandwell Metropolitan Borough Council,http://www.sandwell.gov.uk/info/200202/performance_and_spending/1079/payments_over_500,15-Jul-21,Childrens Services,REDACTED PERSONAL DATA,Childrens Services,545.45,External Contract Hire,2122P04_CR00319,REDACTED PERSONAL DATA
Sandwell Metropolitan Borough Council,http://www.sandwell.gov.uk/info/200202/performance_and_spending/1079/payments_over_500,15-Jul-21,Childrens Services,REDACTED PERSONAL DATA,Childrens Services,545.45,External Contract Hire,2122P04_CR00320,REDACTED PERSONAL DATA
Sandwell Metropolitan Borough Council,http://www.sandwell.gov.uk/info/200202/performance_and_spending/1079/payments_over_500,15-Jul-21,Childrens Services,REDACTED PERSONAL DATA,Childrens Services,727.27,External Contract Hire,2122P04_CR00321,REDACTED PERSONAL DATA
Sandwell Metropolitan Borough Council,http://www.sandwell.gov.uk/info/200202/performance_and_spending/1079/payments_over_500,15-Jul-21,Childrens Services,REDACTED PERSONAL DATA,Childrens Services,727.27,External Contract Hire,2122P04_CR00322,REDACTED PERSONAL DATA
Sandwell Metropolitan Borough Council,http://www.sandwell.gov.uk/info/200202/performance_and_spending/1079/payments_over_500,15-Jul-21,Childrens Services,REDACTED PERSONAL DATA,Childrens Services,545.45,External Contract Hire,2122P04_CR00323,REDACTED PERSONAL DATA
Sandwell Metropolitan Borough Council,http://www.sandwell.gov.uk/info/200202/performance_and_spending/1079/payments_over_500,15-Jul-21,Childrens Services,REDACTED PERSONAL DATA,Childrens Services,727.27,External Contract Hire,2122P04_CR00324,REDACTED PERSONAL DATA
Sandwell Metropolitan Borough Council,http://www.sandwell.gov.uk/info/200202/performance_and_spending/1079/payments_over_500,15-Jul-21,Childrens Services,REDACTED PERSONAL DATA,Childrens Services,545.45,External Contract Hire,2122P04_CR00325,REDACTED PERSONAL DATA
Sandwell Metropolitan Borough Council,http://www.sandwell.gov.uk/info/200202/performance_and_spending/1079/payments_over_500,15-Jul-21,Childrens Services,REDACTED PERSONAL DATA,Childrens Services,545.45,External Contract Hire,2122P04_CR00326,REDACTED PERSONAL DATA
Sandwell Metropolitan Borough Council,http://www.sandwell.gov.uk/info/200202/performance_and_spending/1079/payments_over_500,15-Jul-21,Childrens Services,REDACTED PERSONAL DATA,Childrens Services,727.27,External Contract Hire,2122P04_CR00327,REDACTED PERSONAL DATA
Sandwell Metropolitan Borough Council,http://www.sandwell.gov.uk/info/200202/performance_and_spending/1079/payments_over_500,15-Jul-21,Childrens Services,REDACTED PERSONAL DATA,Childrens Services,727.27,External Contract Hire,2122P04_CR00328,REDACTED PERSONAL DATA
Sandwell Metropolitan Borough Council,http://www.sandwell.gov.uk/info/200202/performance_and_spending/1079/payments_over_500,15-Jul-21,Childrens Services,REDACTED PERSONAL DATA,Childrens Services,909.09,External Contract Hire,2122P04_CR00329,REDACTED PERSONAL DATA
Sandwell Metropolitan Borough Council,http://www.sandwell.gov.uk/info/200202/performance_and_spending/1079/payments_over_500,15-Jul-21,Childrens Services,REDACTED PERSONAL DATA,Childrens Services,545.45,External Contract Hire,2122P04_CR00330,REDACTED PERSONAL DATA
Sandwell Metropolitan Borough Council,http://www.sandwell.gov.uk/info/200202/performance_and_spending/1079/payments_over_500,15-Jul-21,Childrens Services,REDACTED PERSONAL DATA,Childrens Services,727.27,External Contract Hire,2122P04_CR00331,REDACTED PERSONAL DATA
Sandwell Metropolitan Borough Council,http://www.sandwell.gov.uk/info/200202/performance_and_spending/1079/payments_over_500,15-Jul-21,Childrens Services,REDACTED PERSONAL DATA,Childrens Services,545.45,External Contract Hire,2122P04_CR00332,REDACTED PERSONAL DATA
Sandwell Metropolitan Borough Council,http://www.sandwell.gov.uk/info/200202/performance_and_spending/1079/payments_over_500,15-Jul-21,Childrens Services,REDACTED PERSONAL DATA,Childrens Services,545.45,External Contract Hire,2122P04_CR00333,REDACTED PERSONAL DATA
Sandwell Metropolitan Borough Council,http://www.sandwell.gov.uk/info/200202/performance_and_spending/1079/payments_over_500,15-Jul-21,Childrens Services,REDACTED PERSONAL DATA,Childrens Services,545.45,External Contract Hire,2122P04_CR00334,REDACTED PERSONAL DATA
Sandwell Metropolitan Borough Council,http://www.sandwell.gov.uk/info/200202/performance_and_spending/1079/payments_over_500,15-Jul-21,Childrens Services,REDACTED PERSONAL DATA,Childrens Services,545.45,External Contract Hire,2122P04_CR00335,REDACTED PERSONAL DATA
Sandwell Metropolitan Borough Council,http://www.sandwell.gov.uk/info/200202/performance_and_spending/1079/payments_over_500,15-Jul-21,Childrens Services,REDACTED PERSONAL DATA,Childrens Services,727.28,External Contract Hire,2122P04_CR00336,REDACTED PERSONAL DATA
Sandwell Metropolitan Borough Council,http://www.sandwell.gov.uk/info/200202/performance_and_spending/1079/payments_over_500,15-Jul-21,Childrens Services,REDACTED PERSONAL DATA,Childrens Services,800,External Contract Hire,2122P04_CR00337,REDACTED PERSONAL DATA
Sandwell Metropolitan Borough Council,http://www.sandwell.gov.uk/info/200202/performance_and_spending/1079/payments_over_500,15-Jul-21,Childrens Services,REDACTED PERSONAL DATA,Childrens Services,727.27,External Contract Hire,2122P04_CR00338,REDACTED PERSONAL DATA
Sandwell Metropolitan Borough Council,http://www.sandwell.gov.uk/info/200202/performance_and_spending/1079/payments_over_500,15-Jul-21,Childrens Services,REDACTED PERSONAL DATA,Childrens Services,545.45,External Contract Hire,2122P04_CR00339,REDACTED PERSONAL DATA
Sandwell Metropolitan Borough Council,http://www.sandwell.gov.uk/info/200202/performance_and_spending/1079/payments_over_500,15-Jul-21,Childrens Services,REDACTED PERSONAL DATA,Childrens Services,727.28,External Contract Hire,2122P04_CR00340,REDACTED PERSONAL DATA
Sandwell Metropolitan Borough Council,http://www.sandwell.gov.uk/info/200202/performance_and_spending/1079/payments_over_500,15-Jul-21,Childrens Services,REDACTED PERSONAL DATA,Childrens Services,727.27,External Contract Hire,2122P04_CR00341,REDACTED PERSONAL DATA
Sandwell Metropolitan Borough Council,http://www.sandwell.gov.uk/info/200202/performance_and_spending/1079/payments_over_500,15-Jul-21,Childrens Services,REDACTED PERSONAL DATA,Childrens Services,727.27,External Contract Hire,2122P04_CR00342,REDACTED PERSONAL DATA
Sandwell Metropolitan Borough Council,http://www.sandwell.gov.uk/info/200202/performance_and_spending/1079/payments_over_500,15-Jul-21,Childrens Services,REDACTED PERSONAL DATA,Childrens Services,545.45,External Contract Hire,2122P04_CR00343,REDACTED PERSONAL DATA
Sandwell Metropolitan Borough Council,http://www.sandwell.gov.uk/info/200202/performance_and_spending/1079/payments_over_500,15-Jul-21,Childrens Services,REDACTED PERSONAL DATA,Childrens Services,727.27,External Contract Hire,2122P04_CR00344,REDACTED PERSONAL DATA
Sandwell Metropolitan Borough Council,http://www.sandwell.gov.uk/info/200202/performance_and_spending/1079/payments_over_500,15-Jul-21,Childrens Services,REDACTED PERSONAL DATA,Childrens Services,545.45,External Contract Hire,2122P04_CR00345,REDACTED PERSONAL DATA
Sandwell Metropolitan Borough Council,http://www.sandwell.gov.uk/info/200202/performance_and_spending/1079/payments_over_500,15-Jul-21,Childrens Services,REDACTED PERSONAL DATA,Childrens Services,727.27,External Contract Hire,2122P04_CR00346,REDACTED PERSONAL DATA
Sandwell Metropolitan Borough Council,http://www.sandwell.gov.uk/info/200202/performance_and_spending/1079/payments_over_500,15-Jul-21,Childrens Services,REDACTED PERSONAL DATA,Childrens Services,727.27,External Contract Hire,2122P04_CR00347,REDACTED PERSONAL DATA
Sandwell Metropolitan Borough Council,http://www.sandwell.gov.uk/info/200202/performance_and_spending/1079/payments_over_500,15-Jul-21,Childrens Services,REDACTED PERSONAL DATA,Childrens Services,727.27,External Contract Hire,2122P04_CR00348,REDACTED PERSONAL DATA
Sandwell Metropolitan Borough Council,http://www.sandwell.gov.uk/info/200202/performance_and_spending/1079/payments_over_500,15-Jul-21,Childrens Services,REDACTED PERSONAL DATA,Childrens Services,727.27,External Contract Hire,2122P04_CR00349,REDACTED PERSONAL DATA
Sandwell Metropolitan Borough Council,http://www.sandwell.gov.uk/info/200202/performance_and_spending/1079/payments_over_500,15-Jul-21,Childrens Services,REDACTED PERSONAL DATA,Childrens Services,545.45,External Contract Hire,2122P04_CR00350,REDACTED PERSONAL DATA
Sandwell Metropolitan Borough Council,http://www.sandwell.gov.uk/info/200202/performance_and_spending/1079/payments_over_500,15-Jul-21,Childrens Services,REDACTED PERSONAL DATA,Childrens Services,727.27,External Contract Hire,2122P04_CR00351,REDACTED PERSONAL DATA
Sandwell Metropolitan Borough Council,http://www.sandwell.gov.uk/info/200202/performance_and_spending/1079/payments_over_500,08-Jul-21,Childrens Services,AFRICAN FRENCH SPEAKING COMMUNITY SUPPORT,Childrens Services,4350,Grant Payments,2122P04_CR00352,107906
Sandwell Metropolitan Borough Council,http://www.sandwell.gov.uk/info/200202/performance_and_spending/1079/payments_over_500,14-Jul-21,Childrens Services,ALL STARS WALSALL C.I.C.,Childrens Services,14377,Grant Payments,2122P04_CR00353,153410
Sandwell Metropolitan Borough Council,http://www.sandwell.gov.uk/info/200202/performance_and_spending/1079/payments_over_500,14-Jul-21,Childrens Services,BEARWOOD COMMUNITY HUB,Childrens Services,20143,Grant Payments,2122P04_CR00354,152312
Sandwell Metropolitan Borough Council,http://www.sandwell.gov.uk/info/200202/performance_and_spending/1079/payments_over_500,13-Jul-21,Childrens Services,BENSON COMMUNITY PROJECT,Childrens Services,13162,Grant Payments,2122P04_CR00355,125061
Sandwell Metropolitan Borough Council,http://www.sandwell.gov.uk/info/200202/performance_and_spending/1079/payments_over_500,14-Jul-21,Childrens Services,CAPE COMMUNITY CARE DAY CENTRE,Childrens Services,4995,Grant Payments,2122P04_CR00356,1693179
Sandwell Metropolitan Borough Council,http://www.sandwell.gov.uk/info/200202/performance_and_spending/1079/payments_over_500,14-Jul-21,Childrens Services,CENTRE SPOT C.I.C,Childrens Services,12670,Grant Payments,2122P04_CR00357,98361
Sandwell Metropolitan Borough Council,http://www.sandwell.gov.uk/info/200202/performance_and_spending/1079/payments_over_500,08-Jul-21,Childrens Services,EXCELR8 SCE C.I.C,Childrens Services,8365,Grant Payments,2122P04_CR00358,153112
Sandwell Metropolitan Borough Council,http://www.sandwell.gov.uk/info/200202/performance_and_spending/1079/payments_over_500,08-Jul-21,Childrens Services,FRIAR PARK MILLENNIUM CENTRE,Childrens Services,21513,Grant Payments,2122P04_CR00359,28476
Sandwell Metropolitan Borough Council,http://www.sandwell.gov.uk/info/200202/performance_and_spending/1079/payments_over_500,12-Jul-21,Childrens Services,G.A.P ENTERTAINMENT C.I.C,Childrens Services,16154,Grant Payments,2122P04_CR00360,153273
Sandwell Metropolitan Borough Council,http://www.sandwell.gov.uk/info/200202/performance_and_spending/1079/payments_over_500,09-Jul-21,Childrens Services,HILL TOP COMMUNITY DEVELOPMENT ASSOCIATION,Childrens Services,5724,Grant Payments,2122P04_CR00361,97197
Sandwell Metropolitan Borough Council,http://www.sandwell.gov.uk/info/200202/performance_and_spending/1079/payments_over_500,13-Jul-21,Childrens Services,HINDU CULTURAL RESOURCE CENTRE                                              01,Childrens Services,6002,Grant Payments,2122P04_CR00362,1750493
Sandwell Metropolitan Borough Council,http://www.sandwell.gov.uk/info/200202/performance_and_spending/1079/payments_over_500,12-Jul-21,Childrens Services,ILEYS COMMUNITY ASSOCIATION,Childrens Services,7326,Grant Payments,2122P04_CR00363,88247
Sandwell Metropolitan Borough Council,http://www.sandwell.gov.uk/info/200202/performance_and_spending/1079/payments_over_500,13-Jul-21,Childrens Services,LIGHTWOODS PRIMARY ACADEMY,Childrens Services,2700,Grant Payments,2122P04_CR00364,153218
Sandwell Metropolitan Borough Council,http://www.sandwell.gov.uk/info/200202/performance_and_spending/1079/payments_over_500,13-Jul-21,Childrens Services,OLDBURY UNITED C.I.C,Childrens Services,6600,Grant Payments,2122P04_CR00365,153379
Sandwell Metropolitan Borough Council,http://www.sandwell.gov.uk/info/200202/performance_and_spending/1079/payments_over_500,08-Jul-21,Childrens Services,S.C.V.O.,Childrens Services,1100000,Grant Payments,2122P04_CR00366,109813
Sandwell Metropolitan Borough Council,http://www.sandwell.gov.uk/info/200202/performance_and_spending/1079/payments_over_500,12-Jul-21,Childrens Services,SAM'S HEALTH AND FITNESS SUITE,Childrens Services,2500,Grant Payments,2122P04_CR00367,153276
Sandwell Metropolitan Borough Council,http://www.sandwell.gov.uk/info/200202/performance_and_spending/1079/payments_over_500,13-Jul-21,Childrens Services,SANDWELL DEAF COMMUNITY ASSOCIATION,Childrens Services,5030,Grant Payments,2122P04_CR00368,3138
Sandwell Metropolitan Borough Council,http://www.sandwell.gov.uk/info/200202/performance_and_spending/1079/payments_over_500,09-Jul-21,Childrens Services,SANDWELL YOUNG CARERS,Childrens Services,5920,Grant Payments,2122P04_CR00369,8482635
Sandwell Metropolitan Borough Council,http://www.sandwell.gov.uk/info/200202/performance_and_spending/1079/payments_over_500,08-Jul-21,Childrens Services,SPORTING YOUR FUTURES,Childrens Services,16030,Grant Payments,2122P04_CR00370,153219
Sandwell Metropolitan Borough Council,http://www.sandwell.gov.uk/info/200202/performance_and_spending/1079/payments_over_500,13-Jul-21,Childrens Services,SPORTS 4 LIFE UK,Childrens Services,5749,Grant Payments,2122P04_CR00371,153208
Sandwell Metropolitan Borough Council,http://www.sandwell.gov.uk/info/200202/performance_and_spending/1079/payments_over_500,09-Jul-21,Childrens Services,THE ABRAHAMIC FOUNDATION,Childrens Services,12000,Grant Payments,2122P04_CR00372,130572
Sandwell Metropolitan Borough Council,http://www.sandwell.gov.uk/info/200202/performance_and_spending/1079/payments_over_500,13-Jul-21,Childrens Services,THE ALBION FOUNDATION,Childrens Services,11200,Grant Payments,2122P04_CR00373,21026659
Sandwell Metropolitan Borough Council,http://www.sandwell.gov.uk/info/200202/performance_and_spending/1079/payments_over_500,07-Jul-21,Childrens Services,"THE DOG, DUCK AND CAT TRUST",Childrens Services,19750,Grant Payments,2122P04_CR00374,135232
Sandwell Metropolitan Borough Council,http://www.sandwell.gov.uk/info/200202/performance_and_spending/1079/payments_over_500,13-Jul-21,Childrens Services,WEST BROM BASKETBALL CLUB,Childrens Services,15492,Grant Payments,2122P04_CR00375,125592
Sandwell Metropolitan Borough Council,http://www.sandwell.gov.uk/info/200202/performance_and_spending/1079/payments_over_500,07-Jul-21,Childrens Services,YEMENI COMMUNITY ASSOCIATION IN SANDWELL,Childrens Services,6048,Grant Payments,2122P04_CR00376,1711292
Sandwell Metropolitan Borough Council,http://www.sandwell.gov.uk/info/200202/performance_and_spending/1079/payments_over_500,13-Jul-21,Childrens Services,CONFEDERATION OF BANGLADESHI ORGANISATIONS (CBO) LIMITED,Childrens Services,9148,Grant Payments,2122P04_CR00377,10034
Sandwell Metropolitan Borough Council,http://www.sandwell.gov.uk/info/200202/performance_and_spending/1079/payments_over_500,13-Jul-21,Childrens Services,LION FARM ACTION CENTRE (SANDWELL) LTD,Childrens Services,7405,Grant Payments,2122P04_CR00378,21023409
Sandwell Metropolitan Borough Council,http://www.sandwell.gov.uk/info/200202/performance_and_spending/1079/payments_over_500,14-Jul-21,Childrens Services,PLACES FOR PEOPLE LEISURE MANAGEMENT LTD,Childrens Services,19780,Grant Payments,2122P04_CR00379,118956
Sandwell Metropolitan Borough Council,http://www.sandwell.gov.uk/info/200202/performance_and_spending/1079/payments_over_500,13-Jul-21,Childrens Services,SPORTS PLUS SCHEME LTD,Childrens Services,18290,Grant Payments,2122P04_CR00380,46504
Sandwell Metropolitan Borough Council,http://www.sandwell.gov.uk/info/200202/performance_and_spending/1079/payments_over_500,01-Jul-21,Childrens Services Capital,"ACIVICO (DESIGN,CONSTRUCTION AND FACILITIES MANAGEMENT) LTD",Childrens Services Capital,4038.18,"CIP - New Construction,Conversion, Enhancement & Reno",2122P04_CR00381,148500
Sandwell Metropolitan Borough Council,http://www.sandwell.gov.uk/info/200202/performance_and_spending/1079/payments_over_500,01-Jul-21,Childrens Services Capital,"ACIVICO (DESIGN,CONSTRUCTION AND FACILITIES MANAGEMENT) LTD",Childrens Services Capital,3267.78,"CIP - New Construction,Conversion, Enhancement & Reno",2122P04_CR00382,148500
Sandwell Metropolitan Borough Council,http://www.sandwell.gov.uk/info/200202/performance_and_spending/1079/payments_over_500,07-Jul-21,Childrens Services Capital,EUROPEAN ELECTRONIQUE LIMITED,Childrens Services Capital,7965.4,"CIP - New Construction,Conversion, Enhancement & Reno",2122P04_CR00383,1776877
Sandwell Metropolitan Borough Council,http://www.sandwell.gov.uk/info/200202/performance_and_spending/1079/payments_over_500,20-Jul-21,Childrens Services Capital,M & H SURVEY SERVICES LIMITED,Childrens Services Capital,6185,"CIP - New Construction,Conversion, Enhancement & Reno",2122P04_CR00384,114657
Sandwell Metropolitan Borough Council,http://www.sandwell.gov.uk/info/200202/performance_and_spending/1079/payments_over_500,04-Jul-21,Childrens Services Capital,M & H SURVEY SERVICES LIMITED,Childrens Services Capital,3300,"CIP - New Construction,Conversion, Enhancement & Reno",2122P04_CR00385,114657
Sandwell Metropolitan Borough Council,http://www.sandwell.gov.uk/info/200202/performance_and_spending/1079/payments_over_500,01-Jul-21,Childrens Services Capital,NATIONWIDE REMOVALS & STORAGE LTD T/A REMOVALS.CO.UK,Childrens Services Capital,735,"CIP - New Construction,Conversion, Enhancement & Reno",2122P04_CR00386,123785
Sandwell Metropolitan Borough Council,http://www.sandwell.gov.uk/info/200202/performance_and_spending/1079/payments_over_500,13-Jul-21,Childrens Services Capital,PROBRAND LIMITED,Childrens Services Capital,5280,"CIP - New Construction,Conversion, Enhancement & Reno",2122P04_CR00387,98852
Sandwell Metropolitan Borough Council,http://www.sandwell.gov.uk/info/200202/performance_and_spending/1079/payments_over_500,01-Jul-21,Childrens Services Capital,WILLMOTT DIXON CONSTRUCTION LIMITED,Childrens Services Capital,350754.89,"CIP - New Construction,Conversion, Enhancement & Reno",2122P04_CR00388,34081
Sandwell Metropolitan Borough Council,http://www.sandwell.gov.uk/info/200202/performance_and_spending/1079/payments_over_500,01-Jul-21,Childrens Services Capital,WILLMOTT DIXON CONSTRUCTION LIMITED,Childrens Services Capital,277819.55,"CIP - New Construction,Conversion, Enhancement & Reno",2122P04_CR00389,34081
Sandwell Metropolitan Borough Council,http://www.sandwell.gov.uk/info/200202/performance_and_spending/1079/payments_over_500,01-Jul-21,Childrens Services Capital,WILLMOTT DIXON CONSTRUCTION LIMITED,Childrens Services Capital,290584.67,"CIP - New Construction,Conversion, Enhancement & Reno",2122P04_CR00390,34081
Sandwell Metropolitan Borough Council,http://www.sandwell.gov.uk/info/200202/performance_and_spending/1079/payments_over_500,01-Jul-21,Corporate Management,XMA LTD,Corporate Management,819.56,ICT ,2122P04_CR00391,1135462
Sandwell Metropolitan Borough Council,http://www.sandwell.gov.uk/info/200202/performance_and_spending/1079/payments_over_500,05-Jul-21,Housing & Communities,ASKEWS AND HOLTS LIBRARY SERVICES LTD.,Neighbourhoods,596.13,Materials & Consumables,2122P04_CR00392,111865
Sandwell Metropolitan Borough Council,http://www.sandwell.gov.uk/info/200202/performance_and_spending/1079/payments_over_500,01-Jul-21,Housing & Communities,PETERS LIMITED,Neighbourhoods,652.84,Materials & Consumables,2122P04_CR00393,1059117
Sandwell Metropolitan Borough Council,http://www.sandwell.gov.uk/info/200202/performance_and_spending/1079/payments_over_500,01-Jul-21,Housing & Communities,FAROL LIMITED,Housing & Communities,52322.13,"CIP - Vehicles, Plant & Machinery",2122P04_CR00394,99987
Sandwell Metropolitan Borough Council,http://www.sandwell.gov.uk/info/200202/performance_and_spending/1079/payments_over_500,21-Jul-21,Housing & Communities,FR SHARROCK LTD,Neighbourhoods,2625,Equipment & Furniture ,2122P04_CR00395,1496028
Sandwell Metropolitan Borough Council,http://www.sandwell.gov.uk/info/200202/performance_and_spending/1079/payments_over_500,01-Jul-21,Housing & Communities,AQUAID,Neighbourhoods,504.5,Fire Service Workshops,2122P04_CR00396,1693419
Sandwell Metropolitan Borough Council,http://www.sandwell.gov.uk/info/200202/performance_and_spending/1079/payments_over_500,22-Jul-21,Housing & Communities,MACKWORTH VEHICLE CONVERSIONS,Neighbourhoods,995,Fire Service Workshops,2122P04_CR00397,124922
Sandwell Metropolitan Borough Council,http://www.sandwell.gov.uk/info/200202/performance_and_spending/1079/payments_over_500,23-Jul-21,Housing & Communities,PARTSPLUS,Neighbourhoods,537.63,Fire Service Workshops,2122P04_CR00398,1087922
Sandwell Metropolitan Borough Council,http://www.sandwell.gov.uk/info/200202/performance_and_spending/1079/payments_over_500,01-Jul-21,Housing & Communities,PHS BESAFE,Neighbourhoods,998.51,Fire Service Workshops,2122P04_CR00399,124613
Sandwell Metropolitan Borough Council,http://www.sandwell.gov.uk/info/200202/performance_and_spending/1079/payments_over_500,03-Jul-21,Housing & Communities,ROBINS & DAY PARTS WEST MIDLANDS,Neighbourhoods,576.57,Fire Service Workshops,2122P04_CR00400,118812
Sandwell Metropolitan Borough Council,http://www.sandwell.gov.uk/info/200202/performance_and_spending/1079/payments_over_500,11-Jul-21,Housing & Communities,TEL SERVICES,Neighbourhoods,894,Fire Service Workshops,2122P04_CR00401,84262
Sandwell Metropolitan Borough Council,http://www.sandwell.gov.uk/info/200202/performance_and_spending/1079/payments_over_500,05-Jul-21,Housing & Communities,CAR SPARES (DISTRIBUTION) LIMITED,Neighbourhoods,740.62,Fire Service Workshops,2122P04_CR00402,22486
Sandwell Metropolitan Borough Council,http://www.sandwell.gov.uk/info/200202/performance_and_spending/1079/payments_over_500,14-Jul-21,Housing & Communities,CAR SPARES (DISTRIBUTION) LIMITED,Neighbourhoods,566.13,Fire Service Workshops,2122P04_CR00403,22486
Sandwell Metropolitan Borough Council,http://www.sandwell.gov.uk/info/200202/performance_and_spending/1079/payments_over_500,26-Jul-21,Housing & Communities,COOPER MOBILE SERVICES LTD,Neighbourhoods,4136.76,Fire Service Workshops,2122P04_CR00404,1304378
Sandwell Metropolitan Borough Council,http://www.sandwell.gov.uk/info/200202/performance_and_spending/1079/payments_over_500,01-Jul-21,Housing & Communities,DENNIS EAGLE LTD,Neighbourhoods,534.84,Fire Service Workshops,2122P04_CR00405,1004865
Sandwell Metropolitan Borough Council,http://www.sandwell.gov.uk/info/200202/performance_and_spending/1079/payments_over_500,03-Jul-21,Housing & Communities,DENNIS EAGLE LTD,Neighbourhoods,548.06,Fire Service Workshops,2122P04_CR00406,1004865
Sandwell Metropolitan Borough Council,http://www.sandwell.gov.uk/info/200202/performance_and_spending/1079/payments_over_500,01-Jul-21,Housing & Communities,DENNIS EAGLE LTD,Neighbourhoods,551.85,Fire Service Workshops,2122P04_CR00407,1004865
Sandwell Metropolitan Borough Council,http://www.sandwell.gov.uk/info/200202/performance_and_spending/1079/payments_over_500,21-Jul-21,Housing & Communities,DENNIS EAGLE LTD,Neighbourhoods,611.11,Fire Service Workshops,2122P04_CR00408,1004865
Sandwell Metropolitan Borough Council,http://www.sandwell.gov.uk/info/200202/performance_and_spending/1079/payments_over_500,26-Jul-21,Housing & Communities,DENNIS EAGLE LTD,Neighbourhoods,660.54,Fire Service Workshops,2122P04_CR00409,1004865
Sandwell Metropolitan Borough Council,http://www.sandwell.gov.uk/info/200202/performance_and_spending/1079/payments_over_500,01-Jul-21,Housing & Communities,DENNIS EAGLE LTD,Neighbourhoods,682.95,Fire Service Workshops,2122P04_CR00410,1004865
Sandwell Metropolitan Borough Council,http://www.sandwell.gov.uk/info/200202/performance_and_spending/1079/payments_over_500,01-Jul-21,Housing & Communities,DENNIS EAGLE LTD,Neighbourhoods,707.28,Fire Service Workshops,2122P04_CR00411,1004865
Sandwell Metropolitan Borough Council,http://www.sandwell.gov.uk/info/200202/performance_and_spending/1079/payments_over_500,23-Jul-21,Housing & Communities,DENNIS EAGLE LTD,Neighbourhoods,736.35,Fire Service Workshops,2122P04_CR00412,1004865
Sandwell Metropolitan Borough Council,http://www.sandwell.gov.uk/info/200202/performance_and_spending/1079/payments_over_500,01-Jul-21,Housing & Communities,DENNIS EAGLE LTD,Neighbourhoods,819.02,Fire Service Workshops,2122P04_CR00413,1004865
Sandwell Metropolitan Borough Council,http://www.sandwell.gov.uk/info/200202/performance_and_spending/1079/payments_over_500,01-Jul-21,Housing & Communities,DENNIS EAGLE LTD,Neighbourhoods,916.32,Fire Service Workshops,2122P04_CR00414,1004865
Sandwell Metropolitan Borough Council,http://www.sandwell.gov.uk/info/200202/performance_and_spending/1079/payments_over_500,01-Jul-21,Housing & Communities,DENNIS EAGLE LTD,Neighbourhoods,917.65,Fire Service Workshops,2122P04_CR00415,1004865
Sandwell Metropolitan Borough Council,http://www.sandwell.gov.uk/info/200202/performance_and_spending/1079/payments_over_500,14-Jul-21,Housing & Communities,DENNIS EAGLE LTD,Neighbourhoods,1188.14,Fire Service Workshops,2122P04_CR00416,1004865
Sandwell Metropolitan Borough Council,http://www.sandwell.gov.uk/info/200202/performance_and_spending/1079/payments_over_500,01-Jul-21,Housing & Communities,DENNIS EAGLE LTD,Neighbourhoods,1350.12,Fire Service Workshops,2122P04_CR00417,1004865
Sandwell Metropolitan Borough Council,http://www.sandwell.gov.uk/info/200202/performance_and_spending/1079/payments_over_500,02-Jul-21,Housing & Communities,DENNIS EAGLE LTD,Neighbourhoods,1602.4,Fire Service Workshops,2122P04_CR00418,1004865
Sandwell Metropolitan Borough Council,http://www.sandwell.gov.uk/info/200202/performance_and_spending/1079/payments_over_500,13-Jul-21,Housing & Communities,DENNIS EAGLE LTD,Neighbourhoods,2272.6,Fire Service Workshops,2122P04_CR00419,1004865
Sandwell Metropolitan Borough Council,http://www.sandwell.gov.uk/info/200202/performance_and_spending/1079/payments_over_500,07-Jul-21,Housing & Communities,EURO CAR PARTS LIMITED,Neighbourhoods,1080,Fire Service Workshops,2122P04_CR00420,1785822
Sandwell Metropolitan Borough Council,http://www.sandwell.gov.uk/info/200202/performance_and_spending/1079/payments_over_500,21-Jul-21,Housing & Communities,FUCHS LUBRICANTS (UK) LTD,Neighbourhoods,1030,Fire Service Workshops,2122P04_CR00421,130133
Sandwell Metropolitan Borough Council,http://www.sandwell.gov.uk/info/200202/performance_and_spending/1079/payments_over_500,01-Jul-21,Housing & Communities,GEESINK NORBA LTD,Neighbourhoods,633.48,Fire Service Workshops,2122P04_CR00422,102799
Sandwell Metropolitan Borough Council,http://www.sandwell.gov.uk/info/200202/performance_and_spending/1079/payments_over_500,01-Jul-21,Housing & Communities,GEESINK NORBA LTD,Neighbourhoods,2106.87,Fire Service Workshops,2122P04_CR00423,102799
Sandwell Metropolitan Borough Council,http://www.sandwell.gov.uk/info/200202/performance_and_spending/1079/payments_over_500,09-Jul-21,Housing & Communities,GEESINK NORBA LTD,Neighbourhoods,1418.83,Fire Service Workshops,2122P04_CR00424,102799
Sandwell Metropolitan Borough Council,http://www.sandwell.gov.uk/info/200202/performance_and_spending/1079/payments_over_500,26-Jul-21,Housing & Communities,GREENHOUS COMMERCIALS LTD,Neighbourhoods,639.97,Fire Service Workshops,2122P04_CR00425,1141434
Sandwell Metropolitan Borough Council,http://www.sandwell.gov.uk/info/200202/performance_and_spending/1079/payments_over_500,02-Jul-21,Housing & Communities,HARTSHORNE MOTOR SERVICES LTD                                   01,Neighbourhoods,2460,Fire Service Workshops,2122P04_CR00426,1508668
Sandwell Metropolitan Borough Council,http://www.sandwell.gov.uk/info/200202/performance_and_spending/1079/payments_over_500,20-Jul-21,Housing & Communities,HARTSHORNE MOTOR SERVICES LTD                                   01,Neighbourhoods,1253.49,Fire Service Workshops,2122P04_CR00427,1508668
Sandwell Metropolitan Borough Council,http://www.sandwell.gov.uk/info/200202/performance_and_spending/1079/payments_over_500,09-Jul-21,Housing & Communities,MIDLAND TRUCK & VAN LTD,Neighbourhoods,781,Fire Service Workshops,2122P04_CR00428,128784
Sandwell Metropolitan Borough Council,http://www.sandwell.gov.uk/info/200202/performance_and_spending/1079/payments_over_500,27-Jul-21,Housing & Communities,MIDLANDS TRUCK & VAN LIMITED                            693150,Neighbourhoods,781,Fire Service Workshops,2122P04_CR00429,900329796
Sandwell Metropolitan Borough Council,http://www.sandwell.gov.uk/info/200202/performance_and_spending/1079/payments_over_500,19-Jul-21,Housing & Communities,RVW PUGH LTD,Neighbourhoods,2322.93,Fire Service Workshops,2122P04_CR00430,5902
Sandwell Metropolitan Borough Council,http://www.sandwell.gov.uk/info/200202/performance_and_spending/1079/payments_over_500,15-Jul-21,Housing & Communities,SCARAB SWEEPERS LTD,Neighbourhoods,520,Fire Service Workshops,2122P04_CR00431,1710482
Sandwell Metropolitan Borough Council,http://www.sandwell.gov.uk/info/200202/performance_and_spending/1079/payments_over_500,01-Jul-21,Housing & Communities,TERBERG MATEC UK LTD,Neighbourhoods,1648.93,Fire Service Workshops,2122P04_CR00432,21235
Sandwell Metropolitan Borough Council,http://www.sandwell.gov.uk/info/200202/performance_and_spending/1079/payments_over_500,01-Jul-21,Housing & Communities,TERBERG MATEC UK LTD,Neighbourhoods,2891.22,Fire Service Workshops,2122P04_CR00433,21235
Sandwell Metropolitan Borough Council,http://www.sandwell.gov.uk/info/200202/performance_and_spending/1079/payments_over_500,01-Jul-21,Housing & Communities,TH WHITE LIMITED,Neighbourhoods,4279,Fire Service Workshops,2122P04_CR00434,1774713
Sandwell Metropolitan Borough Council,http://www.sandwell.gov.uk/info/200202/performance_and_spending/1079/payments_over_500,01-Jul-21,Housing & Communities,WHALE TANKERS LTD,Neighbourhoods,1205.55,Fire Service Workshops,2122P04_CR00435,1048151
Sandwell Metropolitan Borough Council,http://www.sandwell.gov.uk/info/200202/performance_and_spending/1079/payments_over_500,27-Jul-21,Housing & Communities,TRUCK & TRAILER EQUIPMENT LIMITED,Neighbourhoods,1350,Protective Clothing & Uniforms,2122P04_CR00436,126296
Sandwell Metropolitan Borough Council,http://www.sandwell.gov.uk/info/200202/performance_and_spending/1079/payments_over_500,01-Jul-21,Housing & Communities,HADLEYS STEAM CLEANING LTD,Neighbourhoods,1100,Repairs & Maintenance,2122P04_CR00437,132536
Sandwell Metropolitan Borough Council,http://www.sandwell.gov.uk/info/200202/performance_and_spending/1079/payments_over_500,01-Jul-21,Housing & Communities,HADLEYS STEAM CLEANING LTD,Neighbourhoods,1867,Repairs & Maintenance,2122P04_CR00438,132536
Sandwell Metropolitan Borough Council,http://www.sandwell.gov.uk/info/200202/performance_and_spending/1079/payments_over_500,01-Jul-21,Housing & Communities,OAKLEYS LTD,Neighbourhoods,664,Repairs & Maintenance,2122P04_CR00439,1598115
Sandwell Metropolitan Borough Council,http://www.sandwell.gov.uk/info/200202/performance_and_spending/1079/payments_over_500,05-Jul-21,Housing & Communities,OAKLEYS LTD,Neighbourhoods,930.33,Repairs & Maintenance,2122P04_CR00440,1598115
Sandwell Metropolitan Borough Council,http://www.sandwell.gov.uk/info/200202/performance_and_spending/1079/payments_over_500,08-Jul-21,Housing & Communities,OAKLEYS LTD,Neighbourhoods,639,Repairs & Maintenance,2122P04_CR00441,1598115
Sandwell Metropolitan Borough Council,http://www.sandwell.gov.uk/info/200202/performance_and_spending/1079/payments_over_500,22-Jul-21,Housing & Communities,OAKLEYS LTD,Neighbourhoods,716.55,Repairs & Maintenance,2122P04_CR00442,1598115
Sandwell Metropolitan Borough Council,http://www.sandwell.gov.uk/info/200202/performance_and_spending/1079/payments_over_500,01-Jul-21,Housing & Communities,TH WHITE LIMITED,Neighbourhoods,765.82,Repairs & Maintenance,2122P04_CR00443,1774713
Sandwell Metropolitan Borough Council,http://www.sandwell.gov.uk/info/200202/performance_and_spending/1079/payments_over_500,01-Jul-21,Housing & Communities,TH WHITE LIMITED,Neighbourhoods,632.18,Repairs & Maintenance,2122P04_CR00444,1774713
Sandwell Metropolitan Borough Council,http://www.sandwell.gov.uk/info/200202/performance_and_spending/1079/payments_over_500,02-Jul-21,Housing & Communities,HAYNESPRO (UK) LTD,Neighbourhoods,1260,Subscriptions,2122P04_CR00445,138922
Sandwell Metropolitan Borough Council,http://www.sandwell.gov.uk/info/200202/performance_and_spending/1079/payments_over_500,08-Jul-21,Housing & Communities,DIRECT TYRE MANAGEMENT LTD,Neighbourhoods,914.29,Tyres,2122P04_CR00446,134146
Sandwell Metropolitan Borough Council,http://www.sandwell.gov.uk/info/200202/performance_and_spending/1079/payments_over_500,01-Jul-21,Housing & Communities,ACCESSHIRE NATIONWIDE,Neighbourhoods,1003,Vehicle Hiring Charges,2122P04_CR00447,123955
Sandwell Metropolitan Borough Council,http://www.sandwell.gov.uk/info/200202/performance_and_spending/1079/payments_over_500,21-Jul-21,Housing & Communities,ACCESSHIRE NATIONWIDE,Neighbourhoods,767,Vehicle Hiring Charges,2122P04_CR00448,123955
Sandwell Metropolitan Borough Council,http://www.sandwell.gov.uk/info/200202/performance_and_spending/1079/payments_over_500,01-Jul-21,Housing & Communities,DAWSONGROUP VANS,Neighbourhoods,511.5,Vehicle Hiring Charges,2122P04_CR00449,151498
Sandwell Metropolitan Borough Council,http://www.sandwell.gov.uk/info/200202/performance_and_spending/1079/payments_over_500,01-Jul-21,Housing & Communities,DAYS RENTAL,Neighbourhoods,502.2,Vehicle Hiring Charges,2122P04_CR00450,128169
Sandwell Metropolitan Borough Council,http://www.sandwell.gov.uk/info/200202/performance_and_spending/1079/payments_over_500,01-Jul-21,Housing & Communities,DAYS RENTAL,Neighbourhoods,502.2,Vehicle Hiring Charges,2122P04_CR00451,128169
Sandwell Metropolitan Borough Council,http://www.sandwell.gov.uk/info/200202/performance_and_spending/1079/payments_over_500,01-Jul-21,Housing & Communities,DAYS RENTAL,Neighbourhoods,862.2,Vehicle Hiring Charges,2122P04_CR00452,128169
Sandwell Metropolitan Borough Council,http://www.sandwell.gov.uk/info/200202/performance_and_spending/1079/payments_over_500,01-Jul-21,Housing & Communities,DAYS RENTAL,Neighbourhoods,862.2,Vehicle Hiring Charges,2122P04_CR00453,128169
Sandwell Metropolitan Borough Council,http://www.sandwell.gov.uk/info/200202/performance_and_spending/1079/payments_over_500,01-Jul-21,Housing & Communities,DAYS RENTAL,Neighbourhoods,862.2,Vehicle Hiring Charges,2122P04_CR00454,128169
Sandwell Metropolitan Borough Council,http://www.sandwell.gov.uk/info/200202/performance_and_spending/1079/payments_over_500,01-Jul-21,Housing & Communities,ENTERPRISE FLEX-E-RENT,Neighbourhoods,640,Vehicle Hiring Charges,2122P04_CR00455,142092
Sandwell Metropolitan Borough Council,http://www.sandwell.gov.uk/info/200202/performance_and_spending/1079/payments_over_500,01-Jul-21,Housing & Communities,ENTERPRISE FLEX-E-RENT,Neighbourhoods,860,Vehicle Hiring Charges,2122P04_CR00456,142092
Sandwell Metropolitan Borough Council,http://www.sandwell.gov.uk/info/200202/performance_and_spending/1079/payments_over_500,20-Jul-21,Housing & Communities,NORTHGATE VEHICLE HIRE (WEST MIDLANDS) LTD,Neighbourhoods,1450.81,Vehicle Hiring Charges,2122P04_CR00457,1057676
Sandwell Metropolitan Borough Council,http://www.sandwell.gov.uk/info/200202/performance_and_spending/1079/payments_over_500,01-Jul-21,Housing & Communities,COOKE RUDLING LIMITED,Assistant Chief Executive (Excl SIU),3112.5,Externally Purchased Professional Services ,2122P04_CR00458,1577073
Sandwell Metropolitan Borough Council,http://www.sandwell.gov.uk/info/200202/performance_and_spending/1079/payments_over_500,06-Jul-21,Housing & Communities,J MCCANN & CO LIMITED,Housing & Communities,8845.4,CIP - Fixtures & Fittings,2122P04_CR00459,127457
Sandwell Metropolitan Borough Council,http://www.sandwell.gov.uk/info/200202/performance_and_spending/1079/payments_over_500,01-Jul-21,Housing & Communities,ZERO POINT EIGHT (DUDLEY) LIMITED,Housing & Communities,2784.16,CIP - Fixtures & Fittings,2122P04_CR00460,125476
Sandwell Metropolitan Borough Council,http://www.sandwell.gov.uk/info/200202/performance_and_spending/1079/payments_over_500,08-Jul-21,Housing & Communities,INTERCLASS PLC,Housing & Communities,207945.24,"CIP - New Construction,Conversion, Enhancement & Reno",2122P04_CR00461,77001959
Sandwell Metropolitan Borough Council,http://www.sandwell.gov.uk/info/200202/performance_and_spending/1079/payments_over_500,01-Jul-21,Housing & Communities,P CASEY LTD,Housing & Communities,127767.42,"CIP - New Construction,Conversion, Enhancement & Reno",2122P04_CR00462,149276
Sandwell Metropolitan Borough Council,http://www.sandwell.gov.uk/info/200202/performance_and_spending/1079/payments_over_500,01-Jul-21,Housing & Communities,TOTAL GAS AND POWER LIMITED,Housing & Communities,3756.79,"CIP - New Construction,Conversion, Enhancement & Reno",2122P04_CR00463,107605
Sandwell Metropolitan Borough Council,http://www.sandwell.gov.uk/info/200202/performance_and_spending/1079/payments_over_500,26-Jul-21,Housing & Communities,WATES CONSTRUCTION LTD                                 01,Housing & Communities,1277151.12,"CIP - New Construction,Conversion, Enhancement & Reno",2122P04_CR00464,77000882
Sandwell Metropolitan Borough Council,http://www.sandwell.gov.uk/info/200202/performance_and_spending/1079/payments_over_500,07-Jul-21,Housing & Communities,REDACTED PERSONAL DATA,Neighbourhoods,3500,Building Maintenance & Improvements,2122P04_CR00465,REDACTED PERSONAL DATA
Sandwell Metropolitan Borough Council,http://www.sandwell.gov.uk/info/200202/performance_and_spending/1079/payments_over_500,05-Jul-21,Housing & Communities,HILL INTERIOR CONTRACTS LTD,Neighbourhoods,18220,Building Maintenance & Improvements,2122P04_CR00466,17158
Sandwell Metropolitan Borough Council,http://www.sandwell.gov.uk/info/200202/performance_and_spending/1079/payments_over_500,01-Jul-21,Housing & Communities,W V HOWE LTD,Neighbourhoods,1764.11,Catering Equipment,2122P04_CR00467,1052548
Sandwell Metropolitan Borough Council,http://www.sandwell.gov.uk/info/200202/performance_and_spending/1079/payments_over_500,01-Jul-21,Housing & Communities,MANOR ABBEY FOODS LTD,Neighbourhoods,536.6,Catering Provisions,2122P04_CR00468,63063
Sandwell Metropolitan Borough Council,http://www.sandwell.gov.uk/info/200202/performance_and_spending/1079/payments_over_500,01-Jul-21,Housing & Communities,IAN LIVIE T/A IAN LIVIE AND HIS WORLD WIDE DISCO,Neighbourhoods,600,Civic Events,2122P04_CR00469,150369
Sandwell Metropolitan Borough Council,http://www.sandwell.gov.uk/info/200202/performance_and_spending/1079/payments_over_500,01-Jul-21,Housing & Communities,FISHER GERMAN LLP,Neighbourhoods,3084.46,Consultancy,2122P04_CR00470,69334
Sandwell Metropolitan Borough Council,http://www.sandwell.gov.uk/info/200202/performance_and_spending/1079/payments_over_500,01-Jul-21,Housing & Communities,HOARE LEA LLP,Neighbourhoods,3550,Consultancy,2122P04_CR00471,137607
Sandwell Metropolitan Borough Council,http://www.sandwell.gov.uk/info/200202/performance_and_spending/1079/payments_over_500,01-Jul-21,Housing & Communities,MACE LTD,Neighbourhoods,9060,Consultancy,2122P04_CR00472,30882
Sandwell Metropolitan Borough Council,http://www.sandwell.gov.uk/info/200202/performance_and_spending/1079/payments_over_500,01-Jul-21,Housing & Communities,HOME FARM NURSERIES (PINVIN) LIMITED,Neighbourhoods,967.5,Contract Cleaning,2122P04_CR00473,77003445
Sandwell Metropolitan Borough Council,http://www.sandwell.gov.uk/info/200202/performance_and_spending/1079/payments_over_500,01-Jul-21,Housing & Communities,TOTAL GAS AND POWER LIMITED,Neighbourhoods,870.22,Electricity,2122P04_CR00474,107605
Sandwell Metropolitan Borough Council,http://www.sandwell.gov.uk/info/200202/performance_and_spending/1079/payments_over_500,10-Jul-21,Housing & Communities,TOTAL GAS AND POWER LIMITED,Neighbourhoods,894,Electricity,2122P04_CR00475,107605
Sandwell Metropolitan Borough Council,http://www.sandwell.gov.uk/info/200202/performance_and_spending/1079/payments_over_500,03-Jul-21,Housing & Communities,TONY RICHARDS MOBILITY,Neighbourhoods,560,Equipment & Furniture ,2122P04_CR00476,119141
Sandwell Metropolitan Borough Council,http://www.sandwell.gov.uk/info/200202/performance_and_spending/1079/payments_over_500,20-Jul-21,Housing & Communities,WEST MIDLANDS MARQUEES,Neighbourhoods,881.25,Equipment & Furniture ,2122P04_CR00477,134805
Sandwell Metropolitan Borough Council,http://www.sandwell.gov.uk/info/200202/performance_and_spending/1079/payments_over_500,01-Jul-21,Housing & Communities,XEROX FINANCE LTD,Neighbourhoods,2402.82,Equipment & Furniture ,2122P04_CR00478,2269
Sandwell Metropolitan Borough Council,http://www.sandwell.gov.uk/info/200202/performance_and_spending/1079/payments_over_500,01-Jul-21,Housing & Communities,WEST MIDLANDS EMPLOYERS,Neighbourhoods,650,Externally Purchased Professional Services ,2122P04_CR00479,1587505
Sandwell Metropolitan Borough Council,http://www.sandwell.gov.uk/info/200202/performance_and_spending/1079/payments_over_500,01-Jul-21,Housing & Communities,BEECHWOOD TREES & LANDSCAPE LTD,Neighbourhoods,950,Externally Purchased Professional Services ,2122P04_CR00480,93287
Sandwell Metropolitan Borough Council,http://www.sandwell.gov.uk/info/200202/performance_and_spending/1079/payments_over_500,01-Jul-21,Housing & Communities,BEECHWOOD TREES & LANDSCAPE LTD,Neighbourhoods,820,Externally Purchased Professional Services ,2122P04_CR00481,93287
Sandwell Metropolitan Borough Council,http://www.sandwell.gov.uk/info/200202/performance_and_spending/1079/payments_over_500,01-Jul-21,Housing & Communities,BEECHWOOD TREES & LANDSCAPE LTD,Neighbourhoods,787.5,Externally Purchased Professional Services ,2122P04_CR00482,93287
Sandwell Metropolitan Borough Council,http://www.sandwell.gov.uk/info/200202/performance_and_spending/1079/payments_over_500,01-Jul-21,Housing & Communities,MIDLAND FORESTRY LIMITED,Neighbourhoods,783,Externally Purchased Professional Services ,2122P04_CR00483,45812
Sandwell Metropolitan Borough Council,http://www.sandwell.gov.uk/info/200202/performance_and_spending/1079/payments_over_500,01-Jul-21,Housing & Communities,MIDLAND FORESTRY LIMITED,Neighbourhoods,783,Externally Purchased Professional Services ,2122P04_CR00484,45812
Sandwell Metropolitan Borough Council,http://www.sandwell.gov.uk/info/200202/performance_and_spending/1079/payments_over_500,02-Jul-21,Housing & Communities,MIDLAND FORESTRY LIMITED,Neighbourhoods,783,Externally Purchased Professional Services ,2122P04_CR00485,45812
Sandwell Metropolitan Borough Council,http://www.sandwell.gov.uk/info/200202/performance_and_spending/1079/payments_over_500,02-Jul-21,Housing & Communities,MIDLAND FORESTRY LIMITED,Neighbourhoods,783,Externally Purchased Professional Services ,2122P04_CR00486,45812
Sandwell Metropolitan Borough Council,http://www.sandwell.gov.uk/info/200202/performance_and_spending/1079/payments_over_500,15-Jul-21,Housing & Communities,MIDLAND FORESTRY LIMITED,Neighbourhoods,890,Externally Purchased Professional Services ,2122P04_CR00487,45812
Sandwell Metropolitan Borough Council,http://www.sandwell.gov.uk/info/200202/performance_and_spending/1079/payments_over_500,16-Jul-21,Housing & Communities,MIDLAND FORESTRY LIMITED,Neighbourhoods,783,Externally Purchased Professional Services ,2122P04_CR00488,45812
Sandwell Metropolitan Borough Council,http://www.sandwell.gov.uk/info/200202/performance_and_spending/1079/payments_over_500,16-Jul-21,Housing & Communities,MIDLAND FORESTRY LIMITED,Neighbourhoods,870,Externally Purchased Professional Services ,2122P04_CR00489,45812
Sandwell Metropolitan Borough Council,http://www.sandwell.gov.uk/info/200202/performance_and_spending/1079/payments_over_500,21-Jul-21,Housing & Communities,MIDLAND FORESTRY LIMITED,Neighbourhoods,1610,Externally Purchased Professional Services ,2122P04_CR00490,45812
Sandwell Metropolitan Borough Council,http://www.sandwell.gov.uk/info/200202/performance_and_spending/1079/payments_over_500,22-Jul-21,Housing & Communities,MIDLAND FORESTRY LIMITED,Neighbourhoods,1080,Externally Purchased Professional Services ,2122P04_CR00491,45812
Sandwell Metropolitan Borough Council,http://www.sandwell.gov.uk/info/200202/performance_and_spending/1079/payments_over_500,28-Jul-21,Housing & Communities,MIDLAND FORESTRY LIMITED,Neighbourhoods,780,Externally Purchased Professional Services ,2122P04_CR00492,45812
Sandwell Metropolitan Borough Council,http://www.sandwell.gov.uk/info/200202/performance_and_spending/1079/payments_over_500,28-Jul-21,Housing & Communities,MIDLAND FORESTRY LIMITED,Neighbourhoods,522,Externally Purchased Professional Services ,2122P04_CR00493,45812
Sandwell Metropolitan Borough Council,http://www.sandwell.gov.uk/info/200202/performance_and_spending/1079/payments_over_500,01-Jul-21,Housing & Communities,SERCO LIMITED,Neighbourhoods,884.89,Externally Purchased Professional Services ,2122P04_CR00494,53771
Sandwell Metropolitan Borough Council,http://www.sandwell.gov.uk/info/200202/performance_and_spending/1079/payments_over_500,01-Jul-21,Housing & Communities,ALLSTAR BUSINESS SOLUTIONS LIMITED,Neighbourhoods,3969.07,Fuel ,2122P04_CR00495,104057
Sandwell Metropolitan Borough Council,http://www.sandwell.gov.uk/info/200202/performance_and_spending/1079/payments_over_500,01-Jul-21,Housing & Communities,ALLSTAR BUSINESS SOLUTIONS LIMITED,Neighbourhoods,3027.23,Fuel ,2122P04_CR00496,104057
Sandwell Metropolitan Borough Council,http://www.sandwell.gov.uk/info/200202/performance_and_spending/1079/payments_over_500,05-Jul-21,Housing & Communities,CERTAS ENERGY LIMITED,Neighbourhoods,10202.63,Fuel ,2122P04_CR00497,80421
Sandwell Metropolitan Borough Council,http://www.sandwell.gov.uk/info/200202/performance_and_spending/1079/payments_over_500,05-Jul-21,Housing & Communities,CERTAS ENERGY LIMITED,Neighbourhoods,12462.96,Fuel ,2122P04_CR00498,80421
Sandwell Metropolitan Borough Council,http://www.sandwell.gov.uk/info/200202/performance_and_spending/1079/payments_over_500,01-Jul-21,Housing & Communities,KRUNCH UK,Neighbourhoods,3581.75,Grant Payments,2122P04_CR00499,8588452
Sandwell Metropolitan Borough Council,http://www.sandwell.gov.uk/info/200202/performance_and_spending/1079/payments_over_500,20-Jul-21,Housing & Communities,THE ALBION FOUNDATION,Neighbourhoods,2328,Grant Payments,2122P04_CR00500,21026659
Sandwell Metropolitan Borough Council,http://www.sandwell.gov.uk/info/200202/performance_and_spending/1079/payments_over_500,01-Jul-21,Housing & Communities,TSA SPORTS AND EDUCATION CIC,Neighbourhoods,5817.75,Grant Payments,2122P04_CR00501,139844
Sandwell Metropolitan Borough Council,http://www.sandwell.gov.uk/info/200202/performance_and_spending/1079/payments_over_500,01-Jul-21,Housing & Communities,REWIND UK EDUCATION AND INTERVENTIONS LTD,Neighbourhoods,1800,Grant Payments,2122P04_CR00502,110507
Sandwell Metropolitan Borough Council,http://www.sandwell.gov.uk/info/200202/performance_and_spending/1079/payments_over_500,01-Jul-21,Housing & Communities,CITRON HYGIENE UK LTD,Neighbourhoods,1389.45,Hygiene Services,2122P04_CR00503,140849
Sandwell Metropolitan Borough Council,http://www.sandwell.gov.uk/info/200202/performance_and_spending/1079/payments_over_500,08-Jul-21,Housing & Communities,FARONICS EMEA LTD,Neighbourhoods,3996.2,ICT ,2122P04_CR00504,153117
Sandwell Metropolitan Borough Council,http://www.sandwell.gov.uk/info/200202/performance_and_spending/1079/payments_over_500,08-Jul-21,Housing & Communities,POST OFFICE COUNTERS,Neighbourhoods,12555,Licences & Test Fees,2122P04_CR00505,102580
Sandwell Metropolitan Borough Council,http://www.sandwell.gov.uk/info/200202/performance_and_spending/1079/payments_over_500,01-Jul-21,Housing & Communities,KEYCRAFT,Neighbourhoods,1209.52,Materials & Consumables,2122P04_CR00506,1064066
Sandwell Metropolitan Borough Council,http://www.sandwell.gov.uk/info/200202/performance_and_spending/1079/payments_over_500,07-Jul-21,Housing & Communities,BOLINDA UK LTD,Neighbourhoods,7000,Materials & Consumables,2122P04_CR00507,117408
Sandwell Metropolitan Borough Council,http://www.sandwell.gov.uk/info/200202/performance_and_spending/1079/payments_over_500,08-Jul-21,Housing & Communities,BOLINDA UK LTD,Neighbourhoods,570.79,Materials & Consumables,2122P04_CR00508,117408
Sandwell Metropolitan Borough Council,http://www.sandwell.gov.uk/info/200202/performance_and_spending/1079/payments_over_500,08-Jul-21,Housing & Communities,BOLINDA UK LTD,Neighbourhoods,1166,Materials & Consumables,2122P04_CR00509,117408
Sandwell Metropolitan Borough Council,http://www.sandwell.gov.uk/info/200202/performance_and_spending/1079/payments_over_500,07-Jul-21,Housing & Communities,JCS ONLINE RESOURCES LIMITED,Neighbourhoods,1534.1,Materials & Consumables,2122P04_CR00510,120707
Sandwell Metropolitan Borough Council,http://www.sandwell.gov.uk/info/200202/performance_and_spending/1079/payments_over_500,01-Jul-21,Housing & Communities,NOMIX ENVIRO LTD,Neighbourhoods,2306.2,Materials & Consumables,2122P04_CR00511,37313
Sandwell Metropolitan Borough Council,http://www.sandwell.gov.uk/info/200202/performance_and_spending/1079/payments_over_500,01-Jul-21,Housing & Communities,RIGBY TAYLOR LTD,Neighbourhoods,1336.5,Materials & Consumables,2122P04_CR00512,1076172
Sandwell Metropolitan Borough Council,http://www.sandwell.gov.uk/info/200202/performance_and_spending/1079/payments_over_500,01-Jul-21,Housing & Communities,RIGBY TAYLOR LTD,Neighbourhoods,1260.8,Materials & Consumables,2122P04_CR00513,1076172
Sandwell Metropolitan Borough Council,http://www.sandwell.gov.uk/info/200202/performance_and_spending/1079/payments_over_500,19-Jul-21,Housing & Communities,RIGBY TAYLOR LTD,Neighbourhoods,660,Materials & Consumables,2122P04_CR00514,1076172
Sandwell Metropolitan Borough Council,http://www.sandwell.gov.uk/info/200202/performance_and_spending/1079/payments_over_500,19-Jul-21,Housing & Communities,RIGBY TAYLOR LTD,Neighbourhoods,674.85,Materials & Consumables,2122P04_CR00515,1076172
Sandwell Metropolitan Borough Council,http://www.sandwell.gov.uk/info/200202/performance_and_spending/1079/payments_over_500,19-Jul-21,Housing & Communities,RIGBY TAYLOR LTD,Neighbourhoods,1416.8,Materials & Consumables,2122P04_CR00516,1076172
Sandwell Metropolitan Borough Council,http://www.sandwell.gov.uk/info/200202/performance_and_spending/1079/payments_over_500,19-Jul-21,Housing & Communities,RIGBY TAYLOR LTD,Neighbourhoods,1411,Materials & Consumables,2122P04_CR00517,1076172
Sandwell Metropolitan Borough Council,http://www.sandwell.gov.uk/info/200202/performance_and_spending/1079/payments_over_500,19-Jul-21,Housing & Communities,RIGBY TAYLOR LTD,Neighbourhoods,680,Materials & Consumables,2122P04_CR00518,1076172
Sandwell Metropolitan Borough Council,http://www.sandwell.gov.uk/info/200202/performance_and_spending/1079/payments_over_500,01-Jul-21,Housing & Communities,TY UK LIMITED,Neighbourhoods,1042.8,Materials & Consumables,2122P04_CR00519,107284
Sandwell Metropolitan Borough Council,http://www.sandwell.gov.uk/info/200202/performance_and_spending/1079/payments_over_500,08-Jul-21,Housing & Communities,VENDAID LTD,Neighbourhoods,630,Materials & Consumables,2122P04_CR00520,1045695
Sandwell Metropolitan Borough Council,http://www.sandwell.gov.uk/info/200202/performance_and_spending/1079/payments_over_500,14-Jul-21,Housing & Communities,CERTAS ENERGY LIMITED,Neighbourhoods,563.5,Oil,2122P04_CR00521,80421
Sandwell Metropolitan Borough Council,http://www.sandwell.gov.uk/info/200202/performance_and_spending/1079/payments_over_500,01-Jul-21,Housing & Communities,HOME FARM NURSERIES (PINVIN) LIMITED,Neighbourhoods,1467.58,Operational Services ,2122P04_CR00522,77003445
Sandwell Metropolitan Borough Council,http://www.sandwell.gov.uk/info/200202/performance_and_spending/1079/payments_over_500,01-Jul-21,Housing & Communities,PESTEX LTD,Neighbourhoods,840,Pest Control,2122P04_CR00523,1464607
Sandwell Metropolitan Borough Council,http://www.sandwell.gov.uk/info/200202/performance_and_spending/1079/payments_over_500,07-Jul-21,Housing & Communities,DLM DISTRIBUTION LIMITED,Neighbourhoods,695,"Printing, Stationery & General Office Expenses",2122P04_CR00524,77838
Sandwell Metropolitan Borough Council,http://www.sandwell.gov.uk/info/200202/performance_and_spending/1079/payments_over_500,01-Jul-21,Housing & Communities,SHARP,Neighbourhoods,4402.44,Rents,2122P04_CR00525,8280972
Sandwell Metropolitan Borough Council,http://www.sandwell.gov.uk/info/200202/performance_and_spending/1079/payments_over_500,01-Jul-21,Housing & Communities,SHARP,Neighbourhoods,4402.44,Rents,2122P04_CR00526,8280972
Sandwell Metropolitan Borough Council,http://www.sandwell.gov.uk/info/200202/performance_and_spending/1079/payments_over_500,01-Jul-21,Housing & Communities,SHARP,Neighbourhoods,4402.44,Rents,2122P04_CR00527,8280972
Sandwell Metropolitan Borough Council,http://www.sandwell.gov.uk/info/200202/performance_and_spending/1079/payments_over_500,01-Jul-21,Housing & Communities,SHARP,Neighbourhoods,4402.44,Rents,2122P04_CR00528,8280972
Sandwell Metropolitan Borough Council,http://www.sandwell.gov.uk/info/200202/performance_and_spending/1079/payments_over_500,01-Jul-21,Housing & Communities,SHARP,Neighbourhoods,4402.44,Rents,2122P04_CR00529,8280972
Sandwell Metropolitan Borough Council,http://www.sandwell.gov.uk/info/200202/performance_and_spending/1079/payments_over_500,01-Jul-21,Housing & Communities,SHARP,Neighbourhoods,4402.44,Rents,2122P04_CR00530,8280972
Sandwell Metropolitan Borough Council,http://www.sandwell.gov.uk/info/200202/performance_and_spending/1079/payments_over_500,08-Jul-21,Housing & Communities,SHARP,Neighbourhoods,4402.44,Rents,2122P04_CR00531,8280972
Sandwell Metropolitan Borough Council,http://www.sandwell.gov.uk/info/200202/performance_and_spending/1079/payments_over_500,01-Jul-21,Housing & Communities,BCH PROPERTY LIMITED,Neighbourhoods,866.84,Rents,2122P04_CR00532,1011861
Sandwell Metropolitan Borough Council,http://www.sandwell.gov.uk/info/200202/performance_and_spending/1079/payments_over_500,01-Jul-21,Housing & Communities,BCH PROPERTY LIMITED,Neighbourhoods,2184,Rents,2122P04_CR00533,1011861
Sandwell Metropolitan Borough Council,http://www.sandwell.gov.uk/info/200202/performance_and_spending/1079/payments_over_500,01-Jul-21,Housing & Communities,BCH PROPERTY LIMITED,Neighbourhoods,1283.52,Rents,2122P04_CR00534,1011861
Sandwell Metropolitan Borough Council,http://www.sandwell.gov.uk/info/200202/performance_and_spending/1079/payments_over_500,01-Jul-21,Housing & Communities,BCH PROPERTY LIMITED,Neighbourhoods,750.06,Rents,2122P04_CR00535,1011861
Sandwell Metropolitan Borough Council,http://www.sandwell.gov.uk/info/200202/performance_and_spending/1079/payments_over_500,01-Jul-21,Housing & Communities,BCH PROPERTY LIMITED,Neighbourhoods,833.5,Rents,2122P04_CR00536,1011861
Sandwell Metropolitan Borough Council,http://www.sandwell.gov.uk/info/200202/performance_and_spending/1079/payments_over_500,01-Jul-21,Housing & Communities,BUCKS HOUSING LTD T/A HAGLEY HOTEL,Neighbourhoods,980,Rents,2122P04_CR00537,143677
Sandwell Metropolitan Borough Council,http://www.sandwell.gov.uk/info/200202/performance_and_spending/1079/payments_over_500,01-Jul-21,Housing & Communities,BUCKS HOUSING LTD T/A HAGLEY HOTEL,Neighbourhoods,500,Rents,2122P04_CR00538,143677
Sandwell Metropolitan Borough Council,http://www.sandwell.gov.uk/info/200202/performance_and_spending/1079/payments_over_500,01-Jul-21,Housing & Communities,BUCKS HOUSING LTD T/A HAGLEY HOTEL,Neighbourhoods,1925,Rents,2122P04_CR00539,143677
Sandwell Metropolitan Borough Council,http://www.sandwell.gov.uk/info/200202/performance_and_spending/1079/payments_over_500,01-Jul-21,Housing & Communities,CONTRACT LETTINGS LTD,Neighbourhoods,625.58,Rents,2122P04_CR00540,76625
Sandwell Metropolitan Borough Council,http://www.sandwell.gov.uk/info/200202/performance_and_spending/1079/payments_over_500,01-Jul-21,Housing & Communities,CONTRACT LETTINGS LTD,Neighbourhoods,625.58,Rents,2122P04_CR00541,76625
Sandwell Metropolitan Borough Council,http://www.sandwell.gov.uk/info/200202/performance_and_spending/1079/payments_over_500,01-Jul-21,Housing & Communities,CONTRACT LETTINGS LTD,Neighbourhoods,625.58,Rents,2122P04_CR00542,76625
Sandwell Metropolitan Borough Council,http://www.sandwell.gov.uk/info/200202/performance_and_spending/1079/payments_over_500,01-Jul-21,Housing & Communities,CONTRACT LETTINGS LTD,Neighbourhoods,625.58,Rents,2122P04_CR00543,76625
Sandwell Metropolitan Borough Council,http://www.sandwell.gov.uk/info/200202/performance_and_spending/1079/payments_over_500,01-Jul-21,Housing & Communities,CONTRACT LETTINGS LTD,Neighbourhoods,575.67,Rents,2122P04_CR00544,76625
Sandwell Metropolitan Borough Council,http://www.sandwell.gov.uk/info/200202/performance_and_spending/1079/payments_over_500,01-Jul-21,Housing & Communities,CONTRACT LETTINGS LTD,Neighbourhoods,575.67,Rents,2122P04_CR00545,76625
Sandwell Metropolitan Borough Council,http://www.sandwell.gov.uk/info/200202/performance_and_spending/1079/payments_over_500,01-Jul-21,Housing & Communities,CONTRACT LETTINGS LTD,Neighbourhoods,605.4,Rents,2122P04_CR00546,76625
Sandwell Metropolitan Borough Council,http://www.sandwell.gov.uk/info/200202/performance_and_spending/1079/payments_over_500,01-Jul-21,Housing & Communities,CONTRACT LETTINGS LTD,Neighbourhoods,514.2,Rents,2122P04_CR00547,76625
Sandwell Metropolitan Borough Council,http://www.sandwell.gov.uk/info/200202/performance_and_spending/1079/payments_over_500,01-Jul-21,Housing & Communities,CONTRACT LETTINGS LTD,Neighbourhoods,557.1,Rents,2122P04_CR00548,76625
Sandwell Metropolitan Borough Council,http://www.sandwell.gov.uk/info/200202/performance_and_spending/1079/payments_over_500,01-Jul-21,Housing & Communities,CONTRACT LETTINGS LTD,Neighbourhoods,605.4,Rents,2122P04_CR00549,76625
Sandwell Metropolitan Borough Council,http://www.sandwell.gov.uk/info/200202/performance_and_spending/1079/payments_over_500,01-Jul-21,Housing & Communities,CONTRACT LETTINGS LTD,Neighbourhoods,605.4,Rents,2122P04_CR00550,76625
Sandwell Metropolitan Borough Council,http://www.sandwell.gov.uk/info/200202/performance_and_spending/1079/payments_over_500,01-Jul-21,Housing & Communities,CONTRACT LETTINGS LTD,Neighbourhoods,605.4,Rents,2122P04_CR00551,76625
Sandwell Metropolitan Borough Council,http://www.sandwell.gov.uk/info/200202/performance_and_spending/1079/payments_over_500,01-Jul-21,Housing & Communities,CONTRACT LETTINGS LTD,Neighbourhoods,605.4,Rents,2122P04_CR00552,76625
Sandwell Metropolitan Borough Council,http://www.sandwell.gov.uk/info/200202/performance_and_spending/1079/payments_over_500,01-Jul-21,Housing & Communities,CONTRACT LETTINGS LTD,Neighbourhoods,557.1,Rents,2122P04_CR00553,76625
Sandwell Metropolitan Borough Council,http://www.sandwell.gov.uk/info/200202/performance_and_spending/1079/payments_over_500,01-Jul-21,Housing & Communities,CONTRACT LETTINGS LTD,Neighbourhoods,557.1,Rents,2122P04_CR00554,76625
Sandwell Metropolitan Borough Council,http://www.sandwell.gov.uk/info/200202/performance_and_spending/1079/payments_over_500,01-Jul-21,Housing & Communities,CONTRACT LETTINGS LTD,Neighbourhoods,605.4,Rents,2122P04_CR00555,76625
Sandwell Metropolitan Borough Council,http://www.sandwell.gov.uk/info/200202/performance_and_spending/1079/payments_over_500,01-Jul-21,Housing & Communities,CONTRACT LETTINGS LTD,Neighbourhoods,514.2,Rents,2122P04_CR00556,76625
Sandwell Metropolitan Borough Council,http://www.sandwell.gov.uk/info/200202/performance_and_spending/1079/payments_over_500,01-Jul-21,Housing & Communities,CONTRACT LETTINGS LTD,Neighbourhoods,636.3,Rents,2122P04_CR00557,76625
Sandwell Metropolitan Borough Council,http://www.sandwell.gov.uk/info/200202/performance_and_spending/1079/payments_over_500,01-Jul-21,Housing & Communities,CONTRACT LETTINGS LTD,Neighbourhoods,617.1,Rents,2122P04_CR00558,76625
Sandwell Metropolitan Borough Council,http://www.sandwell.gov.uk/info/200202/performance_and_spending/1079/payments_over_500,01-Jul-21,Housing & Communities,CONTRACT LETTINGS LTD,Neighbourhoods,605.4,Rents,2122P04_CR00559,76625
Sandwell Metropolitan Borough Council,http://www.sandwell.gov.uk/info/200202/performance_and_spending/1079/payments_over_500,01-Jul-21,Housing & Communities,CONTRACT LETTINGS LTD,Neighbourhoods,600,Rents,2122P04_CR00560,76625
Sandwell Metropolitan Borough Council,http://www.sandwell.gov.uk/info/200202/performance_and_spending/1079/payments_over_500,01-Jul-21,Housing & Communities,CONTRACT LETTINGS LTD,Neighbourhoods,578.7,Rents,2122P04_CR00561,76625
Sandwell Metropolitan Borough Council,http://www.sandwell.gov.uk/info/200202/performance_and_spending/1079/payments_over_500,01-Jul-21,Housing & Communities,CONTRACT LETTINGS LTD,Neighbourhoods,642.9,Rents,2122P04_CR00562,76625
Sandwell Metropolitan Borough Council,http://www.sandwell.gov.uk/info/200202/performance_and_spending/1079/payments_over_500,01-Jul-21,Housing & Communities,CONTRACT LETTINGS LTD,Neighbourhoods,597.9,Rents,2122P04_CR00563,76625
Sandwell Metropolitan Borough Council,http://www.sandwell.gov.uk/info/200202/performance_and_spending/1079/payments_over_500,01-Jul-21,Housing & Communities,RIDDELL TPS LIMITED,Neighbourhoods,18528.08,Rents,2122P04_CR00564,132427
Sandwell Metropolitan Borough Council,http://www.sandwell.gov.uk/info/200202/performance_and_spending/1079/payments_over_500,01-Jul-21,Housing & Communities,RIGHT TO CARE LTD.,Neighbourhoods,2823.15,Rents,2122P04_CR00565,133426
Sandwell Metropolitan Borough Council,http://www.sandwell.gov.uk/info/200202/performance_and_spending/1079/payments_over_500,01-Jul-21,Housing & Communities,RIGHT TO CARE LTD.,Neighbourhoods,1107.14,Rents,2122P04_CR00566,133426
Sandwell Metropolitan Borough Council,http://www.sandwell.gov.uk/info/200202/performance_and_spending/1079/payments_over_500,01-Jul-21,Housing & Communities,RIGHT TO CARE LTD.,Neighbourhoods,996.99,Rents,2122P04_CR00567,133426
Sandwell Metropolitan Borough Council,http://www.sandwell.gov.uk/info/200202/performance_and_spending/1079/payments_over_500,01-Jul-21,Housing & Communities,TRH WALSALL LTD,Neighbourhoods,500.04,Rents,2122P04_CR00568,85648
Sandwell Metropolitan Borough Council,http://www.sandwell.gov.uk/info/200202/performance_and_spending/1079/payments_over_500,01-Jul-21,Housing & Communities,TRH WALSALL LTD,Neighbourhoods,1000.02,Rents,2122P04_CR00569,85648
Sandwell Metropolitan Borough Council,http://www.sandwell.gov.uk/info/200202/performance_and_spending/1079/payments_over_500,01-Jul-21,Housing & Communities,TRH WALSALL LTD,Neighbourhoods,566.78,Rents,2122P04_CR00570,85648
Sandwell Metropolitan Borough Council,http://www.sandwell.gov.uk/info/200202/performance_and_spending/1079/payments_over_500,01-Jul-21,Housing & Communities,HITCHED LTD,Neighbourhoods,799,Rents & Accomodation Charges,2122P04_CR00571,151232
Sandwell Metropolitan Borough Council,http://www.sandwell.gov.uk/info/200202/performance_and_spending/1079/payments_over_500,01-Jul-21,Housing & Communities,PRO-SERVICING LTD,Neighbourhoods,585,Rents & Accomodation Charges,2122P04_CR00572,153485
Sandwell Metropolitan Borough Council,http://www.sandwell.gov.uk/info/200202/performance_and_spending/1079/payments_over_500,20-Jul-21,Housing & Communities,CHUBB FIRE & SECURITY LIMITED t/a CHUBB ELECTRONIC SECURITY,Neighbourhoods,695.86,Security,2122P04_CR00573,81343
Sandwell Metropolitan Borough Council,http://www.sandwell.gov.uk/info/200202/performance_and_spending/1079/payments_over_500,01-Jul-21,Housing & Communities,COUGAR MONITORING LTD T/A KINGS SECURE TECHNOLOGIES,Neighbourhoods,1680,Security,2122P04_CR00574,1592507
Sandwell Metropolitan Borough Council,http://www.sandwell.gov.uk/info/200202/performance_and_spending/1079/payments_over_500,01-Jul-21,Housing & Communities,PROFILE SECURITY SERVICES LTD,Neighbourhoods,2118.48,Security,2122P04_CR00575,131253
Sandwell Metropolitan Borough Council,http://www.sandwell.gov.uk/info/200202/performance_and_spending/1079/payments_over_500,05-Jul-21,Housing & Communities,PROFILE SECURITY SERVICES LTD,Neighbourhoods,1059.24,Security,2122P04_CR00576,131253
Sandwell Metropolitan Borough Council,http://www.sandwell.gov.uk/info/200202/performance_and_spending/1079/payments_over_500,01-Jul-21,Housing & Communities,PROFILE SECURITY SERVICES LTD,Neighbourhoods,1054.03,Security,2122P04_CR00577,131253
Sandwell Metropolitan Borough Council,http://www.sandwell.gov.uk/info/200202/performance_and_spending/1079/payments_over_500,01-Jul-21,Housing & Communities,PROFILE SECURITY SERVICES LTD,Neighbourhoods,16211.13,Security,2122P04_CR00578,131253
Sandwell Metropolitan Borough Council,http://www.sandwell.gov.uk/info/200202/performance_and_spending/1079/payments_over_500,01-Jul-21,Housing & Communities,Q TECHNICAL SERVICES UK LTD,Neighbourhoods,1420,Security,2122P04_CR00579,135645
Sandwell Metropolitan Borough Council,http://www.sandwell.gov.uk/info/200202/performance_and_spending/1079/payments_over_500,01-Jul-21,Housing & Communities,SANDWELL LIFT PROJECT COMPANY (NO 3) LIMITED,Neighbourhoods,111833.08,SH Payments,2122P04_CR00580,113986
Sandwell Metropolitan Borough Council,http://www.sandwell.gov.uk/info/200202/performance_and_spending/1079/payments_over_500,15-Jul-21,Housing & Communities,ARCHIVES WEST MIDLANDS,Neighbourhoods,500,Subscriptions,2122P04_CR00581,134908
Sandwell Metropolitan Borough Council,http://www.sandwell.gov.uk/info/200202/performance_and_spending/1079/payments_over_500,01-Jul-21,Housing & Communities,PROQUEST LLC,Neighbourhoods,7592.83,Subscriptions,2122P04_CR00582,79665
Sandwell Metropolitan Borough Council,http://www.sandwell.gov.uk/info/200202/performance_and_spending/1079/payments_over_500,01-Jul-21,Housing & Communities,ENTITLEDTO LIMITED,Neighbourhoods,6000,Subscriptions,2122P04_CR00583,130541
Sandwell Metropolitan Borough Council,http://www.sandwell.gov.uk/info/200202/performance_and_spending/1079/payments_over_500,07-Jul-21,Housing & Communities,ACCORD HOUSING ASSOCIATION LTD (ASRA & MOTHER TERESA HOUSE) (ASC),Neighbourhoods,580,Tenants Expenses,2122P04_CR00584,136272
Sandwell Metropolitan Borough Council,http://www.sandwell.gov.uk/info/200202/performance_and_spending/1079/payments_over_500,01-Jul-21,Housing & Communities,SERCO LIMITED,Neighbourhoods,13469.57,Waste Disposal Charges,2122P04_CR00585,53771
Sandwell Metropolitan Borough Council,http://www.sandwell.gov.uk/info/200202/performance_and_spending/1079/payments_over_500,01-Jul-21,Housing & Communities,SERCO LIMITED,Neighbourhoods,811617.87,Waste Disposal Charges,2122P04_CR00586,53771
Sandwell Metropolitan Borough Council,http://www.sandwell.gov.uk/info/200202/performance_and_spending/1079/payments_over_500,16-Jul-21,Housing & Communities,SERCO LIMITED,Neighbourhoods,13607.25,Waste Disposal Charges,2122P04_CR00587,53771
Sandwell Metropolitan Borough Council,http://www.sandwell.gov.uk/info/200202/performance_and_spending/1079/payments_over_500,16-Jul-21,Housing & Communities,SERCO LIMITED,Neighbourhoods,1548625.84,Waste Disposal Charges,2122P04_CR00588,53771
Sandwell Metropolitan Borough Council,http://www.sandwell.gov.uk/info/200202/performance_and_spending/1079/payments_over_500,05-Jul-21,Housing & Communities,STAFFORDSHIRE COUNTY COUNCIL,Neighbourhoods,386789.36,Waste Disposal Charges,2122P04_CR00589,1124861
Sandwell Metropolitan Borough Council,http://www.sandwell.gov.uk/info/200202/performance_and_spending/1079/payments_over_500,01-Jul-21,Housing & Communities,SUEZ RECYLING AND RECOVERY HOLDINGS UK LTD,Neighbourhoods,2104.05,Waste Disposal Charges,2122P04_CR00590,129939
Sandwell Metropolitan Borough Council,http://www.sandwell.gov.uk/info/200202/performance_and_spending/1079/payments_over_500,01-Jul-21,Housing & Communities,PENNON WATER SERVICES T/A SOURCE FOR BUSINESS,Neighbourhoods,4093.64,Water Services,2122P04_CR00591,131726
Sandwell Metropolitan Borough Council,http://www.sandwell.gov.uk/info/200202/performance_and_spending/1079/payments_over_500,01-Jul-21,Housing & Communities,PENNON WATER SERVICES T/A SOURCE FOR BUSINESS,Neighbourhoods,745.37,Water Services,2122P04_CR00592,131726
Sandwell Metropolitan Borough Council,http://www.sandwell.gov.uk/info/200202/performance_and_spending/1079/payments_over_500,01-Jul-21,Housing & Communities,WATER PLUS SELECT LIMITED,Neighbourhoods,530.2,Water Services,2122P04_CR00593,129644
Sandwell Metropolitan Borough Council,http://www.sandwell.gov.uk/info/200202/performance_and_spending/1079/payments_over_500,01-Jul-21,Housing & Communities,WATER PLUS SELECT LIMITED,Neighbourhoods,887.67,Water Services,2122P04_CR00594,129644
Sandwell Metropolitan Borough Council,http://www.sandwell.gov.uk/info/200202/performance_and_spending/1079/payments_over_500,27-Jul-21,Housing & Communities,REDACTED PERSONAL DATA,Neighbourhoods,500,Rents,2122P04_CR00595,REDACTED PERSONAL DATA
Sandwell Metropolitan Borough Council,http://www.sandwell.gov.uk/info/200202/performance_and_spending/1079/payments_over_500,27-Jul-21,Housing & Communities,REDACTED PERSONAL DATA,Neighbourhoods,550,Rents,2122P04_CR00596,REDACTED PERSONAL DATA
Sandwell Metropolitan Borough Council,http://www.sandwell.gov.uk/info/200202/performance_and_spending/1079/payments_over_500,27-Jul-21,Housing & Communities,REDACTED PERSONAL DATA,Neighbourhoods,500,Rents,2122P04_CR00597,REDACTED PERSONAL DATA
Sandwell Metropolitan Borough Council,http://www.sandwell.gov.uk/info/200202/performance_and_spending/1079/payments_over_500,27-Jul-21,Housing & Communities,REDACTED PERSONAL DATA,Neighbourhoods,500,Rents,2122P04_CR00598,REDACTED PERSONAL DATA
Sandwell Metropolitan Borough Council,http://www.sandwell.gov.uk/info/200202/performance_and_spending/1079/payments_over_500,27-Jul-21,Housing & Communities,REDACTED PERSONAL DATA,Neighbourhoods,550,Rents,2122P04_CR00599,REDACTED PERSONAL DATA
Sandwell Metropolitan Borough Council,http://www.sandwell.gov.uk/info/200202/performance_and_spending/1079/payments_over_500,27-Jul-21,Housing & Communities,REDACTED PERSONAL DATA,Neighbourhoods,500,Rents,2122P04_CR00600,REDACTED PERSONAL DATA
Sandwell Metropolitan Borough Council,http://www.sandwell.gov.uk/info/200202/performance_and_spending/1079/payments_over_500,27-Jul-21,Housing & Communities,REDACTED PERSONAL DATA,Neighbourhoods,500,Rents,2122P04_CR00601,REDACTED PERSONAL DATA
Sandwell Metropolitan Borough Council,http://www.sandwell.gov.uk/info/200202/performance_and_spending/1079/payments_over_500,27-Jul-21,Housing & Communities,REDACTED PERSONAL DATA,Neighbourhoods,900,Rents,2122P04_CR00602,REDACTED PERSONAL DATA
Sandwell Metropolitan Borough Council,http://www.sandwell.gov.uk/info/200202/performance_and_spending/1079/payments_over_500,27-Jul-21,Housing & Communities,REDACTED PERSONAL DATA,Neighbourhoods,550,Rents,2122P04_CR00603,REDACTED PERSONAL DATA
Sandwell Metropolitan Borough Council,http://www.sandwell.gov.uk/info/200202/performance_and_spending/1079/payments_over_500,27-Jul-21,Housing & Communities,REDACTED PERSONAL DATA,Neighbourhoods,550,Rents,2122P04_CR00604,REDACTED PERSONAL DATA
Sandwell Metropolitan Borough Council,http://www.sandwell.gov.uk/info/200202/performance_and_spending/1079/payments_over_500,27-Jul-21,Housing & Communities,REDACTED PERSONAL DATA,Neighbourhoods,550,Rents,2122P04_CR00605,REDACTED PERSONAL DATA
Sandwell Metropolitan Borough Council,http://www.sandwell.gov.uk/info/200202/performance_and_spending/1079/payments_over_500,27-Jul-21,Housing & Communities,REDACTED PERSONAL DATA,Neighbourhoods,500,Rents,2122P04_CR00606,REDACTED PERSONAL DATA
Sandwell Metropolitan Borough Council,http://www.sandwell.gov.uk/info/200202/performance_and_spending/1079/payments_over_500,27-Jul-21,Housing & Communities,REDACTED PERSONAL DATA,Neighbourhoods,500,Rents,2122P04_CR00607,REDACTED PERSONAL DATA
Sandwell Metropolitan Borough Council,http://www.sandwell.gov.uk/info/200202/performance_and_spending/1079/payments_over_500,27-Jul-21,Housing & Communities,REDACTED PERSONAL DATA,Neighbourhoods,500,Rents,2122P04_CR00608,REDACTED PERSONAL DATA
Sandwell Metropolitan Borough Council,http://www.sandwell.gov.uk/info/200202/performance_and_spending/1079/payments_over_500,27-Jul-21,Housing & Communities,REDACTED PERSONAL DATA,Neighbourhoods,500,Rents,2122P04_CR00609,REDACTED PERSONAL DATA
Sandwell Metropolitan Borough Council,http://www.sandwell.gov.uk/info/200202/performance_and_spending/1079/payments_over_500,27-Jul-21,Housing & Communities,REDACTED PERSONAL DATA,Neighbourhoods,500,Rents,2122P04_CR00610,REDACTED PERSONAL DATA
Sandwell Metropolitan Borough Council,http://www.sandwell.gov.uk/info/200202/performance_and_spending/1079/payments_over_500,27-Jul-21,Housing & Communities,REDACTED PERSONAL DATA,Neighbourhoods,1000,Rents,2122P04_CR00611,REDACTED PERSONAL DATA
Sandwell Metropolitan Borough Council,http://www.sandwell.gov.uk/info/200202/performance_and_spending/1079/payments_over_500,27-Jul-21,Housing & Communities,REDACTED PERSONAL DATA,Neighbourhoods,500,Rents,2122P04_CR00612,REDACTED PERSONAL DATA
Sandwell Metropolitan Borough Council,http://www.sandwell.gov.uk/info/200202/performance_and_spending/1079/payments_over_500,28-Jul-21,Housing & Communities,CHANGING OUR LIVES,Neighbourhoods,11971.5,Grant Payments,2122P04_CR00613,8551583
Sandwell Metropolitan Borough Council,http://www.sandwell.gov.uk/info/200202/performance_and_spending/1079/payments_over_500,28-Jul-21,Housing & Communities,FRIAR PARK MILLENNIUM CENTRE,Neighbourhoods,4991.75,Grant Payments,2122P04_CR00614,28476
Sandwell Metropolitan Borough Council,http://www.sandwell.gov.uk/info/200202/performance_and_spending/1079/payments_over_500,22-Jul-21,Housing & Communities,FRIAR PARK MILLENNIUM CENTRE,Neighbourhoods,14512,Grant Payments,2122P04_CR00615,28476
Sandwell Metropolitan Borough Council,http://www.sandwell.gov.uk/info/200202/performance_and_spending/1079/payments_over_500,22-Jul-21,Housing & Communities,FRIENDS OF HADEN HILL ESTATE,Neighbourhoods,4000,Grant Payments,2122P04_CR00616,68186
Sandwell Metropolitan Borough Council,http://www.sandwell.gov.uk/info/200202/performance_and_spending/1079/payments_over_500,23-Jul-21,Housing & Communities,GAYTON ROAD COMMUNITY CENTRE ASSOCIATION,Neighbourhoods,26350,Grant Payments,2122P04_CR00617,112420
Sandwell Metropolitan Borough Council,http://www.sandwell.gov.uk/info/200202/performance_and_spending/1079/payments_over_500,23-Jul-21,Housing & Communities,YEW TREE & TAME BRIDGE COMMUNITY CENTRE,Neighbourhoods,9400,Grant Payments,2122P04_CR00618,108389
Sandwell Metropolitan Borough Council,http://www.sandwell.gov.uk/info/200202/performance_and_spending/1079/payments_over_500,14-Jul-21,Housing & Communities,REDACTED PERSONAL DATA,Neighbourhoods,28541.5,Grant Payments,2122P04_CR00619,REDACTED PERSONAL DATA
Sandwell Metropolitan Borough Council,http://www.sandwell.gov.uk/info/200202/performance_and_spending/1079/payments_over_500,28-Jul-21,Housing & Communities,BLACK COUNTRY HOUSING GROUP LIMITED,Neighbourhoods,16098,Grant Payments,2122P04_CR00620,1715636
Sandwell Metropolitan Borough Council,http://www.sandwell.gov.uk/info/200202/performance_and_spending/1079/payments_over_500,14-Jul-21,Housing & Communities,REWIND UK EDUCATION AND INTERVENTIONS LTD,Neighbourhoods,6250,Grant Payments,2122P04_CR00621,110507
Sandwell Metropolitan Borough Council,http://www.sandwell.gov.uk/info/200202/performance_and_spending/1079/payments_over_500,07-Jul-21,Housing Revenue Account Capital,HIGGS & SONS SOLICITORS,Housing Revenue Account Capital,134868,CIP - Acquisition of Land & Existing Buildings,2122P04_CR00622,120965
Sandwell Metropolitan Borough Council,http://www.sandwell.gov.uk/info/200202/performance_and_spending/1079/payments_over_500,16-Jul-21,Housing Revenue Account Capital,HIGGS & SONS SOLICITORS,Housing Revenue Account Capital,140109.2,CIP - Acquisition of Land & Existing Buildings,2122P04_CR00623,120965
Sandwell Metropolitan Borough Council,http://www.sandwell.gov.uk/info/200202/performance_and_spending/1079/payments_over_500,16-Jul-21,Housing Revenue Account Capital,HIGGS & SONS SOLICITORS,Housing Revenue Account Capital,150318,CIP - Acquisition of Land & Existing Buildings,2122P04_CR00624,120965
Sandwell Metropolitan Borough Council,http://www.sandwell.gov.uk/info/200202/performance_and_spending/1079/payments_over_500,28-Jul-21,Housing Revenue Account Capital,HIGGS & SONS SOLICITORS,Housing Revenue Account Capital,150318,CIP - Acquisition of Land & Existing Buildings,2122P04_CR00625,120965
Sandwell Metropolitan Borough Council,http://www.sandwell.gov.uk/info/200202/performance_and_spending/1079/payments_over_500,08-Jul-21,Housing Revenue Account Capital,HIGGS & SONS SOLICITORS,Housing Revenue Account Capital,170918,CIP - Acquisition of Land & Existing Buildings,2122P04_CR00626,120965
Sandwell Metropolitan Borough Council,http://www.sandwell.gov.uk/info/200202/performance_and_spending/1079/payments_over_500,16-Jul-21,Housing Revenue Account Capital,HIGGS & SONS SOLICITORS,Housing Revenue Account Capital,191609.2,CIP - Acquisition of Land & Existing Buildings,2122P04_CR00627,120965
Sandwell Metropolitan Borough Council,http://www.sandwell.gov.uk/info/200202/performance_and_spending/1079/payments_over_500,05-Jul-21,Housing Revenue Account Capital,HIGGS & SONS SOLICITORS,Housing Revenue Account Capital,196759.2,CIP - Acquisition of Land & Existing Buildings,2122P04_CR00628,120965
Sandwell Metropolitan Borough Council,http://www.sandwell.gov.uk/info/200202/performance_and_spending/1079/payments_over_500,23-Jul-21,Housing Revenue Account Capital,HIGGS & SONS SOLICITORS,Housing Revenue Account Capital,196759.2,CIP - Acquisition of Land & Existing Buildings,2122P04_CR00629,120965
Sandwell Metropolitan Borough Council,http://www.sandwell.gov.uk/info/200202/performance_and_spending/1079/payments_over_500,08-Jul-21,Housing Revenue Account Capital,KAPASI & CO LTD,Housing Revenue Account Capital,8739.4,CIP - Acquisition of Land & Existing Buildings,2122P04_CR00630,120965
Sandwell Metropolitan Borough Council,http://www.sandwell.gov.uk/info/200202/performance_and_spending/1079/payments_over_500,08-Jul-21,Housing Revenue Account Capital,J.HARPER & SONS (LEOMINSTER) LIMITED,Housing Revenue Account Capital,152955.6,"CIP - New Construction,Conversion, Enhancement & Reno",2122P04_CR00631,111814
Sandwell Metropolitan Borough Council,http://www.sandwell.gov.uk/info/200202/performance_and_spending/1079/payments_over_500,16-Jul-21,Housing Revenue Account Capital,J.HARPER & SONS (LEOMINSTER) LIMITED,Housing Revenue Account Capital,156668.7,"CIP - New Construction,Conversion, Enhancement & Reno",2122P04_CR00632,111814
Sandwell Metropolitan Borough Council,http://www.sandwell.gov.uk/info/200202/performance_and_spending/1079/payments_over_500,01-Jul-21,Housing Revenue Account Capital,LIFT & ENGINEERING SERVICES LTD,Housing Revenue Account Capital,1691.98,"CIP - New Construction,Conversion, Enhancement & Reno",2122P04_CR00633,77003962
Sandwell Metropolitan Borough Council,http://www.sandwell.gov.uk/info/200202/performance_and_spending/1079/payments_over_500,01-Jul-21,Housing Revenue Account Capital,LIFT & ENGINEERING SERVICES LTD,Housing Revenue Account Capital,629.8,"CIP - New Construction,Conversion, Enhancement & Reno",2122P04_CR00634,77003962
Sandwell Metropolitan Borough Council,http://www.sandwell.gov.uk/info/200202/performance_and_spending/1079/payments_over_500,01-Jul-21,Housing Revenue Account Capital,LOVELL PARTNERSHIPS  LTD,Housing Revenue Account Capital,330370.87,"CIP - New Construction,Conversion, Enhancement & Reno",2122P04_CR00635,77007398
Sandwell Metropolitan Borough Council,http://www.sandwell.gov.uk/info/200202/performance_and_spending/1079/payments_over_500,05-Jul-21,Housing Revenue Account Capital,LOVELL PARTNERSHIPS  LTD,Housing Revenue Account Capital,153520.55,"CIP - New Construction,Conversion, Enhancement & Reno",2122P04_CR00636,77007398
Sandwell Metropolitan Borough Council,http://www.sandwell.gov.uk/info/200202/performance_and_spending/1079/payments_over_500,07-Jul-21,Housing Revenue Account Capital,LOVELL PARTNERSHIPS  LTD,Housing Revenue Account Capital,14256.76,"CIP - New Construction,Conversion, Enhancement & Reno",2122P04_CR00637,77007398
Sandwell Metropolitan Borough Council,http://www.sandwell.gov.uk/info/200202/performance_and_spending/1079/payments_over_500,05-Jul-21,Housing Revenue Account Capital,LOVELL PARTNERSHIPS  LTD,Housing Revenue Account Capital,44287.95,"CIP - New Construction,Conversion, Enhancement & Reno",2122P04_CR00638,77007398
Sandwell Metropolitan Borough Council,http://www.sandwell.gov.uk/info/200202/performance_and_spending/1079/payments_over_500,01-Jul-21,Housing Revenue Account Capital,ROWELEC LIMITED,Housing Revenue Account Capital,31634.45,"CIP - New Construction,Conversion, Enhancement & Reno",2122P04_CR00639,116267
Sandwell Metropolitan Borough Council,http://www.sandwell.gov.uk/info/200202/performance_and_spending/1079/payments_over_500,26-Jul-21,Housing Revenue Account Capital,SEDDON CONSTRUCTION LIMITED,Housing Revenue Account Capital,761959.24,"CIP - New Construction,Conversion, Enhancement & Reno",2122P04_CR00640,132999
Sandwell Metropolitan Borough Council,http://www.sandwell.gov.uk/info/200202/performance_and_spending/1079/payments_over_500,08-Jul-21,Housing Revenue Account Capital,SEDDON CONSTRUCTION LIMITED,Housing Revenue Account Capital,231991.98,"CIP - New Construction,Conversion, Enhancement & Reno",2122P04_CR00641,132999
Sandwell Metropolitan Borough Council,http://www.sandwell.gov.uk/info/200202/performance_and_spending/1079/payments_over_500,01-Jul-21,Housing Revenue Account Capital,SPELLER METCALFE MALVERN LIMITED,Housing Revenue Account Capital,715201.11,"CIP - New Construction,Conversion, Enhancement & Reno",2122P04_CR00642,92473
Sandwell Metropolitan Borough Council,http://www.sandwell.gov.uk/info/200202/performance_and_spending/1079/payments_over_500,16-Jul-21,Housing Revenue Account Capital,STROMA SPECIALIST ACCESS LTD,Housing Revenue Account Capital,36329.5,"CIP - New Construction,Conversion, Enhancement & Reno",2122P04_CR00643,136243
Sandwell Metropolitan Borough Council,http://www.sandwell.gov.uk/info/200202/performance_and_spending/1079/payments_over_500,07-Jul-21,Housing Revenue Account Capital,SURE MAINTENANCE LIMITED,Housing Revenue Account Capital,319471.52,"CIP - New Construction,Conversion, Enhancement & Reno",2122P04_CR00644,93926
Sandwell Metropolitan Borough Council,http://www.sandwell.gov.uk/info/200202/performance_and_spending/1079/payments_over_500,06-Jul-21,Housing Revenue Account Capital,VINCI CONSTRUCTION LTD,Housing Revenue Account Capital,61084.39,"CIP - New Construction,Conversion, Enhancement & Reno",2122P04_CR00645,36361
Sandwell Metropolitan Borough Council,http://www.sandwell.gov.uk/info/200202/performance_and_spending/1079/payments_over_500,09-Jul-21,Housing Revenue Account Capital,VINCI CONSTRUCTION LTD,Housing Revenue Account Capital,468626.11,"CIP - New Construction,Conversion, Enhancement & Reno",2122P04_CR00646,36361
Sandwell Metropolitan Borough Council,http://www.sandwell.gov.uk/info/200202/performance_and_spending/1079/payments_over_500,08-Jul-21,Housing Revenue Account Capital,WESTERN POWER DISTRIBUTION (WEST MIDLANDS) PLC,Housing Revenue Account Capital,8256.75,"CIP - New Construction,Conversion, Enhancement & Reno",2122P04_CR00647,97805
Sandwell Metropolitan Borough Council,http://www.sandwell.gov.uk/info/200202/performance_and_spending/1079/payments_over_500,01-Jul-21,Housing Revenue Account Capital,SELECT WINDOWS (HOME IMPROVEMENTS) LIMITED,Housing Revenue Account Capital,3372.75,Contract Payments,2122P04_CR00648,42616
Sandwell Metropolitan Borough Council,http://www.sandwell.gov.uk/info/200202/performance_and_spending/1079/payments_over_500,01-Jul-21,Housing Revenue Account Capital,SELECT WINDOWS (HOME IMPROVEMENTS) LIMITED,Housing Revenue Account Capital,813.75,Contract Payments,2122P04_CR00649,42616
Sandwell Metropolitan Borough Council,http://www.sandwell.gov.uk/info/200202/performance_and_spending/1079/payments_over_500,01-Jul-21,Housing Revenue Account Capital,SELECT WINDOWS (HOME IMPROVEMENTS) LIMITED,Housing Revenue Account Capital,675,Contract Payments,2122P04_CR00650,42616
Sandwell Metropolitan Borough Council,http://www.sandwell.gov.uk/info/200202/performance_and_spending/1079/payments_over_500,01-Jul-21,Housing Revenue Account Capital,SELECT WINDOWS (HOME IMPROVEMENTS) LIMITED,Housing Revenue Account Capital,613,Contract Payments,2122P04_CR00651,42616
Sandwell Metropolitan Borough Council,http://www.sandwell.gov.uk/info/200202/performance_and_spending/1079/payments_over_500,01-Jul-21,Housing Revenue Account Capital,SELECT WINDOWS (HOME IMPROVEMENTS) LIMITED,Housing Revenue Account Capital,660,Contract Payments,2122P04_CR00652,42616
Sandwell Metropolitan Borough Council,http://www.sandwell.gov.uk/info/200202/performance_and_spending/1079/payments_over_500,01-Jul-21,Housing Revenue Account Capital,SELECT WINDOWS (HOME IMPROVEMENTS) LIMITED,Housing Revenue Account Capital,563.38,Contract Payments,2122P04_CR00653,42616
Sandwell Metropolitan Borough Council,http://www.sandwell.gov.uk/info/200202/performance_and_spending/1079/payments_over_500,01-Jul-21,Housing Revenue Account Capital,SELECT WINDOWS (HOME IMPROVEMENTS) LIMITED,Housing Revenue Account Capital,1242.06,Contract Payments,2122P04_CR00654,42616
Sandwell Metropolitan Borough Council,http://www.sandwell.gov.uk/info/200202/performance_and_spending/1079/payments_over_500,01-Jul-21,Housing Revenue Account Capital,SELECT WINDOWS (HOME IMPROVEMENTS) LIMITED,Housing Revenue Account Capital,675,Contract Payments,2122P04_CR00655,42616
Sandwell Metropolitan Borough Council,http://www.sandwell.gov.uk/info/200202/performance_and_spending/1079/payments_over_500,01-Jul-21,Housing Revenue Account Capital,SELECT WINDOWS (HOME IMPROVEMENTS) LIMITED,Housing Revenue Account Capital,822.15,Contract Payments,2122P04_CR00656,42616
Sandwell Metropolitan Borough Council,http://www.sandwell.gov.uk/info/200202/performance_and_spending/1079/payments_over_500,01-Jul-21,Housing Revenue Account Capital,SELECT WINDOWS (HOME IMPROVEMENTS) LIMITED,Housing Revenue Account Capital,675,Contract Payments,2122P04_CR00657,42616
Sandwell Metropolitan Borough Council,http://www.sandwell.gov.uk/info/200202/performance_and_spending/1079/payments_over_500,01-Jul-21,Housing Revenue Account Capital,SELECT WINDOWS (HOME IMPROVEMENTS) LIMITED,Housing Revenue Account Capital,509.25,Contract Payments,2122P04_CR00658,42616
Sandwell Metropolitan Borough Council,http://www.sandwell.gov.uk/info/200202/performance_and_spending/1079/payments_over_500,02-Jul-21,Housing Revenue Account Capital,SELECT WINDOWS (HOME IMPROVEMENTS) LIMITED,Housing Revenue Account Capital,917.57,Contract Payments,2122P04_CR00659,42616
Sandwell Metropolitan Borough Council,http://www.sandwell.gov.uk/info/200202/performance_and_spending/1079/payments_over_500,01-Jul-21,Housing Revenue Account Capital,J A BEDWARD & SON                                                           02,Housing Revenue Account Capital,10000,Deferred Charges/Grant Payments,2122P04_CR00660,77001727
Sandwell Metropolitan Borough Council,http://www.sandwell.gov.uk/info/200202/performance_and_spending/1079/payments_over_500,01-Jul-21,Housing Revenue Account Capital,PR PROPERTY MAINTENANCE,Housing Revenue Account Capital,46616.44,Deferred Charges/Grant Payments,2122P04_CR00661,33836
Sandwell Metropolitan Borough Council,http://www.sandwell.gov.uk/info/200202/performance_and_spending/1079/payments_over_500,01-Jul-21,Housing Revenue Account Capital,PR PROPERTY MAINTENANCE,Housing Revenue Account Capital,8464.38,Deferred Charges/Grant Payments,2122P04_CR00662,33836
Sandwell Metropolitan Borough Council,http://www.sandwell.gov.uk/info/200202/performance_and_spending/1079/payments_over_500,01-Jul-21,Housing Revenue Account Capital,PR PROPERTY MAINTENANCE,Housing Revenue Account Capital,7447.83,Deferred Charges/Grant Payments,2122P04_CR00663,33836
Sandwell Metropolitan Borough Council,http://www.sandwell.gov.uk/info/200202/performance_and_spending/1079/payments_over_500,01-Jul-21,Housing Revenue Account Capital,PR PROPERTY MAINTENANCE,Housing Revenue Account Capital,8180.56,Deferred Charges/Grant Payments,2122P04_CR00664,33836
Sandwell Metropolitan Borough Council,http://www.sandwell.gov.uk/info/200202/performance_and_spending/1079/payments_over_500,09-Jul-21,Housing Revenue Account Capital,PR PROPERTY MAINTENANCE,Housing Revenue Account Capital,6137.11,Deferred Charges/Grant Payments,2122P04_CR00665,33836
Sandwell Metropolitan Borough Council,http://www.sandwell.gov.uk/info/200202/performance_and_spending/1079/payments_over_500,01-Jul-21,Housing Revenue Account Capital,PR PROPERTY MAINTENANCE,Housing Revenue Account Capital,9100.6,Deferred Charges/Grant Payments,2122P04_CR00666,33836
Sandwell Metropolitan Borough Council,http://www.sandwell.gov.uk/info/200202/performance_and_spending/1079/payments_over_500,09-Jul-21,Housing Revenue Account Capital,PR PROPERTY MAINTENANCE,Housing Revenue Account Capital,8434.63,Deferred Charges/Grant Payments,2122P04_CR00667,33836
Sandwell Metropolitan Borough Council,http://www.sandwell.gov.uk/info/200202/performance_and_spending/1079/payments_over_500,09-Jul-21,Housing Revenue Account Capital,PR PROPERTY MAINTENANCE,Housing Revenue Account Capital,15982.2,Deferred Charges/Grant Payments,2122P04_CR00668,33836
Sandwell Metropolitan Borough Council,http://www.sandwell.gov.uk/info/200202/performance_and_spending/1079/payments_over_500,01-Jul-21,Housing Revenue Account Capital,PR PROPERTY MAINTENANCE,Housing Revenue Account Capital,10052.43,Deferred Charges/Grant Payments,2122P04_CR00669,33836
Sandwell Metropolitan Borough Council,http://www.sandwell.gov.uk/info/200202/performance_and_spending/1079/payments_over_500,01-Jul-21,Housing Revenue Account Capital,RIDGE & PARTNERS LLP,Housing Revenue Account Capital,860,Deferred Charges/Grant Payments,2122P04_CR00670,134994
Sandwell Metropolitan Borough Council,http://www.sandwell.gov.uk/info/200202/performance_and_spending/1079/payments_over_500,01-Jul-21,Housing Revenue Account Capital,AXIS EUROPE PLC                                                           02,Housing Revenue Account Capital,4543.82,Deferred Charges/Grant Payments,2122P04_CR00671,64946
Sandwell Metropolitan Borough Council,http://www.sandwell.gov.uk/info/200202/performance_and_spending/1079/payments_over_500,01-Jul-21,Housing Revenue Account Capital,AXIS EUROPE PLC                                                           02,Housing Revenue Account Capital,5626.86,Deferred Charges/Grant Payments,2122P04_CR00672,64946
Sandwell Metropolitan Borough Council,http://www.sandwell.gov.uk/info/200202/performance_and_spending/1079/payments_over_500,01-Jul-21,Housing Revenue Account Capital,AXIS EUROPE PLC                                                           02,Housing Revenue Account Capital,4535,Deferred Charges/Grant Payments,2122P04_CR00673,64946
Sandwell Metropolitan Borough Council,http://www.sandwell.gov.uk/info/200202/performance_and_spending/1079/payments_over_500,01-Jul-21,Housing Revenue Account Capital,AXIS EUROPE PLC                                                           02,Housing Revenue Account Capital,4294.3,Deferred Charges/Grant Payments,2122P04_CR00674,64946
Sandwell Metropolitan Borough Council,http://www.sandwell.gov.uk/info/200202/performance_and_spending/1079/payments_over_500,01-Jul-21,Housing Revenue Account Capital,AXIS EUROPE PLC                                                           02,Housing Revenue Account Capital,5172.73,Deferred Charges/Grant Payments,2122P04_CR00675,64946
Sandwell Metropolitan Borough Council,http://www.sandwell.gov.uk/info/200202/performance_and_spending/1079/payments_over_500,01-Jul-21,Housing Revenue Account Capital,AXIS EUROPE PLC                                                           02,Housing Revenue Account Capital,5204.16,Deferred Charges/Grant Payments,2122P04_CR00676,64946
Sandwell Metropolitan Borough Council,http://www.sandwell.gov.uk/info/200202/performance_and_spending/1079/payments_over_500,01-Jul-21,Housing Revenue Account Capital,DOLPHIN LIFTS MIDLANDS LTD,Housing Revenue Account Capital,4311.23,Deferred Charges/Grant Payments,2122P04_CR00677,123852
Sandwell Metropolitan Borough Council,http://www.sandwell.gov.uk/info/200202/performance_and_spending/1079/payments_over_500,02-Jul-21,Housing Revenue Account Capital,FRASER WOOD (MIDLANDS) LIMITED,Housing Revenue Account Capital,8715,Externally Purchased Professional Services ,2122P04_CR00678,57157
Sandwell Metropolitan Borough Council,http://www.sandwell.gov.uk/info/200202/performance_and_spending/1079/payments_over_500,03-Jul-21,Housing Revenue Account Capital,POWRED HEATING COMPONENTS LIMITED,Housing Revenue Account Capital,710.92,Materials & Consumables,2122P04_CR00679,133978
Sandwell Metropolitan Borough Council,http://www.sandwell.gov.uk/info/200202/performance_and_spending/1079/payments_over_500,01-Jul-21,Housing Revenue Account Capital,POWRED HEATING COMPONENTS LIMITED,Housing Revenue Account Capital,4606.28,Materials & Consumables,2122P04_CR00680,133978
Sandwell Metropolitan Borough Council,http://www.sandwell.gov.uk/info/200202/performance_and_spending/1079/payments_over_500,01-Jul-21,Housing Revenue Account Capital,POWRED HEATING COMPONENTS LIMITED,Housing Revenue Account Capital,6272,Materials & Consumables,2122P04_CR00681,133978
Sandwell Metropolitan Borough Council,http://www.sandwell.gov.uk/info/200202/performance_and_spending/1079/payments_over_500,01-Jul-21,Housing Revenue Account Capital,DAVID SYMONDS ASSOCIATES,Housing Revenue Account Capital,840,Deferred Charges/Grant Payments,2122P04_CR00682,137308
Sandwell Metropolitan Borough Council,http://www.sandwell.gov.uk/info/200202/performance_and_spending/1079/payments_over_500,01-Jul-21,Housing Revenue Account Capital,TDF DESIGN LIMITED,Housing Revenue Account Capital,6602,Deferred Charges/Grant Payments,2122P04_CR00683,10320
Sandwell Metropolitan Borough Council,http://www.sandwell.gov.uk/info/200202/performance_and_spending/1079/payments_over_500,01-Jul-21,Housing Services,VIRGIN MEDIA PAYMENTS LTD,Housing Services,582,ICT ,2122P04_CR00684,1515913
Sandwell Metropolitan Borough Council,http://www.sandwell.gov.uk/info/200202/performance_and_spending/1079/payments_over_500,21-Jul-21,Individual School Budgets With Inclusion,5 STAR DAY NURSERY - OLDBURY,Individual School Budgets With Inclusion,6048.9,Grant Payments,2122P04_CR00685,120730
Sandwell Metropolitan Borough Council,http://www.sandwell.gov.uk/info/200202/performance_and_spending/1079/payments_over_500,21-Jul-21,Individual School Budgets With Inclusion,BANANA MOON DAY NURSERY,Individual School Budgets With Inclusion,8065.2,Grant Payments,2122P04_CR00686,124220
Sandwell Metropolitan Borough Council,http://www.sandwell.gov.uk/info/200202/performance_and_spending/1079/payments_over_500,21-Jul-21,Individual School Budgets With Inclusion,BLOXCIDGE HOUSE DAY NURSERY,Individual School Budgets With Inclusion,4101.3,Grant Payments,2122P04_CR00687,82862
Sandwell Metropolitan Borough Council,http://www.sandwell.gov.uk/info/200202/performance_and_spending/1079/payments_over_500,21-Jul-21,Individual School Budgets With Inclusion,BLUEBELLS DAY NURSERY,Individual School Budgets With Inclusion,3159.9,Grant Payments,2122P04_CR00688,1721314
Sandwell Metropolitan Borough Council,http://www.sandwell.gov.uk/info/200202/performance_and_spending/1079/payments_over_500,21-Jul-21,Individual School Budgets With Inclusion,BLUEBERRY DAY NURSERY,Individual School Budgets With Inclusion,2842.2,Grant Payments,2122P04_CR00689,141884
Sandwell Metropolitan Borough Council,http://www.sandwell.gov.uk/info/200202/performance_and_spending/1079/payments_over_500,21-Jul-21,Individual School Budgets With Inclusion,BOOKWORMS DAYCARE BRICKHOUSE,Individual School Budgets With Inclusion,1378.44,Grant Payments,2122P04_CR00690,127727
Sandwell Metropolitan Borough Council,http://www.sandwell.gov.uk/info/200202/performance_and_spending/1079/payments_over_500,21-Jul-21,Individual School Budgets With Inclusion,BRIGHT LIGHTS DAY NURSERY,Individual School Budgets With Inclusion,19517.4,Grant Payments,2122P04_CR00691,89877
Sandwell Metropolitan Borough Council,http://www.sandwell.gov.uk/info/200202/performance_and_spending/1079/payments_over_500,21-Jul-21,Individual School Budgets With Inclusion,BUSY BEE NURSERY,Individual School Budgets With Inclusion,9699.3,Grant Payments,2122P04_CR00692,1222577
Sandwell Metropolitan Borough Council,http://www.sandwell.gov.uk/info/200202/performance_and_spending/1079/payments_over_500,21-Jul-21,Individual School Budgets With Inclusion,CAP DAY NURSERY,Individual School Budgets With Inclusion,10160.55,Grant Payments,2122P04_CR00693,51154
Sandwell Metropolitan Borough Council,http://www.sandwell.gov.uk/info/200202/performance_and_spending/1079/payments_over_500,21-Jul-21,Individual School Budgets With Inclusion,CATHERINE HOUSE DAY NURSERY,Individual School Budgets With Inclusion,3961.35,Grant Payments,2122P04_CR00694,8587767
Sandwell Metropolitan Borough Council,http://www.sandwell.gov.uk/info/200202/performance_and_spending/1079/payments_over_500,21-Jul-21,Individual School Budgets With Inclusion,CHRIST CHURCH CE PRIMARY                                    02,Individual School Budgets With Inclusion,7783.02,Grant Payments,2122P04_CR00695,60978
Sandwell Metropolitan Borough Council,http://www.sandwell.gov.uk/info/200202/performance_and_spending/1079/payments_over_500,21-Jul-21,Individual School Budgets With Inclusion,DEVONSHIRE INFANTS ACADEMY,Individual School Budgets With Inclusion,5846.4,Grant Payments,2122P04_CR00696,118366
Sandwell Metropolitan Borough Council,http://www.sandwell.gov.uk/info/200202/performance_and_spending/1079/payments_over_500,21-Jul-21,Individual School Budgets With Inclusion,FATIMA DAY NURSERY,Individual School Budgets With Inclusion,6681.15,Grant Payments,2122P04_CR00697,131343
Sandwell Metropolitan Borough Council,http://www.sandwell.gov.uk/info/200202/performance_and_spending/1079/payments_over_500,21-Jul-21,Individual School Budgets With Inclusion,FIRST STEPS DAY NURSERY,Individual School Budgets With Inclusion,12538.8,Grant Payments,2122P04_CR00698,51155
Sandwell Metropolitan Borough Council,http://www.sandwell.gov.uk/info/200202/performance_and_spending/1079/payments_over_500,21-Jul-21,Individual School Budgets With Inclusion,FIRST STEPS OLDBURY,Individual School Budgets With Inclusion,11288.7,Grant Payments,2122P04_CR00699,118886
Sandwell Metropolitan Borough Council,http://www.sandwell.gov.uk/info/200202/performance_and_spending/1079/payments_over_500,21-Jul-21,Individual School Budgets With Inclusion,GNG NURSERY,Individual School Budgets With Inclusion,10597.5,Grant Payments,2122P04_CR00700,114805
Sandwell Metropolitan Borough Council,http://www.sandwell.gov.uk/info/200202/performance_and_spending/1079/payments_over_500,21-Jul-21,Individual School Budgets With Inclusion,HAPPY DAYS NURSERY (GREETS GREEN),Individual School Budgets With Inclusion,3474,Grant Payments,2122P04_CR00701,125840
Sandwell Metropolitan Borough Council,http://www.sandwell.gov.uk/info/200202/performance_and_spending/1079/payments_over_500,21-Jul-21,Individual School Budgets With Inclusion,HUMPTY DUMPTYS DAY NURSERY,Individual School Budgets With Inclusion,10035,Grant Payments,2122P04_CR00702,8510771
Sandwell Metropolitan Borough Council,http://www.sandwell.gov.uk/info/200202/performance_and_spending/1079/payments_over_500,21-Jul-21,Individual School Budgets With Inclusion,JOYFUL CHILDRENS NURSERY,Individual School Budgets With Inclusion,3026.7,Grant Payments,2122P04_CR00703,150961
Sandwell Metropolitan Borough Council,http://www.sandwell.gov.uk/info/200202/performance_and_spending/1079/payments_over_500,21-Jul-21,Individual School Budgets With Inclusion,K L THAW CHILDMINDING,Individual School Budgets With Inclusion,1547.55,Grant Payments,2122P04_CR00704,104746
Sandwell Metropolitan Borough Council,http://www.sandwell.gov.uk/info/200202/performance_and_spending/1079/payments_over_500,21-Jul-21,Individual School Budgets With Inclusion,KANGAROO POUCH AT GREAT BRIDGE,Individual School Budgets With Inclusion,7430.4,Grant Payments,2122P04_CR00705,129771
Sandwell Metropolitan Borough Council,http://www.sandwell.gov.uk/info/200202/performance_and_spending/1079/payments_over_500,21-Jul-21,Individual School Budgets With Inclusion,KANGAROO POUCH AT TIVIDALE,Individual School Budgets With Inclusion,6739.65,Grant Payments,2122P04_CR00706,113715
Sandwell Metropolitan Borough Council,http://www.sandwell.gov.uk/info/200202/performance_and_spending/1079/payments_over_500,21-Jul-21,Individual School Budgets With Inclusion,KANGAROO POUCH CHARLEMONT,Individual School Budgets With Inclusion,4140.9,Grant Payments,2122P04_CR00707,117283
Sandwell Metropolitan Borough Council,http://www.sandwell.gov.uk/info/200202/performance_and_spending/1079/payments_over_500,21-Jul-21,Individual School Budgets With Inclusion,LAVENDER FARM DAY NURSERY,Individual School Budgets With Inclusion,32470.2,Grant Payments,2122P04_CR00708,65596
Sandwell Metropolitan Borough Council,http://www.sandwell.gov.uk/info/200202/performance_and_spending/1079/payments_over_500,21-Jul-21,Individual School Budgets With Inclusion,LILLIPUT LODGE CHILDRENS DAY NURSERY,Individual School Budgets With Inclusion,9517.95,Grant Payments,2122P04_CR00709,2980
Sandwell Metropolitan Borough Council,http://www.sandwell.gov.uk/info/200202/performance_and_spending/1079/payments_over_500,21-Jul-21,Individual School Budgets With Inclusion,LITTLE ACADEMY NURSERY,Individual School Budgets With Inclusion,3793.5,Grant Payments,2122P04_CR00710,81904
Sandwell Metropolitan Borough Council,http://www.sandwell.gov.uk/info/200202/performance_and_spending/1079/payments_over_500,21-Jul-21,Individual School Budgets With Inclusion,LITTLE SAPLINGS CHILDCARE CENTRES,Individual School Budgets With Inclusion,7407.36,Grant Payments,2122P04_CR00711,131043
Sandwell Metropolitan Borough Council,http://www.sandwell.gov.uk/info/200202/performance_and_spending/1079/payments_over_500,21-Jul-21,Individual School Budgets With Inclusion,LITTLE STEPPERS,Individual School Budgets With Inclusion,2153.25,Grant Payments,2122P04_CR00712,120240
Sandwell Metropolitan Borough Council,http://www.sandwell.gov.uk/info/200202/performance_and_spending/1079/payments_over_500,21-Jul-21,Individual School Budgets With Inclusion,LITTLE WENDY HOUSE DAY NURSERY,Individual School Budgets With Inclusion,20843.1,Grant Payments,2122P04_CR00713,91544
Sandwell Metropolitan Borough Council,http://www.sandwell.gov.uk/info/200202/performance_and_spending/1079/payments_over_500,21-Jul-21,Individual School Budgets With Inclusion,LOLA BELLES PRIVATE DAY NURSERY,Individual School Budgets With Inclusion,3908.7,Grant Payments,2122P04_CR00714,89271
Sandwell Metropolitan Borough Council,http://www.sandwell.gov.uk/info/200202/performance_and_spending/1079/payments_over_500,21-Jul-21,Individual School Budgets With Inclusion,MOORLANDS LITTLE LEARNERS PLAYGROUP,Individual School Budgets With Inclusion,4049.1,Grant Payments,2122P04_CR00715,46390
Sandwell Metropolitan Borough Council,http://www.sandwell.gov.uk/info/200202/performance_and_spending/1079/payments_over_500,21-Jul-21,Individual School Budgets With Inclusion,NEWTOWN PRIMARY ACADEMY                                             02,Individual School Budgets With Inclusion,5846.4,Grant Payments,2122P04_CR00716,61034
Sandwell Metropolitan Borough Council,http://www.sandwell.gov.uk/info/200202/performance_and_spending/1079/payments_over_500,21-Jul-21,Individual School Budgets With Inclusion,PITTA PATTA DAYCARE,Individual School Budgets With Inclusion,7845.9,Grant Payments,2122P04_CR00717,114742
Sandwell Metropolitan Borough Council,http://www.sandwell.gov.uk/info/200202/performance_and_spending/1079/payments_over_500,21-Jul-21,Individual School Budgets With Inclusion,PLAYHOUSE DAY NURSERY,Individual School Budgets With Inclusion,8605.8,Grant Payments,2122P04_CR00718,1586669
Sandwell Metropolitan Borough Council,http://www.sandwell.gov.uk/info/200202/performance_and_spending/1079/payments_over_500,21-Jul-21,Individual School Budgets With Inclusion,ROOTS & SHOOTS PLAYGROUP,Individual School Budgets With Inclusion,4874.4,Grant Payments,2122P04_CR00719,75502
Sandwell Metropolitan Borough Council,http://www.sandwell.gov.uk/info/200202/performance_and_spending/1079/payments_over_500,21-Jul-21,Individual School Budgets With Inclusion,ROWLEY VILLAGE DAY NURSERY,Individual School Budgets With Inclusion,12193.2,Grant Payments,2122P04_CR00720,24228
Sandwell Metropolitan Borough Council,http://www.sandwell.gov.uk/info/200202/performance_and_spending/1079/payments_over_500,21-Jul-21,Individual School Budgets With Inclusion,SADWICA DAY NURSERY,Individual School Budgets With Inclusion,9271.8,Grant Payments,2122P04_CR00721,1667892
Sandwell Metropolitan Borough Council,http://www.sandwell.gov.uk/info/200202/performance_and_spending/1079/payments_over_500,21-Jul-21,Individual School Budgets With Inclusion,SANDWELL NHS TRUST DAY NURSERY,Individual School Budgets With Inclusion,15627.84,Grant Payments,2122P04_CR00722,40788
Sandwell Metropolitan Borough Council,http://www.sandwell.gov.uk/info/200202/performance_and_spending/1079/payments_over_500,21-Jul-21,Individual School Budgets With Inclusion,SANTOS DAY NURSERIES,Individual School Budgets With Inclusion,10186.2,Grant Payments,2122P04_CR00723,129262
Sandwell Metropolitan Borough Council,http://www.sandwell.gov.uk/info/200202/performance_and_spending/1079/payments_over_500,21-Jul-21,Individual School Budgets With Inclusion,SILVERTREES ACADEMY TRUST,Individual School Budgets With Inclusion,19731.6,Grant Payments,2122P04_CR00724,113719
Sandwell Metropolitan Borough Council,http://www.sandwell.gov.uk/info/200202/performance_and_spending/1079/payments_over_500,21-Jul-21,Individual School Budgets With Inclusion,ST CATHERINE OF SIENA MULTI ACADEMY COMPANY                       02,Individual School Budgets With Inclusion,10987.2,Grant Payments,2122P04_CR00725,61052
Sandwell Metropolitan Borough Council,http://www.sandwell.gov.uk/info/200202/performance_and_spending/1079/payments_over_500,21-Jul-21,Individual School Budgets With Inclusion,ST FRANCIS XAVIER CATHOLIC PRIMARY,Individual School Budgets With Inclusion,10048.5,Grant Payments,2122P04_CR00726,61051
Sandwell Metropolitan Borough Council,http://www.sandwell.gov.uk/info/200202/performance_and_spending/1079/payments_over_500,21-Jul-21,Individual School Budgets With Inclusion,ST MICHAELS DAY NURSERY,Individual School Budgets With Inclusion,2281.95,Grant Payments,2122P04_CR00727,1698538
Sandwell Metropolitan Borough Council,http://www.sandwell.gov.uk/info/200202/performance_and_spending/1079/payments_over_500,21-Jul-21,Individual School Budgets With Inclusion,ST PHILIPS CATHOLIC PRIMARY                           02,Individual School Budgets With Inclusion,9417.6,Grant Payments,2122P04_CR00728,61063
Sandwell Metropolitan Borough Council,http://www.sandwell.gov.uk/info/200202/performance_and_spending/1079/payments_over_500,21-Jul-21,Individual School Budgets With Inclusion,STEPPING STONES NURSERY,Individual School Budgets With Inclusion,6121.35,Grant Payments,2122P04_CR00729,50029
Sandwell Metropolitan Borough Council,http://www.sandwell.gov.uk/info/200202/performance_and_spending/1079/payments_over_500,21-Jul-21,Individual School Budgets With Inclusion,SUMMERHILL LITTLE TREASURES,Individual School Budgets With Inclusion,13446.9,Grant Payments,2122P04_CR00730,89880
Sandwell Metropolitan Borough Council,http://www.sandwell.gov.uk/info/200202/performance_and_spending/1079/payments_over_500,21-Jul-21,Individual School Budgets With Inclusion,SUNNY SKIES DAY NURSERY,Individual School Budgets With Inclusion,8801.1,Grant Payments,2122P04_CR00731,82726
Sandwell Metropolitan Borough Council,http://www.sandwell.gov.uk/info/200202/performance_and_spending/1079/payments_over_500,21-Jul-21,Individual School Budgets With Inclusion,THE PATCH DAY NURSERY,Individual School Budgets With Inclusion,18098.64,Grant Payments,2122P04_CR00732,126020
Sandwell Metropolitan Borough Council,http://www.sandwell.gov.uk/info/200202/performance_and_spending/1079/payments_over_500,21-Jul-21,Individual School Budgets With Inclusion,TIMBERTREE NEIGHBOURHOOD NURSERY,Individual School Budgets With Inclusion,11494.8,Grant Payments,2122P04_CR00733,135664
Sandwell Metropolitan Borough Council,http://www.sandwell.gov.uk/info/200202/performance_and_spending/1079/payments_over_500,21-Jul-21,Individual School Budgets With Inclusion,TINY STEPS,Individual School Budgets With Inclusion,3592.8,Grant Payments,2122P04_CR00734,125778
Sandwell Metropolitan Borough Council,http://www.sandwell.gov.uk/info/200202/performance_and_spending/1079/payments_over_500,21-Jul-21,Individual School Budgets With Inclusion,TIP TOP DAY NURSERY WEDNESBURY,Individual School Budgets With Inclusion,3139.2,Grant Payments,2122P04_CR00735,147082
Sandwell Metropolitan Borough Council,http://www.sandwell.gov.uk/info/200202/performance_and_spending/1079/payments_over_500,21-Jul-21,Individual School Budgets With Inclusion,TIPTON EXPLORERS NURSERY,Individual School Budgets With Inclusion,9394.5,Grant Payments,2122P04_CR00736,132351
Sandwell Metropolitan Borough Council,http://www.sandwell.gov.uk/info/200202/performance_and_spending/1079/payments_over_500,21-Jul-21,Individual School Budgets With Inclusion,TIPTON NURSERY,Individual School Budgets With Inclusion,18162,Grant Payments,2122P04_CR00737,89881
Sandwell Metropolitan Borough Council,http://www.sandwell.gov.uk/info/200202/performance_and_spending/1079/payments_over_500,21-Jul-21,Individual School Budgets With Inclusion,TIPTON TODDLERS DAY NURSERY,Individual School Budgets With Inclusion,16515.45,Grant Payments,2122P04_CR00738,4397
Sandwell Metropolitan Borough Council,http://www.sandwell.gov.uk/info/200202/performance_and_spending/1079/payments_over_500,21-Jul-21,Individual School Budgets With Inclusion,UNICORN DAY NURSERY,Individual School Budgets With Inclusion,29806.2,Grant Payments,2122P04_CR00739,91543
Sandwell Metropolitan Borough Council,http://www.sandwell.gov.uk/info/200202/performance_and_spending/1079/payments_over_500,21-Jul-21,Individual School Budgets With Inclusion,UNITED KIDS CHILDCARE,Individual School Budgets With Inclusion,8886.6,Grant Payments,2122P04_CR00740,134806
Sandwell Metropolitan Borough Council,http://www.sandwell.gov.uk/info/200202/performance_and_spending/1079/payments_over_500,21-Jul-21,Individual School Budgets With Inclusion,UPLANDS MANOR PRIMARY               02,Individual School Budgets With Inclusion,5964.48,Grant Payments,2122P04_CR00741,61071
Sandwell Metropolitan Borough Council,http://www.sandwell.gov.uk/info/200202/performance_and_spending/1079/payments_over_500,21-Jul-21,Individual School Budgets With Inclusion,WEST BROMWICH & DISTRICT Y.M.C.A. COMMUNITY ENTERPRISES,Individual School Budgets With Inclusion,33809.4,Grant Payments,2122P04_CR00742,1088376
Sandwell Metropolitan Borough Council,http://www.sandwell.gov.uk/info/200202/performance_and_spending/1079/payments_over_500,21-Jul-21,Individual School Budgets With Inclusion,REDACTED PERSONAL DATA,Individual School Budgets With Inclusion,972.4,Grant Payments,2122P04_CR00743,REDACTED PERSONAL DATA
Sandwell Metropolitan Borough Council,http://www.sandwell.gov.uk/info/200202/performance_and_spending/1079/payments_over_500,21-Jul-21,Individual School Budgets With Inclusion,REDACTED PERSONAL DATA,Individual School Budgets With Inclusion,1177.2,Grant Payments,2122P04_CR00744,REDACTED PERSONAL DATA
Sandwell Metropolitan Borough Council,http://www.sandwell.gov.uk/info/200202/performance_and_spending/1079/payments_over_500,21-Jul-21,Individual School Budgets With Inclusion,REDACTED PERSONAL DATA,Individual School Budgets With Inclusion,784.8,Grant Payments,2122P04_CR00745,REDACTED PERSONAL DATA
Sandwell Metropolitan Borough Council,http://www.sandwell.gov.uk/info/200202/performance_and_spending/1079/payments_over_500,21-Jul-21,Individual School Budgets With Inclusion,REDACTED PERSONAL DATA,Individual School Budgets With Inclusion,784.8,Grant Payments,2122P04_CR00746,REDACTED PERSONAL DATA
Sandwell Metropolitan Borough Council,http://www.sandwell.gov.uk/info/200202/performance_and_spending/1079/payments_over_500,21-Jul-21,Individual School Budgets With Inclusion,REDACTED PERSONAL DATA,Individual School Budgets With Inclusion,684,Grant Payments,2122P04_CR00747,REDACTED PERSONAL DATA
Sandwell Metropolitan Borough Council,http://www.sandwell.gov.uk/info/200202/performance_and_spending/1079/payments_over_500,21-Jul-21,Individual School Budgets With Inclusion,REDACTED PERSONAL DATA,Individual School Budgets With Inclusion,784.8,Grant Payments,2122P04_CR00748,REDACTED PERSONAL DATA
Sandwell Metropolitan Borough Council,http://www.sandwell.gov.uk/info/200202/performance_and_spending/1079/payments_over_500,21-Jul-21,Individual School Budgets With Inclusion,REDACTED PERSONAL DATA,Individual School Budgets With Inclusion,1765.8,Grant Payments,2122P04_CR00749,REDACTED PERSONAL DATA
Sandwell Metropolitan Borough Council,http://www.sandwell.gov.uk/info/200202/performance_and_spending/1079/payments_over_500,21-Jul-21,Individual School Budgets With Inclusion,REDACTED PERSONAL DATA,Individual School Budgets With Inclusion,1962,Grant Payments,2122P04_CR00750,REDACTED PERSONAL DATA
Sandwell Metropolitan Borough Council,http://www.sandwell.gov.uk/info/200202/performance_and_spending/1079/payments_over_500,21-Jul-21,Individual School Budgets With Inclusion,REDACTED PERSONAL DATA,Individual School Budgets With Inclusion,829.8,Grant Payments,2122P04_CR00751,REDACTED PERSONAL DATA
Sandwell Metropolitan Borough Council,http://www.sandwell.gov.uk/info/200202/performance_and_spending/1079/payments_over_500,21-Jul-21,Individual School Budgets With Inclusion,REDACTED PERSONAL DATA,Individual School Budgets With Inclusion,802.8,Grant Payments,2122P04_CR00752,REDACTED PERSONAL DATA
Sandwell Metropolitan Borough Council,http://www.sandwell.gov.uk/info/200202/performance_and_spending/1079/payments_over_500,21-Jul-21,Individual School Budgets With Inclusion,REDACTED PERSONAL DATA,Individual School Budgets With Inclusion,588.6,Grant Payments,2122P04_CR00753,REDACTED PERSONAL DATA
Sandwell Metropolitan Borough Council,http://www.sandwell.gov.uk/info/200202/performance_and_spending/1079/payments_over_500,21-Jul-21,Individual School Budgets With Inclusion,REDACTED PERSONAL DATA,Individual School Budgets With Inclusion,1098.9,Grant Payments,2122P04_CR00754,REDACTED PERSONAL DATA
Sandwell Metropolitan Borough Council,http://www.sandwell.gov.uk/info/200202/performance_and_spending/1079/payments_over_500,21-Jul-21,Individual School Budgets With Inclusion,REDACTED PERSONAL DATA,Individual School Budgets With Inclusion,2281.95,Grant Payments,2122P04_CR00755,REDACTED PERSONAL DATA
